Nominativi dei beneficiari;Data mandato;Natura economica;Importo;Ritenute;Ritenute per IVA Split;CIG;Descrizione mandato;Numero mandato;TITNO_BL;2� livello;3� livello;4� livello;5� livello
ARCA - COOPERATIVA SOCIALE A R.L.;03/06/2020;Trasferimenti correnti a Istituzioni Sociali Private ;2.334,00;0,00;0,00;;Contributo per costi di gestione mesi di marzo e aprile 2020 da finaziamento MIUR;2861;1;4;4;1;1
UISP - UNIONE ITALIANA SPORT PER TUTTI COMITATO TERRITORIALE EMPOLI VALDELSA;03/06/2020;Altri servizi diversi n.a.c.;963,56;0,00;0,00;Z0F2B4F841;Liquidazione Fattura Nr. 58  del 30/04/2020 - fatturazione effettuata da soggetto che si avvale del regime di cui alla legge16/12/1991 n.398 non assoggetta a split payment ai sensi della circolare agenzia delle entrate n.15/E del 13/04/2015;2850;1;3;2;99;999
ASSOCIAZIONE CULTURALE IL PONTE;03/06/2020;Trasferimenti correnti a Istituzioni Sociali Private ;786,84;31,47;0,00;;CONTRIBUTO PER COSTI DI GESTIONE MESI DI MARZO E APRILE 2020 DA FINAZIAMENTO MIUR;2862;1;4;4;1;1
POSTE ITALIANE SPA SOCIETA' CON SOCIO UNICO;03/06/2020;Altre spese per servizi amministrativi;448,50;0,00;80,88;Z0C263E6D8;Liquidazione Fattura Nr. 3020256664  del 15/04/2020 (di cui Split per euro 80,88) - NOTIFICHE LUGLIO 2019;2857;1;3;2;16;999
POSTE ITALIANE SPA SOCIETA' CON SOCIO UNICO;03/06/2020;Altre spese per servizi amministrativi;510,36;0,00;92,03;Z0C263E6D8;Liquidazione Fattura Nr. 3020256673  del 15/04/2020 (di cui Split per euro 92,03) - NOTIFICHE AGOSTO 2019;2856;1;3;2;16;999
POSTE ITALIANE SPA SOCIETA' CON SOCIO UNICO;03/06/2020;Altre spese per servizi amministrativi;208,10;0,00;37,53;Z0C263E6D8;Liquidazione Fattura Nr. 3020300257  del 24/04/2020 (di cui Split per euro 37,53) - servizio NOTIFICA mese di marzo 2020;2858;1;3;2;16;999
CENTRO INTERNAZIONALE DI STUDI E DOCUMENTAZIONE LEONARDO DA VINCI ETS C/O BIBLIO;03/06/2020;Trasferimenti correnti a Istituzioni Sociali Private ;18.000,00;0,00;0,00;;CONTRIBUTO PER L'ANNO 2019 - LIQUIDAZIONE DIETRO PRESENTAZIONE DI RENDICONTO;2870;1;4;4;1;1
CENTRO INTERNAZIONALE DI STUDI E DOCUMENTAZIONE LEONARDO DA VINCI ETS C/O BIBLIO;03/06/2020;Altre spese per contratti di servizio pubblico;22.000,00;0,00;0,00;;"RIMBORSO PER PROROGA GESTIONE DELL'ESPOSIZIONE ""LEONARDO E LA PITTURA"", PERIODO 13.06.2019/06.01.2020";2868;1;3;2;15;999
CENTRO INTERNAZIONALE DI STUDI E DOCUMENTAZIONE LEONARDO DA VINCI ETS C/O BIBLIO;03/06/2020;Altre spese per contratti di servizio pubblico;3.250,00;0,00;0,00;;"RIMBORSO PER PROROGA GESTIONE DELL'ESPOSIZIONE ""LEONARDO E LA PITTURA"", PERIODO 13.06.2019/06.01.2020";2869;1;3;2;15;999
OFFICINA MECCANICA 3 EMME SNC DI MASSAI L. MARRUCCI A. MASSAI J.;03/06/2020;Attrezzature n.a.c.;11.492,40;0,00;2.072,40;Z242B49115;Liquidazione Fattura Nr. 89/20  del 21/04/2020 (di cui Split per euro 2.072,40) - FORNITURA TESTATA TRINCIANTE, PINZA COMBI, ACCESSORI E ZAVORRE PER TRATTORE;2854;2;2;1;5;999
SMS DI SERAFINI MIRKO;03/06/2020;Manutenzione ordinaria e riparazioni di beni immobili;9.238,57;0,00;1.665,97;ZE62A2EE59;Liquidazione Fattura Nr. 11/PA  del 23/03/2020 (di cui Split per euro 1.665,97) - MANUTENZIONE SEGNALETICA ORIZZONTALE SULLE STRADE COMUNALI ? DETERMINA A CONTRARRE ? AFFIDAMENTO DITTA SMS DI SERAFINI MIRKO;2849;1;3;2;9;8
ESKIMO COOP. SOCIALE ONLUS;03/06/2020;Trasferimenti correnti a Istituzioni Sociali Private ;2.014,65;0,00;0,00;;Contributo per costi di gestione mesi di marzo e aprile 2020 da finaziamento MIUR;2864;1;4;4;1;1
CO&SO EMPOLI - CONS. DI COOP. SOCIALI - SOCIETA' COOPERATIVA;03/06/2020;Altre spese per contratti di servizio pubblico;24.389,72;0,00;0,00;7551132F3D;Liquidazione Fattura Nr. 000240-2C0  del 18/03/2020 - servizi museali febbraio 2020 - rif. det. 25/2019;2867;1;3;2;15;999
CO&SO EMPOLI - CONS. DI COOP. SOCIALI - SOCIETA' COOPERATIVA;03/06/2020;Trasferimenti correnti a Istituzioni Sociali Private ;706,51;28,26;0,00;;CONTRIBUTO PER COSTI DI GESTIONE MESI DI MARZO E APRILE 2020 DA FINAZIAMENTO MIUR;2863;1;4;4;1;1
O.L.V. SRL IMPIANTI ELETTRICI CIVILI ED INDUSTRIALI;03/06/2020;Manutenzione ordinaria e riparazioni di beni immobili;10.000,00;0,00;1.803,28;Z912C46553;Liquidazione Fattura Nr. 59  del 30/03/2020 (di cui Split per euro 1.803,28) - REALIZZAZIONE 56 OSSARI CIMITERO DI SPICCHIO SOVIGLIANA;2851;1;3;2;9;8
O.L.V. SRL IMPIANTI ELETTRICI CIVILI ED INDUSTRIALI;03/06/2020;Fabbricati ad uso strumentale;4.627,80;0,00;834,52;Z912C46553;Liquidazione Fattura Nr. 59  del 30/03/2020 (di cui Split per euro 834,52) - REALIZZAZIONE 56 OSSARI CIMITERO DI SPICCHIO SOVIGLIANA;2852;2;2;1;9;19
L'ABBRACCIO SNC DI CONTI SIMONA E AMATUCCI VALENTINA;03/06/2020;Trasferimenti correnti a Istituzioni Sociali Private ;6.772,00;270,88;0,00;;CONTRIBUTO PER COSTI DI GESTIONE MESI DI MARZO E APRILE 2020 DA FINAZIAMENTO MIUR;2865;1;4;4;1;1
VAR GROUP S.P.A. CON SOCIO UNICO;03/06/2020;Gestione e manutenzione applicazioni;671,00;0,00;121,00;Z6A2BDDAF5;Liquidazione Fattura Nr. 20/2E/000064 del 30/04/2020 - FATTURA SEZ.E Ove dovuto, contributo SIAE per D.L. N.68 del 9/4/2003, incluso nel prezzo. Contributo Ambientale CONAI assolto (di cui Split per euro 121,00);2866;1;3;2;19;1
F.A.C.E.  SRL;03/06/2020;Fabbricati ad uso scolastico;3.123,24;0,00;563,21;ZB72620476;Liquidazione Fattura Nr. FATTPA 1_20  del 06/04/2020 (di cui Split per euro 563,21) - SCUOLA SECONDARIA DI PRIMO GRADO DI SOVIGLIANA, MIGLIORAMENTO SISMICO, INCARICO PER PROGETTAZIONE ESECUTIVA - SALDO;2853;2;2;1;9;3
OFFICE DEPOT ITALIA SRL;03/06/2020;Altri beni e materiali di consumo n.a.c.;274,50;0,00;49,50;Z5A2C33E16;Liquidazione Fattura Nr. 1867292  del 17/04/2020 (di cui Split per euro 49,50) - GEL IGIENIZZANTE MANI N. 50 FLACONI;2859;1;3;1;2;999
COOPERATIVA SOCIALE AERIS A R.L.;03/06/2020;Altre spese per contratti di servizio pubblico;2.304,23;0,00;109,73;Z472B2B434;Liquidazione Fattura Nr. 69/01  del 11/03/2020 (di cui Split per euro 109,73) - Fornitura generica;2860;1;3;2;15;999
FARMACIA ZITO DI ZITO CHIARA;08/06/2020;Generi alimentari;100,00;0,00;0,00;;Liquidazione Fattura Nr. 1/PA  del 20/05/2020 - BUONI SPESA PER EMERGENZA COVID-19 APRILE 2020;2876;1;3;1;2;11
LA BOUTIQUE DELLA FRUTTA DI GALIBERTI FRANCESCA;08/06/2020;Generi alimentari;180,00;0,00;0,00;;Liquidazione Fattura Nr. 1/P  del 19/05/2020 - Nota di Debito PA del 19/05/2020 N.ro 1/RIMBORSO BUONI COVID;2878;1;3;1;2;11
UNIONE DEI COMUNI CIRCONDARIO EMPOLESE VALDELSA;08/06/2020;Trasferimenti correnti a Unioni di Comuni;70.415,15;0,00;0,00;;SALDO TRASFERIMENTO ALL'UNIONE DEI COMUNI DEL CIRCONDARIO DELL'EMPOLESE VALDELSA PER LA P.M. COME DA DETERMINAZIONE N. 14/2020 S2;2874;1;4;1;2;5
IL FORNINO DI VINCI;08/06/2020;Generi alimentari;20,00;0,00;0,00;;Liquidazione Fattura Nr. 21/2020  del 27/05/2020 - NOTA DI DEBITO PER RIMBORSO BUONI COVID;2877;1;3;1;2;11
COMITATO CARNEVALE SULLE DUE RIVE;08/06/2020;Organizzazione e partecipazione a manifestazioni e convegni;4.000,00;0,00;0,00;ZA02B91EF2;Liquidazione Fattura Nr. 1  del 27/04/2020 - SFILATA CARRI ALLEGORICI ANNO 2020;2872;1;3;2;2;5
FARMACIA G.T. SCATOLA SRL;08/06/2020;Generi alimentari;240,00;0,00;0,00;;Liquidazione Fattura Nr. 39  del 29/05/2020 - Fornitura generica;2875;1;3;1;2;11
MAGGIOLI S.P.A.;12/06/2020;Pubblicazioni;0,69;0,00;0,69;;IVA Liquidazione Fattura Nr. 0002116696  del 30/04/2020 (di cui Split per euro 0,69) - FORNITURA DI LIBRI;2883;1;3;1;1;2
AGENZIA PER LO SVILUPPO  EMPOLESE VALDESA S.P.A.;12/06/2020;Acquisto di servizi per altre spese per formazione e addestramento n.a.c.;280,00;0,00;0,00;Z692B86294;"Liquidazione Fattura Nr. 185/03  del 26/05/2020 - FORMAZIONE DELLE RISORSE UMANE DELL'ENTE: PARTECIPAZIONE DI TRE DIPENDENTI AL CORSO DI FORMAZIONE ""CORSO ANALISI DELLE NOVIT� DI BILANCIO 2020 E LEGGI COLLEGATE"" IL 17/01/2020 E DI TRE DIPEN";2880;1;3;2;4;999
SINTESI S.R.L. - SISTEMI INTEGRATI PER UFFICIO;12/06/2020;Manutenzione ordinaria e riparazioni di macchine per ufficio ;2.668,40;0,00;481,19;Z1A2182310;Liquidazione Fattura Nr. 19/E  del 29/05/2020 (di cui Split per euro 481,19) - FATTURE VENDITA ENTI P.;2886;1;3;2;9;6
CIRCOLO RICREATIVO O. RISTORI;12/06/2020;Trasferimenti correnti a Istituzioni Sociali Private ;4.000,00;160,00;0,00;;"CIRCOLO RICREATIVO ""O.RISTORI"" EVENTO ""43� SAGRA DELLA CHIOCCIOLA"" - VINCI- DAL 20/06/2019 AL  07/07/2019 RICHIESTA CONTRIBUTO - CONCESSIONE ";2879;1;4;4;1;1
COMAR DI CATIA CORSI;12/06/2020;Altri beni e materiali di consumo n.a.c.;63,20;0,00;63,20;;iva Liquidazione Fattura Nr. 128/P  del 29/04/2020 (di cui Split per euro 63,20) - Fornitura generica;2882;1;3;1;2;999
SYNLAB MED SRL A SOCIO UNICO;12/06/2020;Spese per accertamenti sanitari resi necessari dall'attivit� lavorativa;28,08;0,00;0,00;ZE926707A5;Liquidazione Fattura Nr. G20/00035  del 31/05/2020 - AFFIDAMENTO DEL SERVIZIO DI SORVEGLIANZA SANITARIA DELL'ENTE MEDIANTE PIATTAFORMA START PER IL TRIENNIO 2019_2021: AGGIUDICAZIONE DEFINITIVA ED EFFICACE ALLA DITTA SYNLAB TOSCANA SRL;2881;1;3;2;18;1
"SCUOLA DI MUSICA ""L'OTTAVA NOTA""";12/06/2020;Altre prestazioni professionali e specialistiche n.a.c.;1.650,00;0,00;150,00;ZD12B21D26;Liquidazione Fattura Nr. FATTPA 3_20  del 08/02/2020 (di cui Split per euro 150,00) - Fornitura generica;2888;1;3;2;11;999
PA EVOLUTION SRL;12/06/2020;Gestione e manutenzione applicazioni;1.497,83;0,00;270,10;Z7C2AF706C;Liquidazione Fattura Nr. 602  del 29/05/2020 (di cui Split per euro 270,10) - FATTURA;2887;1;3;2;19;1
A. SETTI SRL;12/06/2020;Manutenzione ordinaria e riparazioni di mezzi di trasporto ad uso civile, di sicurezza e ordine pubblico;11,26;0,00;11,26;;IVA Liquidazione Fattura Nr. 55-IE  del 04/06/2020 (di cui Split per euro 11,26) - Acquisto cinghie per trattore tagliaerba;2885;1;3;2;9;1
SCATOLIFICIO LEONARDO;12/06/2020;Manutenzione ordinaria e riparazioni di mezzi di trasporto ad uso civile, di sicurezza e ordine pubblico;35,27;0,00;35,27;;IVA Liquidazione Fattura Nr. 128  del 30/04/2020 (di cui Split per euro 35,27) - Fornitura generica;2884;1;3;2;9;1
KUWAIT PETROLEUM ITALIA S.P.A.;15/06/2020;Carburanti, combustibili e lubrificanti ;1.467,39;0,00;264,61;785073791D;Liquidazione Fattura Nr. PJ02605430  del 31/05/2020 (di cui Split per euro 264,61) - FORNITURA DI CARBURANTE PER AUTOTRAZIONE MEDIANTE FUEL CARD ? ADESIONE ACCORDO QUADRO;2907;1;3;1;2;2
KUWAIT PETROLEUM ITALIA S.P.A.;15/06/2020;Carburanti, combustibili e lubrificanti ;1.417,10;0,00;255,54;785073791D;Liquidazione Fattura Nr. PJ02605430  del 31/05/2020 (di cui Split per euro 255,54) - FORNITURA DI CARBURANTE PER AUTOTRAZIONE MEDIANTE FUEL CARD ? ADESIONE ACCORDO QUADRO;2906;1;3;1;2;2
KUWAIT PETROLEUM ITALIA S.P.A.;15/06/2020;Carburanti, combustibili e lubrificanti ;262,11;0,00;47,27;785073791D;Liquidazione Fattura Nr. PJ02605430  del 31/05/2020 (di cui Split per euro 47,27) - FORNITURA DI CARBURANTE PER AUTOTRAZIONE MEDIANTE FUEL CARD ? ADESIONE ACCORDO QUADRO;2905;1;3;1;2;2
ERARIO DELLO STATO PER PAGAMENTO I.V.A.;15/06/2020;Versamenti IVA a debito per le gestioni commerciali;4.236,54;0,00;0,00;;IVA A DEBITO SU SERVIZI COMMERCIALI DELL'ENTE   ESERCIZIO 2020 MESE DI MAGGIO;2950;1;10;3;1;1
ESTRA ENERGIE S.R.L.;15/06/2020;Gas;3,54;0,00;0,64;8038889D0D;Liquidazione Fattura Nr. 201901230270  del 27/05/2020 (di cui Split per euro 0,64) - FORNITURA DI GAS METANO Aprile 2020 Infanzia Spicchio;2911;1;3;2;5;6
ESTRA ENERGIE S.R.L.;15/06/2020;Gas;321,01;0,00;57,89;8038889D0D;Liquidazione Fattura Nr. 201901230272  del 27/05/2020 (di cui Split per euro 57,89) - FORNITURA DI GAS METANO Aprile 2020 Uffici Via Battisti;2895;1;3;2;5;6
ESTRA ENERGIE S.R.L.;15/06/2020;Gas;245,23;0,00;44,22;8038889D0D;Liquidazione Fattura Nr. 201901230274  del 27/05/2020 (di cui Split per euro 44,22) - FORNITURA DI GAS METANO Aprile 2020 Magazzino;2893;1;3;2;5;6
ESTRA ENERGIE S.R.L.;15/06/2020;Gas;1.063,54;0,00;191,79;8038889D0D;Liquidazione Fattura Nr. 201901230276  del 27/05/2020 (di cui Split per euro 191,79) - FORNITURA DI GAS METANO Aprile 2020 RSA;2948;1;3;2;5;6
ESTRA ENERGIE S.R.L.;15/06/2020;Gas;42,35;0,00;7,64;8038889D0D;Liquidazione Fattura Nr. 201901230269  del 27/05/2020 (di cui Split per euro 7,64) - FORNITURA DI GAS METANO Aprile 2020 Infanzia Vinci;2910;1;3;2;5;6
ESTRA ENERGIE S.R.L.;15/06/2020;Gas;17,14;0,00;3,09;8038889D0D;Liquidazione Fattura Nr. 201901230275  del 27/05/2020 (di cui Split per euro 3,09) - FORNITURA DI GAS METANO Aprile 2020 Villa Reghini;2947;1;3;2;5;6
ESTRA ENERGIE S.R.L.;15/06/2020;Gas;73,87;0,00;13,32;8038889D0D;Liquidazione Fattura Nr. 201901230281  del 27/05/2020 (di cui Split per euro 13,32) - FORNITURA DI GAS METANO Aprile 2020 Palazzina Uzielli;2894;1;3;2;5;6
ESTRA ENERGIE S.R.L.;15/06/2020;Gas;42,35;0,00;7,64;8038889D0D;Liquidazione Fattura Nr. 201901230279  del 27/05/2020 (di cui Split per euro 7,64) - FORNITURA DI GAS METANO Aprile 2020 Primaria Spicchio;2915;1;3;2;5;6
ESTRA ENERGIE S.R.L.;15/06/2020;Gas;21,47;0,00;3,87;8038889D0D;Liquidazione Fattura Nr. 201901230278  del 27/05/2020 (di cui Split per euro 3,87) - FORNITURA DI GAS METANO Aprile 2020 Scuole Vinci;2916;1;3;2;5;6
ESTRA ENERGIE S.R.L.;15/06/2020;Gas;21,47;0,00;3,87;8038889D0D;Liquidazione Fattura Nr. 201901230278  del 27/05/2020 (di cui Split per euro 3,87) - FORNITURA DI GAS METANO Aprile 2020 Scuole Vinci;2919;1;3;2;5;6
ESTRA ENERGIE S.R.L.;15/06/2020;Gas;25,41;0,00;4,59;8038889D0D;Liquidazione Fattura Nr. 201901230280  del 27/05/2020 (di cui Split per euro 4,59) - FORNITURA DI GAS METANO Aprile 2020 Palasport;2929;1;3;2;5;6
ESTRA ENERGIE S.R.L.;15/06/2020;Gas;16,94;0,00;3,05;8038889D0D;Liquidazione Fattura Nr. 201901230280  del 27/05/2020 (di cui Split per euro 3,05) - FORNITURA DI GAS METANO Aprile 2020 Palasport;2928;1;3;2;5;6
ESTRA ENERGIE S.R.L.;15/06/2020;Gas;248,03;0,00;44,73;8038889D0D;Liquidazione Fattura Nr. 201901230273  del 27/05/2020 (di cui Split per euro 44,73) - FORNITURA DI GAS METANO Aprile 2020 Nido;2945;1;3;2;5;6
ESTRA ENERGIE S.R.L.;15/06/2020;Gas;42,35;0,00;7,64;8038889D0D;Liquidazione Fattura Nr. 201901230277  del 27/05/2020 (di cui Split per euro 7,64) - FORNITURA DI GAS METANO Aprile 2020 Secondaria Sovigliana;2920;1;3;2;5;6
ESTRA ENERGIE S.R.L.;15/06/2020;Gas;42,35;0,00;7,64;8038889D0D;Liquidazione Fattura Nr. 201901230271  del 27/05/2020 (di cui Split per euro 7,64) - FORNITURA DI GAS METANO Aprile 2020 Infanzia Sovigliana;2909;1;3;2;5;6
A2A ENERGIA SPA;15/06/2020;Energia elettrica;101,74;0,00;18,35;8191752F96;Liquidazione Fattura Nr. 820000106748  del 28/05/2020 (di cui Split per euro 18,35) - FORNITURA ENERGIA ELETTRICA periodo: 01.04.2020-30.04.2020 cassa exp;2936;1;3;2;5;4
A2A ENERGIA SPA;15/06/2020;Energia elettrica;59,08;0,00;10,66;8191752F96;Liquidazione Fattura Nr. 820000106744  del 28/05/2020 (di cui Split per euro 10,66) - FORNITURA ENERGIA ELETTRICA periodo: 01.04.2020-30.04.2020 fontanello;2942;1;3;2;5;4
A2A ENERGIA SPA;15/06/2020;Energia elettrica;177,39;0,00;31,99;8191752F96;Liquidazione Fattura Nr. 820000106743  del 28/05/2020 (di cui Split per euro 31,99) - FORNITURA ENERGIA ELETTRICA periodo: 01.04.2020-30.04.2020 scuole vinci;2922;1;3;2;5;4
A2A ENERGIA SPA;15/06/2020;Energia elettrica;177,38;0,00;31,99;8191752F96;Liquidazione Fattura Nr. 820000106743  del 28/05/2020 (di cui Split per euro 31,99) - FORNITURA ENERGIA ELETTRICA periodo: 01.04.2020-30.04.2020 scuole vinci;2917;1;3;2;5;4
A2A ENERGIA SPA;15/06/2020;Energia elettrica;99,33;0,00;17,91;8191752F96;Liquidazione Fattura Nr. 820000106742  del 28/05/2020 (di cui Split per euro 17,91) - FORNITURA ENERGIA ELETTRICA periodo: 01.04.2020-30.04.2020 orti sociali;2934;1;3;2;5;4
A2A ENERGIA SPA;15/06/2020;Energia elettrica;47,24;0,00;8,52;8191752F96;Liquidazione Fattura Nr. 820000106736  del 28/05/2020 (di cui Split per euro 8,52) - FORNITURA ENERGIA ELETTRICA periodo: 01.04.2020-30.04.2020 fontanello;2941;1;3;2;5;4
A2A ENERGIA SPA;15/06/2020;Energia elettrica;857,71;0,00;154,67;8191752F96;Liquidazione Fattura Nr. 820000106429  del 28/05/2020 (di cui Split per euro 154,67) - FORNITURA ENERGIA ELETTRICA periodo: 01.04.2020-30.04.2020 petroio;2935;1;3;2;5;4
A2A ENERGIA SPA;15/06/2020;Energia elettrica;492,96;0,00;88,89;8191752F96;Liquidazione Fattura Nr. 820000106728  del 28/05/2020 (di cui Split per euro 88,89) - FORNITURA ENERGIA ELETTRICA periodo: 01.04.2020-30.04.2020 rsa;2949;1;3;2;5;4
A2A ENERGIA SPA;15/06/2020;Energia elettrica;127,68;0,00;23,02;8191752F96;Liquidazione Fattura Nr. 820000106738  del 28/05/2020 (di cui Split per euro 23,02) - FORNITURA ENERGIA ELETTRICA periodo: 01.04.2020-30.04.2020 uff tur;2937;1;3;2;5;4
A2A ENERGIA SPA;15/06/2020;Energia elettrica;1.136,99;0,00;205,03;8191752F96;Liquidazione Fattura Nr. 820000106741  del 28/05/2020 (di cui Split per euro 205,03) - FORNITURA ENERGIA ELETTRICA periodo: 01.04.2020-30.04.2020 palazzo comunale;2904;1;3;2;5;4
A2A ENERGIA SPA;15/06/2020;Energia elettrica;22,35;0,00;4,03;8191752F96;Liquidazione Fattura Nr. 820000106933  del 28/05/2020 (di cui Split per euro 4,03) - FORNITURA ENERGIA ELETTRICA periodo: 01.04.2020-30.04.2020 ex macelli;2902;1;3;2;5;4
A2A ENERGIA SPA;15/06/2020;Energia elettrica;170,07;0,00;30,67;8191752F96;Liquidazione Fattura Nr. 820000106732  del 28/05/2020 (di cui Split per euro 30,67) - FORNITURA ENERGIA ELETTRICA periodo: 01.04.2020-30.04.2020 casa natale;2925;1;3;2;5;4
A2A ENERGIA SPA;15/06/2020;Energia elettrica;157,02;0,00;28,32;8191752F96;Liquidazione Fattura Nr. 820000106733  del 28/05/2020 (di cui Split per euro 28,32) - FORNITURA ENERGIA ELETTRICA periodo: 01.04.2020-30.04.2020 inf sovigliana;2912;1;3;2;5;4
A2A ENERGIA SPA;15/06/2020;Energia elettrica;79,51;0,00;14,34;8191752F96;Liquidazione Fattura Nr. 820000106730  del 28/05/2020 (di cui Split per euro 14,34) - FORNITURA ENERGIA ELETTRICA periodo: 01.04.2020-30.04.2020 palasport;2931;1;3;2;5;4
A2A ENERGIA SPA;15/06/2020;Energia elettrica;53,00;0,00;9,56;8191752F96;Liquidazione Fattura Nr. 820000106730  del 28/05/2020 (di cui Split per euro 9,56) - FORNITURA ENERGIA ELETTRICA periodo: 01.04.2020-30.04.2020 palasport;2930;1;3;2;5;4
A2A ENERGIA SPA;15/06/2020;Energia elettrica;844,03;0,00;152,20;8191752F96;Liquidazione Fattura Nr. 820000106725  del 28/05/2020 (di cui Split per euro 152,20) - FORNITURA ENERGIA ELETTRICA periodo: 01.04.2020-30.04.2020 museo;2926;1;3;2;5;4
A2A ENERGIA SPA;15/06/2020;Energia elettrica;187,45;0,00;33,80;8191752F96;Liquidazione Fattura Nr. 820000106729  del 28/05/2020 (di cui Split per euro 33,80) - FORNITURA ENERGIA ELETTRICA periodo: 01.04.2020-30.04.2020 uff. via fucini;2899;1;3;2;5;4
A2A ENERGIA SPA;15/06/2020;Energia elettrica;23,50;0,00;4,24;8191752F96;Liquidazione Fattura Nr. 820000106727  del 28/05/2020 (di cui Split per euro 4,24) - FORNITURA ENERGIA ELETTRICA periodo: 17.03.2020-30.04.2020 pilomat;2932;1;3;2;5;4
A2A ENERGIA SPA;15/06/2020;Energia elettrica;313,37;0,00;56,51;8191752F96;Liquidazione Fattura Nr. 820000106931  del 28/05/2020 (di cui Split per euro 56,51) - FORNITURA ENERGIA ELETTRICA periodo: 01.04.2020-30.04.2020 magazzino;2901;1;3;2;5;4
A2A ENERGIA SPA;15/06/2020;Energia elettrica;27,04;0,00;4,88;8191752F96;Liquidazione Fattura Nr. 820000106726  del 28/05/2020 (di cui Split per euro 4,88) - FORNITURA ENERGIA ELETTRICA periodo: 01.04.2020-30.04.2020 alloggi petroio;2900;1;3;2;5;4
A2A ENERGIA SPA;15/06/2020;Energia elettrica;149,52;0,00;26,96;8191752F96;Liquidazione Fattura Nr. 820000106750  del 28/05/2020 (di cui Split per euro 26,96) - FORNITURA ENERGIA ELETTRICA periodo: 01.04.2020-30.04.2020 nido;2944;1;3;2;5;4
A2A ENERGIA SPA;15/06/2020;Energia elettrica;34,77;0,00;6,27;8191752F96;Liquidazione Fattura Nr. 820000106724  del 28/05/2020 (di cui Split per euro 6,27) - FORNITURA ENERGIA ELETTRICA periodo: 01.04.2020-30.04.2020 bagni pubblici;2938;1;3;2;5;4
A2A ENERGIA SPA;15/06/2020;Energia elettrica;53,58;0,00;9,66;8191752F96;Liquidazione Fattura Nr. 820000106734  del 28/05/2020 (di cui Split per euro 9,66) - FORNITURA ENERGIA ELETTRICA periodo: 01.04.2020-30.04.2020 ex scuola anchano;2898;1;3;2;5;4
A2A ENERGIA SPA;15/06/2020;Energia elettrica;56,69;0,00;10,22;8191752F96;Liquidazione Fattura Nr. 820000106929  del 28/05/2020 (di cui Split per euro 10,22) - FORNITURA ENERGIA ELETTRICA periodo: 01.04.2020-30.04.2020 uff. info;2897;1;3;2;5;4
A2A ENERGIA SPA;15/06/2020;Energia elettrica;22,35;0,00;4,03;8191752F96;Liquidazione Fattura Nr. 820000106721  del 28/05/2020 (di cui Split per euro 4,03) - FORNITURA ENERGIA ELETTRICA periodo: 01.04.2020-30.04.2020 app radiomatori;2896;1;3;2;5;4
A2A ENERGIA SPA;15/06/2020;Energia elettrica;8,11;0,00;1,46;8191752F96;Liquidazione Fattura Nr. 820000106739  del 28/05/2020 (di cui Split per euro 1,46) - FORNITURA ENERGIA ELETTRICA periodo: 01.04.2020-30.04.2020 mercato;2933;1;3;2;5;4
A2A ENERGIA SPA;15/06/2020;Energia elettrica;480,24;0,00;86,60;8191752F96;Liquidazione Fattura Nr. 820000106723  del 28/05/2020 (di cui Split per euro 86,60) - FORNITURA ENERGIA ELETTRICA periodo: 01.04.2020-30.04.2020 primaria spicchio;2918;1;3;2;5;4
A2A ENERGIA SPA;15/06/2020;Energia elettrica;43,65;0,00;7,87;8191752F96;Liquidazione Fattura Nr. 820000106930  del 28/05/2020 (di cui Split per euro 7,87) - FORNITURA ENERGIA ELETTRICA periodo: 01.04.2020-30.04.2020 fontanello;2940;1;3;2;5;4
A2A ENERGIA SPA;15/06/2020;Energia elettrica;49,29;0,00;8,89;8191752F96;Liquidazione Fattura Nr. 820000106722  del 28/05/2020 (di cui Split per euro 8,89) - FORNITURA ENERGIA ELETTRICA periodo: 01.04.2020-30.04.2020 archivio;2908;1;3;2;5;4
A2A ENERGIA SPA;15/06/2020;Energia elettrica;151,20;0,00;27,26;8191752F96;Liquidazione Fattura Nr. 820000106740  del 28/05/2020 (di cui Split per euro 27,26) - FORNITURA ENERGIA ELETTRICA periodo: 01.04.2020-30.04.2020 inf. Vinci;2913;1;3;2;5;4
A2A ENERGIA SPA;15/06/2020;Energia elettrica;41,54;0,00;7,49;8191752F96;Liquidazione Fattura Nr. 820000106746  del 28/05/2020 (di cui Split per euro 7,49) - FORNITURA ENERGIA ELETTRICA periodo: 01.04.2020-30.04.2020 fontanello;2943;1;3;2;5;4
A2A ENERGIA SPA;15/06/2020;Energia elettrica;436,35;0,00;78,68;8191752F96;Liquidazione Fattura Nr. 820000106749  del 28/05/2020 (di cui Split per euro 78,68) - FORNITURA ENERGIA ELETTRICA periodo: 01.04.2020-30.04.2020 medie sovigliana;2921;1;3;2;5;4
A2A ENERGIA SPA;15/06/2020;Energia elettrica;326,63;0,00;58,90;8191752F96;Liquidazione Fattura Nr. 820000106745  del 28/05/2020 (di cui Split per euro 58,90) - FORNITURA ENERGIA ELETTRICA periodo: 01.04.2020-30.04.2020 palazzina uzielli;2924;1;3;2;5;4
A2A ENERGIA SPA;15/06/2020;Energia elettrica;272,42;0,00;49,12;8191752F96;Liquidazione Fattura Nr. 820000106731  del 28/05/2020 (di cui Split per euro 49,12) - FORNITURA ENERGIA ELETTRICA periodo: 01.04.2020-30.04.2020 biblioteca;2923;1;3;2;5;4
A2A ENERGIA SPA;15/06/2020;Energia elettrica;110,66;0,00;19,96;8191752F96;Liquidazione Fattura Nr. 820000106735  del 28/05/2020 (di cui Split per euro 19,96) - FORNITURA ENERGIA ELETTRICA periodo: 01.04.2020-30.04.2020 infanzia spicchio;2914;1;3;2;5;4
A2A ENERGIA SPA;15/06/2020;Energia elettrica;358,47;0,00;64,64;8191752F96;Liquidazione Fattura Nr. 820000106932  del 28/05/2020 (di cui Split per euro 64,64) - FORNITURA ENERGIA ELETTRICA periodo: 01.04.2020-30.04.2020 uff. via battisti;2903;1;3;2;5;4
A2A ENERGIA SPA;15/06/2020;Energia elettrica;90,96;0,00;16,40;8191752F96;Liquidazione Fattura Nr. 820000106747  del 28/05/2020 (di cui Split per euro 16,40) - FORNITURA ENERGIA ELETTRICA periodo: 01.04.2020-30.04.2020 villa reghini;2946;1;3;2;5;4
A2A ENERGIA SPA;15/06/2020;Energia elettrica;398,44;0,00;71,85;8191752F96;Liquidazione Fattura Nr. 820000106737  del 28/05/2020 (di cui Split per euro 71,85) - FORNITURA ENERGIA ELETTRICA periodo: 01.04.2020-30.04.2020 teatro;2927;1;3;2;5;4
A2A ENERGIA SPA;15/06/2020;Energia elettrica;17.888,88;0,00;3.225,86;8191995820;Liquidazione Fattura Nr. 820000106751  del 28/05/2020 (di cui Split per euro 3.225,86) - FORNITURA ENERGIA ELETTRICA periodo: 01.04.2020-30.04.2020 kWh 83423 Importi al netto della ritenuta di garanzia del 0,5% ai sensi art.4 D.P.R.207/20;2939;1;3;2;5;4
BETTINI S.R.L.;19/06/2020;Fabbricati ad uso scolastico;12.411,96;0,00;1.128,36;Z792B1D65E;Liquidazione Fattura Nr. 107  del 17/04/2020 (di cui Split per euro 1.128,36) - RIFACIMENTO IMPERMEABILIZZAZIONE TERRAZZA A COPERTURA SCUOLA PRIMARIA SPICCHIO;2971;2;2;1;9;3
BETTINI S.R.L.;19/06/2020;Manutenzione ordinaria e riparazioni di beni immobili;2.188,90;0,00;198,99;Z9F2C836B4;Liquidazione Fattura Nr. 108  del 17/04/2020 (di cui Split per euro 198,99) - FORNITURA E POSA PANNELLI COIBENTI TERRAZZA COPERTURA SCUOLA PRIMARIA SPICCHIO;2962;1;3;2;9;8
BETTINI S.R.L.;19/06/2020;Altri beni e materiali di consumo n.a.c.;121,10;0,00;11,01;Z9F2C836B4;Liquidazione Fattura Nr. 108  del 17/04/2020 (di cui Split per euro 11,01) - FORNITURA E POSA PANNELLI COIBENTI TERRAZZA COPERTURA SCUOLA PRIMARIA SPICCHIO;2960;1;3;1;2;999
ARNO MANETTI ASCENSORI S.R.L.;19/06/2020;Manutenzione ordinaria e riparazioni di impianti e macchinari;333,06;0,00;60,06;ZE821D853D;Liquidazione Fattura Nr. 5/E  del 21/04/2020 (di cui Split per euro 60,06) - MANUTENZIONE IMPIANTI ELEVATORI 1� TRIM. 2020-Sedi istituzionali, Sc. infanzia, Sc. primaria, Sc. sec. 1� grado, Villa Reghini, RSA, Palasport 40%;2958;1;3;2;9;4
ARNO MANETTI ASCENSORI S.R.L.;19/06/2020;Manutenzione ordinaria e riparazioni di impianti e macchinari;159,21;0,00;28,71;ZE821D853D;Liquidazione Fattura Nr. 5/E  del 21/04/2020 (di cui Split per euro 28,71) - MANUTENZIONE IMPIANTI ELEVATORI 1� TRIM. 2020-Sedi istituzionali, Sc. infanzia, Sc. primaria, Sc. sec. 1� grado, Villa Reghini, RSA, Palasport 40%;2961;1;3;2;9;4
ARNO MANETTI ASCENSORI S.R.L.;19/06/2020;Manutenzione ordinaria e riparazioni di impianti e macchinari;159,21;0,00;28,71;ZE821D853D;Liquidazione Fattura Nr. 5/E  del 21/04/2020 (di cui Split per euro 28,71) - MANUTENZIONE IMPIANTI ELEVATORI 1� TRIM. 2020-Sedi istituzionali, Sc. infanzia, Sc. primaria, Sc. sec. 1� grado, Villa Reghini, RSA, Palasport 40%;2963;1;3;2;9;4
ARNO MANETTI ASCENSORI S.R.L.;19/06/2020;Manutenzione ordinaria e riparazioni di impianti e macchinari;106,14;0,00;19,14;ZE821D853D;Liquidazione Fattura Nr. 5/E  del 21/04/2020 (di cui Split per euro 19,14) - MANUTENZIONE IMPIANTI ELEVATORI 1� TRIM. 2020-Sedi istituzionali, Sc. infanzia, Sc. primaria, Sc. sec. 1� grado, Villa Reghini, RSA, Palasport 40%;2959;1;3;2;9;4
ARNO MANETTI ASCENSORI S.R.L.;19/06/2020;Manutenzione ordinaria e riparazioni di impianti e macchinari;106,14;0,00;19,14;ZE821D853D;Liquidazione Fattura Nr. 5/E  del 21/04/2020 (di cui Split per euro 19,14) - MANUTENZIONE IMPIANTI ELEVATORI 1� TRIM. 2020-Sedi istituzionali, Sc. infanzia, Sc. primaria, Sc. sec. 1� grado, Villa Reghini, RSA, Palasport 40%;2969;1;3;2;9;4
ARNO MANETTI ASCENSORI S.R.L.;19/06/2020;Manutenzione ordinaria e riparazioni di impianti e macchinari;106,14;0,00;19,14;ZE821D853D;Liquidazione Fattura Nr. 5/E  del 21/04/2020 (di cui Split per euro 19,14) - MANUTENZIONE IMPIANTI ELEVATORI 1� TRIM. 2020-Sedi istituzionali, Sc. infanzia, Sc. primaria, Sc. sec. 1� grado, Villa Reghini, RSA, Palasport 40%;2970;1;3;2;9;4
ARNO MANETTI ASCENSORI S.R.L.;19/06/2020;Manutenzione ordinaria e riparazioni di impianti e macchinari;72,96;0,00;13,16;ZE821D853D;Liquidazione Fattura Nr. 5/E  del 21/04/2020 (di cui Split per euro 13,16) - MANUTENZIONE IMPIANTI ELEVATORI 1� TRIM. 2020-Sedi istituzionali, Sc. infanzia, Sc. primaria, Sc. sec. 1� grado, Villa Reghini, RSA, Palasport 40%;2966;1;3;2;9;4
ARNO MANETTI ASCENSORI S.R.L.;19/06/2020;Manutenzione ordinaria e riparazioni di impianti e macchinari;318,42;0,00;57,42;ZE821D853D;Liquidazione Fattura Nr. 6/E  del 21/04/2020 (di cui Split per euro 57,42) - MANUTENZIONE IMPIANTI ELEVATORI 1� TRIM. 2020-Museo, Palazzina, Casa Natale, Nido, Palasport 60%;2964;1;3;2;9;4
ARNO MANETTI ASCENSORI S.R.L.;19/06/2020;Manutenzione ordinaria e riparazioni di impianti e macchinari;109,43;0,00;19,73;ZE821D853D;Liquidazione Fattura Nr. 6/E  del 21/04/2020 (di cui Split per euro 19,73) - MANUTENZIONE IMPIANTI ELEVATORI 1� TRIM. 2020-Museo, Palazzina, Casa Natale, Nido, Palasport 60%;2965;1;3;2;9;4
ARNO MANETTI ASCENSORI S.R.L.;19/06/2020;Manutenzione ordinaria e riparazioni di impianti e macchinari;106,14;0,00;19,14;ZE821D853D;Liquidazione Fattura Nr. 6/E  del 21/04/2020 (di cui Split per euro 19,14) - MANUTENZIONE IMPIANTI ELEVATORI 1� TRIM. 2020-Museo, Palazzina, Casa Natale, Nido, Palasport 60%;2968;1;3;2;9;4
UNIONE DEI COMUNI CIRCONDARIO EMPOLESE VALDELSA;19/06/2020;Trasferimenti correnti a Unioni di Comuni;1.081,20;0,00;0,00;;RIMBORSO SPESE ANTICIPATE UNIONE DEI COMUNI EMPOLESE VALDELSA;2954;1;4;1;2;5
M.P. ASSOCIAZIONE PROFESSIONALE;19/06/2020;Incarichi professionali per la realizzazione di investimenti;1.839,76;290,00;0,00;Z6B2940882;LIQUIDAZIONE FATTURA NR. 10/2020  DEL 11/05/2020 - RIQUALIFICAZIONE IMPIANTO TERMICO PRESSO VARI EDIFICI COMUNALI - NIDO D'INFANZIA PICCINO PICCI�, SCUOLA D'INFANZIA ARCOBALENO, SCUOLA PRIMARIA S. ALERAMO E MAGAZZINO COMUNALE;2975;2;2;3;5;1
O.L.V. SRL IMPIANTI ELETTRICI CIVILI ED INDUSTRIALI;19/06/2020;Fabbricati ad uso scolastico;18.548,84;0,00;1.686,26;Z702B3AA91;Liquidazione Fattura Nr. 89  del 25/05/2020 (di cui Split per euro 1.686,26) - RIQUALIF.ENERGETICA E MIGLIORAMENTO SISMICO SCUOLA SECONDARIA PRIMO GRADO SOVIGLIANA - LAVORI PRELIMINARI;2972;2;2;1;9;3
O.L.V. SRL IMPIANTI ELETTRICI CIVILI ED INDUSTRIALI;19/06/2020;Fabbricati ad uso scolastico;3.702,68;0,00;336,61;Z702B3AA91;Liquidazione Fattura Nr. 89  del 25/05/2020 (di cui Split per euro 336,61) - RIQUALIF.ENERGETICA E MIGLIORAMENTO SISMICO SCUOLA SECONDARIA PRIMO GRADO SOVIGLIANA - LAVORI PRELIMINARI;2973;2;2;1;9;3
A.N.A.C. - AUTORITA' NAZIONALE ANTICORRUZIONE;19/06/2020;Trasferimenti correnti a altre Amministrazioni Centrali n.a.c.;60,00;0,00;0,00;;Contributo ANAC 1� quadrimestre anno 2020;2955;1;4;1;1;999
S.I.D.E.A. ITALIA SRL;19/06/2020;Manutenzione ordinaria e riparazioni di beni immobili;3.294,00;0,00;594,00;Z402BA6705;Liquidazione Fattura Nr. 25/PA2020  del 09/04/2020 (di cui Split per euro 594,00) - Manutenzione fontanelli Apparita, Vitolini e Vinci;2967;1;3;2;9;8
ALFAROLI CASINI ASSOCIATI;19/06/2020;Incarichi professionali per la realizzazione di investimenti;1.944,84;306,56;0,00;Z3E2BBEEAB;LIQUIDAZIONE FATTURA NR. 11  DEL 07/05/2020 - PROGETTAZIONE ESECUTIVA E DIREZIONE LAVORI RELATIVI ALLA COSTRUZIONE DI 56 OSSARI NEL CIMITERO DI SOVIGLIANA ? DETERMINA A CONTRARRE ? AFFIDAMENTO ALFAROLI CASINI ASOCIATI;2974;2;2;3;5;1
AMMINISTRATORI COMUNALI;22/06/2020;Organi istituzionali dell'amministrazione - indennit�;6.894,12;0,00;0,00;;stipendio 06;2976;1;3;2;1;1
CO&SO EMPOLI - CONS. DI COOP. SOCIALI - SOCIETA' COOPERATIVA;24/06/2020;Altre spese per contratti di servizio pubblico;454,19;0,00;81,90;7551132F3D;Liquidazione Fattura Nr. 000335-2C0  del 20/04/2020 (di cui Split per euro 81,90) - pulizie marzo 2020 reverse charge - rif. det. 25/2019;3243;1;3;2;15;999
CO&SO EMPOLI - CONS. DI COOP. SOCIALI - SOCIETA' COOPERATIVA;24/06/2020;Altre spese per contratti di servizio pubblico;2.369,19;0,00;427,23;7551132F3D;Liquidazione Fattura Nr. 000336-2C0  del 20/04/2020 (di cui Split per euro 427,23) - Fatt. regime sciss.pag.;3245;1;3;2;15;999
CO&SO EMPOLI - CONS. DI COOP. SOCIALI - SOCIETA' COOPERATIVA;24/06/2020;Altre spese per contratti di servizio pubblico;7.702,02;0,00;0,00;7551132F3D;Liquidazione Fattura Nr. 000334-2C0  del 20/04/2020 - Fattura vendita;3244;1;3;2;15;999
ALIA SERVIZI AMBIENTALI S.P.A.;24/06/2020;Contratti di servizio per la raccolta rifiuti;188.341,82;0,00;17.121,98;4726694F44;"Liquidazione Fattura Nr. 0000133009  del 31/05/2020 (di cui Split per euro 17.121,98) -  Iva da versare a cura del cessionario o committente ai sensi dell'art.17 -ter del D.P.R. nr.633/1972 Scissione pagamenti GESTIONE RIFIUTI MAGGIO 2020
";3246;1;3;2;15;4
CASSA DEPOSITI E PRESTITI S.P.A. PER M.E.F.;25/06/2020;Interessi passivi a Cassa Depositi e Prestiti SPA su mutui e altri finanziamenti a medio lungo termine;804,73;0,00;0,00;;INTERESSI PASSIVI MUTUI CDDP- MEF 008-0003937-06086-30062020;3247;1;7;5;4;3
SEZIONE REGIONALE TOSCANA DELL'ALBO GESTORI AMBIENTALI PRESSO SEDE CCIAA DI FIRE;29/06/2020;Altre spese per servizi amministrativi;50,00;0,00;0,00;;MAV N. 36042199901142321 ISCRIZIONE ALBO GESTORI AMBIENTALI ANNO 2020;3250;1;3;2;16;999
AGENZIA DELLE ENTRATE - RISCOSSIONE;29/06/2020;Altri servizi diversi n.a.c.;1.106,92;0,00;0,00;;codice ente 03491 - rimborso spese art. 17 - anno 2019;3249;1;3;2;99;999
DAMAZ S.R.L. - INGROSSO CASALINGHI;01/07/2020;Altri beni e materiali di consumo n.a.c.;308,86;0,00;55,70;Z38216FE25;Liquidazione Fattura Nr. 30658P  del 17/04/2020 (di cui Split per euro 55,70) - ORDINE N. 9 X DITTA;3277;1;3;1;2;999
DAMAZ S.R.L. - INGROSSO CASALINGHI;01/07/2020;Altri beni e materiali di consumo n.a.c.;65,98;0,00;11,90;Z38216FE25;Liquidazione Fattura Nr. 30659P  del 17/04/2020 (di cui Split per euro 11,90) - ordine n. 8 x DITTA;3278;1;3;1;2;999
EREDI LEPORATTI GUIDO S.A.S.;01/07/2020;Contratti di servizio di trasporto pubblico;1.228,46;0,00;111,68;Z7C2CD7360;Liquidazione Fattura Nr. 05/20  del 29/05/2020 (di cui Split per euro 111,68) - FATTURA TPL MENSILITA' MAGGIO 2020;3286;1;3;2;15;1
ALIMENTARI GASTRONOMIA DA ARIANNA DI NERI ARIANNA;01/07/2020;Generi alimentari;640,00;0,00;0,00;;Liquidazione Fattura Nr. 06  del 25/05/2020 - BUONI EMERGENZA COVID-19 - APRILE 2020;3259;1;3;1;2;11
ALIMENTARI GASTRONOMIA DA ARIANNA DI NERI ARIANNA;01/07/2020;Generi alimentari;270,00;0,00;0,00;;Liquidazione Fattura Nr. 08  del 15/06/2020 - BUONI COVID MAGGIO 2020;3260;1;3;1;2;11
ASSOCIAZIONE CULTURALE IL PONTE;01/07/2020;Altre spese per contratti di servizio pubblico;6.135,97;0,00;0,00;7172254B3A;Liquidazione Fattura Nr. 7  del 06/05/2020 - SERVIZIO CONCESSIONE SERVIZI EDUCATIVI PER L'INFANZIA E SERVIZI EXTRA-SCOLASTICI MESI DI GENNAIO E FEBBRAIO 2020;3292;1;3;2;15;999
CIRCOLO RICREATIVO O. RISTORI;01/07/2020;Trasferimenti correnti a Istituzioni Sociali Private ;330,00;13,20;0,00;;CONSULTA ASSOCIAZIONI - CONCESSIONE CONTRIBUTO ALL'ASSOCIAZIONE AL CIRCOLO O.RISTORI PER INIZIATIVA I COLORI DELLE ASSOCIAZIONI 2018 ;3271;1;4;4;1;1
ESKIMO COOP. SOCIALE ONLUS;01/07/2020;Altri servizi diversi n.a.c.;866,20;0,00;156,20;ZC52B2C96B;Liquidazione Fattura Nr. FATTPA 46_20 del 29/05/2020 - APPALTO SERVIZIO DI ATTACCHINAGGIO RELATIVO ALLE PUBBLICHE AFFISSIONI DAL 01.01.2020 AL 31.03.2020 - DETERMINA A CONTRARRE E AFFIDAMENTO (di cui Split per euro 156,20);3276;1;3;2;99;999
CIR FOOD S.C. DIVISIONE EUDANIA;01/07/2020;Contratti di servizio per le mense scolastiche;4.532,29;0,00;174,32;7769463BAF;Liquidazione Fattura Nr. 5200008364  del 30/04/2020 (di cui Split per euro 174,32) - Destinatario:0000100288,COMUNE DI VINCI,Piazza Leonardo 29,VINCI,50059,FI Trattenute DPR RIT 0,5 % ART. 4 C.3 DPR 207/2010 di 21,90- RIF2: SER.RIST.SCOLAST;3285;1;3;2;15;6
CO&SO EMPOLI - CONS. DI COOP. SOCIALI - SOCIETA' COOPERATIVA;01/07/2020;Altre spese per contratti di servizio pubblico;1.915,76;0,00;91,23;6927708D7B;Liquidazione Fattura Nr. 000379-2C0  del 30/04/2020 (di cui Split per euro 91,23) - SOSTEGNO HANDICAP NELL'AMBITO SCOLASTICO SVOLTO NEL MESE DI MARZO 2020;3291;1;3;2;15;999
CO&SO EMPOLI - CONS. DI COOP. SOCIALI - SOCIETA' COOPERATIVA;01/07/2020;Altre spese per contratti di servizio pubblico;1.694,75;0,00;80,70;6927708D7B;Liquidazione Fattura Nr. 000379-2C0  del 30/04/2020 (di cui Split per euro 80,70) - SOSTEGNO HANDICAP NELL'AMBITO SCOLASTICO SVOLTO NEL MESE DI MARZO 2020;3290;1;3;2;15;999
V.A.B. VIGILANZA ANTICENDI BOSCHIVI;01/07/2020;Altri servizi diversi n.a.c.;10.000,00;0,00;0,00;ZC9258D153;Liquidazione Fattura Nr. FPA 5/20  del 01/06/2020 - attivit� integrativa e di supporto a servizi di pubblico interesse-acconto 2020;3287;1;3;2;99;999
COOPERATIVA  DI CONSUMO DI CERRETO GUIDI E VINCI S.C.;01/07/2020;Generi alimentari;300,00;0,00;0,00;;Liquidazione Fattura Nr. 8/7  del 30/05/2020 - BUONI EMERGENZA COVID-19 MAGGIO 2020;3261;1;3;1;2;11
ASSOCIAZIONE PORTE APERTE  APS-ONLUS;01/07/2020;Trasferimenti correnti a Istituzioni Sociali Private ;80,00;0,00;0,00;;CONSULTA ASSOCIAZIONI - CONCESSIONE CONTRIBUTO ALL'ASSOCIAZIONE PORTE APERTE PER INIZIATIVA I COLORI DELLE ASSOCIAZIONI 2018 ;3251;1;4;4;1;1
PANAPESCA S.P.A.;01/07/2020;Generi alimentari;260,00;0,00;0,00;;Liquidazione Fattura Nr. 11/200013234  del 17/06/2020 - buoni covid maggio 2020;3268;1;3;1;2;11
SCUOLA MATERNA PARROCCHIALE DON SERGIO CIONI;01/07/2020;Trasferimenti correnti a Istituzioni Sociali Private ;7.270,10;0,00;0,00;;CONTRIBUTI REGIONALI PER IL SOSTEGNO DELLE SCUOLE DELL'INFANZIA PARITARIE PRIVATE PER L'ANNO SCOLASTICO 2019/2020;3284;1;4;4;1;1
CRISTOFORO SOC.COOP. SOCIALE ONLUS;01/07/2020;Altri servizi diversi n.a.c.;1.285,77;0,00;116,89;7094139CB0;Liquidazione Fattura Nr. 505. 20006/ 2020  del 27/04/2020 (di cui Split per euro 116,89) - GESTIONE SERVIZIO ACCOMPAGNAMENTO SVOLTO NEL MESE DI MARZO 2020;3282;1;3;2;99;999
CRISTOFORO SOC.COOP. SOCIALE ONLUS;01/07/2020;Altri servizi diversi n.a.c.;144,16;0,00;13,11;7094139CB0;Liquidazione Fattura Nr. 506. 20006/ 2020  del 27/04/2020 (di cui Split per euro 13,11) - GESTIONE SERVIZIO PRESCUOLA SVOLTO NEL MESE DI MARZO 2020;3283;1;3;2;99;999
COOPERATIVA  ZOE S.C.S.;01/07/2020;Servizi di pulizia e lavanderia;1.578,99;0,00;284,74;7317223B6E;Liquidazione Fattura Nr. 463/00  del 30/04/2020 (di cui Split per euro 284,74) - pulizia edifici comunali aprile 2020;3279;1;3;2;13;2
COOPERATIVA  ZOE S.C.S.;01/07/2020;Servizi di pulizia e lavanderia;145,19;0,00;26,18;7317223B6E;Liquidazione Fattura Nr. 517/00  del 30/04/2020 (di cui Split per euro 26,18) - pulizia nuovo ufficio turistico aprile 2020;3281;1;3;2;13;2
COOPERATIVA  ZOE S.C.S.;01/07/2020;Servizi di pulizia e lavanderia;145,19;0,00;26,18;7317223B6E;Liquidazione Fattura Nr. 516/00  del 30/04/2020 (di cui Split per euro 26,18) - pulizia biblioteche aprile 2020;3280;1;3;2;13;2
STUDIO LEGALE FALORNI - DE MEO S.S.;01/07/2020;Patrocinio legale;3.647,80;575,00;0,00;ZF82BF6524;LIQUIDAZIONE FATTURA NR. 45/PA  DEL 23/04/2020 - CAUSA BAR LEONARDO - A SALDO;3273;1;3;2;11;6
STUDIO LEGALE FALORNI - DE MEO S.S.;01/07/2020;Patrocinio legale;6.978,40;1.100,00;0,00;ZAFOC6CF42;LIQUIDAZIONE FATTURA NR. 43/PA  DEL 23/04/2020 - CAUSA L. E S. DELIBERA INCARICO GC173/2013 A SALDO - IMP. DS1213;3274;1;3;2;11;6
STUDIO LEGALE FALORNI - DE MEO S.S.;01/07/2020;Patrocinio legale;3.647,80;575,00;0,00;Z7B2BE01DB;LIQUIDAZIONE FATTURA NR. 44/PA  DEL 23/04/2020 - CAUSA SCIA GIOBER - A SALDO;3275;1;3;2;11;6
STUDIO LEGALE FALORNI - DE MEO S.S.;01/07/2020;Patrocinio legale;13.132,08;2.070,00;0,00;ZCA2A154CF;LIQUIDAZIONE FATTURA NR. 46/PA  DEL 28/04/2020 - CONSULENZA E ASSISTENZA STRAGIUDIZIALE IMPIANTO SPORTIVO PETROIO;3272;1;3;2;11;6
PELLEMODA SRL;01/07/2020;Altri beni e materiali di consumo n.a.c.;4.880,00;0,00;880,00;ZDA2C9C7EE;Liquidazione Fattura Nr. 799/70  del 30/04/2020 (di cui Split per euro 880,00) - FORNITURA DI 5000  MASCHERINE PER COVID;3270;1;3;1;2;999
IL PICCOLO PRINCIPE SOC. COOP. SOC. ONLUS;01/07/2020;Altri servizi diversi n.a.c.;3.831,30;0,00;182,44;754997761D;Liquidazione Fattura Nr. 000022-2C0  del 31/03/2020 (di cui Split per euro 182,44) - GESTIONE DOPOSCUOLA DAL 7/01/2020 AL 4/03/2020;3289;1;3;2;99;999
IL PICCOLO PRINCIPE SOC. COOP. SOC. ONLUS;01/07/2020;Altri servizi diversi n.a.c.;5.454,73;0,00;259,75;754997761D;Liquidazione Fattura Nr. 000023-2C0  del 31/03/2020 (di cui Split per euro 259,75) - GESTIONE CAG DAL 7/1/20 AL 4/3/20, ORE NON FRONTALI N. 32;3288;1;3;2;99;999
CRISTINA CASALINI ALIMENTARI CRISTINA;01/07/2020;Generi alimentari;100,00;0,00;0,00;;Liquidazione Fattura Nr. 1/PA  del 18/06/2020 - BUONI COVID APRILE 2020;3262;1;3;1;2;11
CRISTINA CASALINI ALIMENTARI CRISTINA;01/07/2020;Generi alimentari;30,00;0,00;0,00;;Liquidazione Fattura Nr. 2/PA  del 19/06/2020 - buoni covid maggio 2020;3263;1;3;1;2;11
PALMUCCI ALESSANDRA;01/07/2020;Generi alimentari;40,00;0,00;0,00;;Liquidazione Fattura Nr. 123  del 10/06/2020 - RIMBORSO BUONI COVID;3267;1;3;1;2;11
ALIMENTARI DINO DI GIOVACCHINI  SANDRA;01/07/2020;Generi alimentari;80,00;0,00;0,00;;Liquidazione Fattura Nr. 1  del 27/05/2020 - BUONI SPESA EMERGENZA COVID 19 APRILE 2020;3257;1;3;1;2;11
ALIMENTARI DINO DI GIOVACCHINI  SANDRA;01/07/2020;Generi alimentari;80,00;0,00;0,00;;Liquidazione Fattura Nr. 2  del 10/06/2020 - BUONI SPESA EMERGENZA COVID MAGGIO 2020;3258;1;3;1;2;11
PANIFICIO VECCI PIERO E C. SNC;01/07/2020;Generi alimentari;80,00;0,00;0,00;;Liquidazione Fattura Nr. 67  del 10/06/2020 - BUONI EMERGENZA COVID-19 - APRILE 2020;3269;1;3;1;2;11
GIGLI BAR PASTICCERIA E PANETTERIA  DI GIGLI ALESSANDRO;01/07/2020;Generi alimentari;20,00;0,00;0,00;;Liquidazione Fattura Nr. 00120000231  del 02/05/2020 - EMERGENZA COVID-19 - BUONI COVID APRILE 2020;3266;1;3;1;2;11
FARMACIA PIETRAMARINA SNC DI PICARDI ROSA E MELILLO FABIO;01/07/2020;Generi alimentari;450,00;0,00;0,00;;Liquidazione Fattura Nr. 39 / PA  del 08/06/2020 - buoni covid mese di maggio 2020;3265;1;3;1;2;11
FARMACIA MANNORI SAS DI R. MANNORI & C.;01/07/2020;Generi alimentari;420,00;0,00;0,00;;Liquidazione Fattura Nr. 54 / PA  del 13/06/2020 - EMERGENZA COVID-19 - BUONI MAGGIO 2020;3264;1;3;1;2;11
FARMACIA ZITO DI ZITO CHIARA;06/07/2020;Generi alimentari;20,00;0,00;0,00;;Liquidazione Fattura Nr. 2/PA  del 20/06/2020 - BUONI SPESA EMERGENZA COVID MAGGIO 2020;3354;1;3;1;2;11
COLORIFICIO CAPPELLI  DI STEFANO CAPPELLI;06/07/2020;Altri beni e materiali di consumo n.a.c.;466,15;0,00;84,06;Z10279ED9E;Liquidazione Fattura Nr. 891  del 30/04/2020 (di cui Split per euro 84,06) - FORNITURA MATERIALI PER VERNICIATURA _ DETERMINA A CONTRARRE E AFFIDAMENTO COLORIFICIO CAPPELLI DI STEFANO CAPPELLI;3332;1;3;1;2;999
COLORIFICIO CAPPELLI  DI STEFANO CAPPELLI;06/07/2020;Altri beni e materiali di consumo n.a.c.;57,85;0,00;10,43;Z10279ED9E;Liquidazione Fattura Nr. 891  del 30/04/2020 (di cui Split per euro 10,43) - FORNITURA MATERIALI PER VERNICIATURA _ DETERMINA A CONTRARRE E AFFIDAMENTO COLORIFICIO CAPPELLI DI STEFANO CAPPELLI;3325;1;3;1;2;999
COLORIFICIO CAPPELLI  DI STEFANO CAPPELLI;06/07/2020;Altri beni e materiali di consumo n.a.c.;2,93;0,00;0,53;Z10279ED9E;Liquidazione Fattura Nr. 891  del 30/04/2020 (di cui Split per euro 0,53) - FORNITURA MATERIALI PER VERNICIATURA _ DETERMINA A CONTRARRE E AFFIDAMENTO COLORIFICIO CAPPELLI DI STEFANO CAPPELLI;3330;1;3;1;2;999
DAMAZ S.R.L. - INGROSSO CASALINGHI;06/07/2020;Altri beni e materiali di consumo n.a.c.;178,94;0,00;32,27;Z38216FE25;Liquidazione Fattura Nr. 30767P  del 04/05/2020 (di cui Split per euro 32,27) - ordine n. 10 x ditta;3341;1;3;1;2;999
DAMAZ S.R.L. - INGROSSO CASALINGHI;06/07/2020;Altri beni e materiali di consumo n.a.c.;62,44;0,00;11,26;Z38216FE25;Liquidazione Fattura Nr. 30884P  del 20/05/2020 (di cui Split per euro 11,26) - ordine n. 11 x ditta - 1� consegna;3342;1;3;1;2;999
DAMAZ S.R.L. - INGROSSO CASALINGHI;06/07/2020;Altri beni e materiali di consumo n.a.c.;133,04;0,00;23,99;Z38216FE25;Liquidazione Fattura Nr. 30932P  del 25/05/2020 (di cui Split per euro 23,99) - ordine n. 11 x ditta - 2� consegna;3343;1;3;1;2;999
DAMAZ S.R.L. - INGROSSO CASALINGHI;06/07/2020;Altri beni e materiali di consumo n.a.c.;220,04;0,00;39,68;Z38216FE25;Liquidazione Fattura Nr. 30990P  del 04/06/2020 (di cui Split per euro 39,68) - ordine n. 12 x DITTA - 1� consegna;3344;1;3;1;2;999
SCOTTI VEICOLI INDUSTRIALI S.P.A.;06/07/2020;Manutenzione ordinaria e riparazioni di mezzi di trasporto ad uso civile, di sicurezza e ordine pubblico;633,83;0,00;112,13;ZEE2CEC307;Liquidazione Fattura Nr. 2020_63_630065  del 12/05/2020 (di cui Split per euro 112,13) - REVISIONE E TAGLIANDO DEL MEZZO IVECO DAILY TARGATO DR369FB_ DETERMINA A CONTRARRE E AFFIDAMENTO DITTA SCOTTI VEICOLI INDUSTRIALI SPA;3327;1;3;2;9;1
MATERIALI EDILI BALDACCI DI BALDACCI RENATO E C. SNC;06/07/2020;Altri beni e materiali di consumo n.a.c.;271,51;0,00;48,96;ZE42C88326;Liquidazione Fattura Nr. 452/0  del 30/04/2020 (di cui Split per euro 48,96) - FORNITURA DI MATERIALI EDILI FINALIZZATI ALL'ESECUZIONE DI LAVORI DI MANUTENZIONE SU SCUOLE, EDIFICI E STRADE COMUNALI - DETERMINA A CONTRARRE E AFFIDAMENTO DITT;3331;1;3;1;2;999
MATERIALI EDILI BALDACCI DI BALDACCI RENATO E C. SNC;06/07/2020;Altri beni e materiali di consumo n.a.c.;441,06;0,00;79,54;ZE42C88326;Liquidazione Fattura Nr. 533/0  del 31/05/2020 (di cui Split per euro 79,54) - FORNITURA DI MATERIALI EDILI FINALIZZATI ALL'ESECUZIONE DI LAVORI DI MANUTENZIONE SU SCUOLE, EDIFICI E STRADE COMUNALI - DETERMINA A CONTRARRE E AFFIDAMENTO DITT;3333;1;3;1;2;999
MATERIALI EDILI BALDACCI DI BALDACCI RENATO E C. SNC;06/07/2020;Altri beni e materiali di consumo n.a.c.;100,00;0,00;18,03;ZE42C88326;Liquidazione Fattura Nr. 533/0  del 31/05/2020 (di cui Split per euro 18,03) - FORNITURA DI MATERIALI EDILI FINALIZZATI ALL'ESECUZIONE DI LAVORI DI MANUTENZIONE SU SCUOLE, EDIFICI E STRADE COMUNALI - DETERMINA A CONTRARRE E AFFIDAMENTO DITT;3334;1;3;1;2;999
SINTESI S.R.L. - SISTEMI INTEGRATI PER UFFICIO;06/07/2020;Tablet e dispositivi di telefonia fissa e mobile;3.367,20;0,00;607,20;ZA32D070D9;Liquidazione Fattura Nr. 22/E  del 30/06/2020 (di cui Split per euro 607,20) - FATTURE VENDITA ENTI P.;3323;2;2;1;7;5
HYMACH  S.R.L.;06/07/2020;Manutenzione ordinaria e riparazioni di mezzi di trasporto ad uso civile, di sicurezza e ordine pubblico;1.670,72;0,00;301,28;Z372C93DDF;Liquidazione Fattura Nr. 214  del 15/04/2020 (di cui Split per euro 301,28) - FORNITURA RICAMBI PER TRINCIAFOSSI HIMACH;3329;1;3;2;9;1
ETRURIA P.A. SRL;06/07/2020;Stampa e rilegatura;311,10;0,00;56,10;ZAC2A97038;Liquidazione Fattura Nr. 846/00000  del 29/05/2020 (di cui Split per euro 56,10) - DETERMINA A CONTRARRE E AFFIDAMENTO DIRETTO EX ART. 36 COMMA 2 LETTERA A) DLGS 50/2016 DEL SERVIZIO DI RILEGATURA ATTI DI STATI CIVILE E LISTE DI LEVA ANNI -;3340;1;3;2;13;4
ETRURIA P.A. SRL;06/07/2020;Gestione e manutenzione applicazioni;27.137,68;0,00;4.893,68;Z2B2D39CB0;Liquidazione Fattura Nr. 1074/00000  del 30/06/2020 (di cui Split per euro 4.893,68) - ACQUISTO DEL SERVIZIO DI ASSISTENZA E MANUTENZIONE ANNO 2020 DEGLI APPLICATIVI DELLA DITTA DATATAGRAPH SRL IN DOTAZIONE ALL'ENTE MEDIANTE ORDINE DIRETTO ;3303;1;3;2;19;1
LEGISLAZIONE TECNICA S.R.L.;06/07/2020;Acquisto di servizi per altre spese per formazione e addestramento n.a.c.;39,00;0,00;0,00;Z1F2CEA3BF;"Liquidazione Fattura Nr. 323/PA/2020  del 03/06/2020 - FORMAZIONE DELLE RISORSE UMANE DELL'ENTE: ACQUISTO DEL SERVIZIO DI FORMAZIONE WEBINAR ""LAVORI PUBBLICI:RIAPERTURA DEI CANTIERI E VICENDE CONTRATTUALI"" PER UN DIPENDENTE-DETERMINA A CONT";3294;1;3;2;4;999
LEGISLAZIONE TECNICA S.R.L.;06/07/2020;Accesso a banche dati e a pubblicazioni on line;165,60;0,00;0,00;Z112CA677F;Liquidazione Fattura Nr. 251/PA/2020  del 08/05/2020 - SERVIZI DI ABBONAMENTI VARI ANNO 2020 PER GLI UFFICI DELL'ENTE-DETERMINA A CONTRARRE E DI AFFIDAMENTO DIRETTO;3295;1;3;2;5;3
COOPERATIVA  ZOE S.C.S.;06/07/2020;Servizi di pulizia e lavanderia;444,65;0,00;80,18;7317223B6E;Liquidazione Fattura Nr. 518/00  del 30/04/2020 (di cui Split per euro 80,18) - pulizie palestre aprile 2020 (straord);3347;1;3;2;13;2
COOPERATIVA  ZOE S.C.S.;06/07/2020;Servizi di pulizia e lavanderia;1.978,27;0,00;356,74;7317223B6E;Liquidazione Fattura Nr. 626/00  del 31/05/2020 (di cui Split per euro 356,74) - pulizia edicom maggio 2020;3345;1;3;2;13;2
COOPERATIVA  ZOE S.C.S.;06/07/2020;Servizi di pulizia e lavanderia;1.578,99;0,00;284,74;7317223B6E;Liquidazione Fattura Nr. 627/00  del 31/05/2020 (di cui Split per euro 284,74) - pulizie anticovid con VARIANTE maggiom 2020;3352;1;3;2;13;2
COOPERATIVA  ZOE S.C.S.;06/07/2020;Servizi di pulizia e lavanderia;145,19;0,00;26,18;7317223B6E;Liquidazione Fattura Nr. 628/00  del 31/05/2020 (di cui Split per euro 26,18) - pulizia biblioteche maggio 2020;3346;1;3;2;13;2
COOPERATIVA  ZOE S.C.S.;06/07/2020;Servizi di pulizia e lavanderia;145,19;0,00;26,18;7317223B6E;Liquidazione Fattura Nr. 629/00  del 31/05/2020 (di cui Split per euro 26,18) - pulizia nuovo utu maggio 2020;3348;1;3;2;13;2
BNP PARIBAS LEASE GROUP SA;06/07/2020;Noleggi di impianti e macchinari;137,32;0,00;24,76;ZB11978D4E;Liquidazione Fattura Nr. JBF15223  del 22/06/2020 (di cui Split per euro 24,76) - Contratto di: Locazione Operativa N. Ctr: Y0023818 Lotto: 001 Cliente: 11181340 Codice fiscale: 0000082003210489 Partita IVA: IT01916730482 Locatario:  ;3304;1;3;2;7;8
ASSOCIAZIONE  NAZ.LE CASE DELLA MEMORIA;06/07/2020;Quote di associazioni;300,00;0,00;0,00;;"QUOTA DI ADESIONE PER L'ANNO 2020 AD ""ASSOCIAZIONE NAZIONALE CASE DELLA MEMORIA""";3349;1;3;2;99;3
CONVERGE S.P.A.;06/07/2020;Noleggi di hardware;634,89;0,00;114,49;Z9D1DC27F4;Liquidazione Fattura Nr. 20304577  del 30/06/2020 (di cui Split per euro 114,49) - AFFIDAMENTO DEL SERVIZIO DI NOLEGGIO PER N.2 MACCHINE MULTIFUNZIONE A NOLEGGIO PER UFFICIO TURISTICO E PER UFFICIO TECNICO MEDIANTE ADESIONE A CONVENZIONE CO;3305;1;3;2;7;4
EDIL GREEN SRL;06/07/2020;Beni immobili n.a.c.;3.782,00;0,00;682,00;ZB32B24EE9;Liquidazione Fattura Nr. 16  del 17/04/2020 (di cui Split per euro 682,00) - PAVIMENTAZIONE ANTITRAUMA PER GIOCHI GIARDINO DELLA DAMA;3335;2;2;1;9;999
AUTOGAMMA SNC DI LETTIERI FABIO & C.;06/07/2020;Manutenzione ordinaria e riparazioni di mezzi di trasporto ad uso civile, di sicurezza e ordine pubblico;308,78;0,00;55,68;ZD22CA94A7;Liquidazione Fattura Nr. 7/R  del 30/04/2020 (di cui Split per euro 55,68) - FORNITURA batterie fiat iveco 120;3328;1;3;2;9;1
ASSOCIAZIONE MUS.E;06/07/2020;Quote di associazioni;1.000,00;0,00;0,00;;"QUOTA DI ADESIONE PER L'ANNO 2020 AD ""ASSOCIAZIONE MUS.E""";3350;1;3;2;99;3
BANTI LORENZO;06/07/2020;Rimborsi in conto capitale a Famiglie di somme non dovute o incassate in eccesso;3.018,88;0,00;0,00;;RIMBORSO ONERI DI URBANIZZAZIONE PRIMARIA, SECONDARIA E COSTO DI COSTRUZIONE SU PERMESSO DI COSTRUIRE N. 31/2017,  ANNULLATO CON DETERMINA SETTORE 3, N. 98/2020;3336;2;5;4;4;1
TIM S.P.A. DIREZIONE E COORDINAMENTO VIVENDI SA;06/07/2020;Servizi di rete per trasmissione dati e VoIP e relativa manutenzione;225,36;0,00;40,64;Z4419D9E67;Liquidazione Fattura Nr. 8L00346493  del 05/06/2020 (di cui Split per euro 40,64) - 4BIM 2020;3299;1;3;2;19;4
TIM S.P.A. DIREZIONE E COORDINAMENTO VIVENDI SA;06/07/2020;Telefonia fissa;46,24;0,00;8,34;Z1515A9942;Liquidazione Fattura Nr. 8L00345263  del 05/06/2020 (di cui Split per euro 8,34) - 4BIM 2020;3321;1;3;2;5;1
TIM S.P.A. DIREZIONE E COORDINAMENTO VIVENDI SA;06/07/2020;Telefonia fissa;39,17;0,00;7,06;Z1515A9942;Liquidazione Fattura Nr. 8L00345263  del 05/06/2020 (di cui Split per euro 7,06) - 4BIM 2020;3311;1;3;2;5;1
TIM S.P.A. DIREZIONE E COORDINAMENTO VIVENDI SA;06/07/2020;Servizi di rete per trasmissione dati e VoIP e relativa manutenzione;65,23;0,00;10,38;Z112B35FF0;Liquidazione Fattura Nr. 8L00344506  del 05/06/2020 (di cui Split per euro 10,38) - 4BIM 2020;3310;1;3;2;19;4
TIM S.P.A. DIREZIONE E COORDINAMENTO VIVENDI SA;06/07/2020;Telefonia fissa;21,75;0,00;3,50;Z112B35FF0;Liquidazione Fattura Nr. 8L00344506  del 05/06/2020 (di cui Split per euro 3,50) - 4BIM 2020;3307;1;3;2;5;1
TIM S.P.A. DIREZIONE E COORDINAMENTO VIVENDI SA;06/07/2020;Telefonia fissa;91,02;0,00;14,41;Z02264C2B7;Liquidazione Fattura Nr. 8L00343495  del 05/06/2020 (di cui Split per euro 14,41) - 4BIM 2020;3314;1;3;2;5;1
TIM S.P.A. DIREZIONE E COORDINAMENTO VIVENDI SA;06/07/2020;Servizi di rete per trasmissione dati e VoIP e relativa manutenzione;40,05;0,00;6,34;Z02264C2B7;Liquidazione Fattura Nr. 8L00343495  del 05/06/2020 (di cui Split per euro 6,34) - 4BIM 2020;3316;1;3;2;19;4
TIM S.P.A. DIREZIONE E COORDINAMENTO VIVENDI SA;06/07/2020;Servizi di rete per trasmissione dati e VoIP e relativa manutenzione;150,22;0,00;24,20;Z02264C2B7;Liquidazione Fattura Nr. 8L00344288  del 05/06/2020 (di cui Split per euro 24,20) - 4BIM 2020;3319;1;3;2;19;4
TIM S.P.A. DIREZIONE E COORDINAMENTO VIVENDI SA;06/07/2020;Servizi di rete per trasmissione dati e VoIP e relativa manutenzione;225,36;0,00;40,64;Z4419D9E67;Liquidazione Fattura Nr. 8L00346366  del 05/06/2020 (di cui Split per euro 40,64) - 4BIM 2020;3300;1;3;2;19;4
TIM S.P.A. DIREZIONE E COORDINAMENTO VIVENDI SA;06/07/2020;Servizi di rete per trasmissione dati e VoIP e relativa manutenzione;57,99;0,00;9,25;Z112B35FF0;Liquidazione Fattura Nr. 8L00344518  del 05/06/2020 (di cui Split per euro 9,25) - 4BIM 2020;3309;1;3;2;19;4
TIM S.P.A. DIREZIONE E COORDINAMENTO VIVENDI SA;06/07/2020;Telefonia fissa;28,99;0,00;4,63;Z112B35FF0;Liquidazione Fattura Nr. 8L00344518  del 05/06/2020 (di cui Split per euro 4,63) - 4BIM 2020;3306;1;3;2;5;1
TIM S.P.A. DIREZIONE E COORDINAMENTO VIVENDI SA;06/07/2020;Servizi di rete per trasmissione dati e VoIP e relativa manutenzione;179,36;0,00;28,16;Z02264C2B7;Liquidazione Fattura Nr. 8L00344061  del 05/06/2020 (di cui Split per euro 28,16) - 4BIM 2020;3320;1;3;2;19;4
TIM S.P.A. DIREZIONE E COORDINAMENTO VIVENDI SA;06/07/2020;Servizi di rete per trasmissione dati e VoIP e relativa manutenzione;124,66;0,00;22,48;Z5915A5067;Liquidazione Fattura Nr. 8L00344028  del 05/06/2020 (di cui Split per euro 22,48) - 4BIM 2020;3308;1;3;2;19;4
TIM S.P.A. DIREZIONE E COORDINAMENTO VIVENDI SA;06/07/2020;Servizi di rete per trasmissione dati e VoIP e relativa manutenzione;112,24;0,00;20,24;Z4419D9E67;Liquidazione Fattura Nr. 8L00344603  del 05/06/2020 (di cui Split per euro 20,24) - 4BIM 2020;3322;1;3;2;19;4
TIM S.P.A. DIREZIONE E COORDINAMENTO VIVENDI SA;06/07/2020;Telefonia fissa;207,00;0,00;29,33;Z02264C2B7;Liquidazione Fattura Nr. 8L00343406  del 05/06/2020 (di cui Split per euro 29,33) - 4BIM 2020;3315;1;3;2;5;1
TIM S.P.A. DIREZIONE E COORDINAMENTO VIVENDI SA;06/07/2020;Servizi di rete per trasmissione dati e VoIP e relativa manutenzione;82,44;0,00;12,91;Z02264C2B7;Liquidazione Fattura Nr. 8L00343406  del 05/06/2020 (di cui Split per euro 12,91) - 4BIM 2020;3317;1;3;2;19;4
TIM S.P.A. DIREZIONE E COORDINAMENTO VIVENDI SA;06/07/2020;Servizi di rete per trasmissione dati e VoIP e relativa manutenzione;58,07;0,00;9,27;Z112B35FF0;Liquidazione Fattura Nr. 8L00342751  del 05/06/2020 (di cui Split per euro 9,27) - 4BIM 2020;3313;1;3;2;19;4
TIM S.P.A. DIREZIONE E COORDINAMENTO VIVENDI SA;06/07/2020;Telefonia fissa;29,03;0,00;4,63;Z112B35FF0;Liquidazione Fattura Nr. 8L00342751  del 05/06/2020 (di cui Split per euro 4,63) - 4BIM 2020;3312;1;3;2;5;1
TIM S.P.A. DIREZIONE E COORDINAMENTO VIVENDI SA;06/07/2020;Servizi di rete per trasmissione dati e VoIP e relativa manutenzione;124,66;0,00;22,48;Z5B1A0792B;Liquidazione Fattura Nr. 8L00345039  del 05/06/2020 (di cui Split per euro 22,48) - 4BIM 2020;3298;1;3;2;19;4
TIM S.P.A. DIREZIONE E COORDINAMENTO VIVENDI SA;06/07/2020;Utenze e canoni per altri servizi n.a.c.;90,52;0,00;14,52;ZBB27E8244;Liquidazione Fattura Nr. 8L00342461  del 05/06/2020 (di cui Split per euro 14,52) - 4BIM 2020;3296;1;3;2;5;999
TIM S.P.A. DIREZIONE E COORDINAMENTO VIVENDI SA;06/07/2020;Servizi di rete per trasmissione dati e VoIP e relativa manutenzione;250,10;0,00;45,10;Z360C4F27E;Liquidazione Fattura Nr. 6820200620001299  del 18/06/2020 (di cui Split per euro 45,10) - FATTURAZIONE CONTRATTO RETE DATI RTRT3 - 2' TRIMESTRE 2020;3297;1;3;2;19;4
TIM S.P.A. DIREZIONE E COORDINAMENTO VIVENDI SA;06/07/2020;Servizi di rete per trasmissione dati e VoIP e relativa manutenzione;500,20;0,00;90,20;ZF522267E6;Liquidazione Fattura Nr. 6820200620001299  del 18/06/2020 (di cui Split per euro 90,20) - FATTURAZIONE CONTRATTO RETE DATI RTRT3 - 2' TRIMESTRE 2020;3318;1;3;2;19;4
TIM S.P.A. DIREZIONE E COORDINAMENTO VIVENDI SA;06/07/2020;Telefonia mobile;2,44;0,00;0,44;ZA518A6033;Liquidazione Fattura Nr. 7X01894016  del 15/06/2020 (di cui Split per euro 0,44) - 4BIM 2020;3301;1;3;2;5;2
TIM S.P.A. DIREZIONE E COORDINAMENTO VIVENDI SA;06/07/2020;Telefonia mobile;168,68;0,00;30,42;Z692A72C5A;Liquidazione Fattura Nr. 7X02200229  del 15/06/2020 (di cui Split per euro 30,42) - 4BIM 2020;3302;1;3;2;5;2
STUDIO ANTEA ASSOCIAZIONE PROFESSIONALE;06/07/2020;Incarichi professionali per la realizzazione di investimenti;1.683,45;265,36;0,00;Z1F2B49F6C;LIQUIDAZIONE FATTURA NR. 21  DEL 24/04/2020 - FORNITURA GENERICA;3337;2;2;3;5;1
FARMACIA G.T. SCATOLA SRL;06/07/2020;Generi alimentari;350,00;0,00;0,00;;Liquidazione Fattura Nr. 41  del 09/06/2020 - BUONI COVID - MAGGIO 2020;3353;1;3;1;2;11
FARMACIA PIETRAMARINA SNC DI PICARDI ROSA E MELILLO FABIO;06/07/2020;Equipaggiamento;240,10;0,00;43,30;Z642CE0FAA;Liquidazione Fattura Nr. 26 / PA  del 12/05/2020 (di cui Split per euro 43,30) - ACQUISTO GUANTI IN LATTICE ? DETERMINA A CONTRARRE ? AFFIDAMENTO FARMACIA PIETRAMARINA;3326;1;3;1;2;3
PUBBLIGARE MANAGEMENT;06/07/2020;Pubblicazione bandi di gara;473,02;0,00;82,41;Z242D48DF5;Liquidazione Fattura Nr. 375/2020/PA  del 24/06/2020 (di cui Split per euro 82,41) - PUBBLICAZIONE ESITO GARA. GARA APPALTO DEL SERVIZIO DI TESORERIA PER IL PERIODO DAL 01.07.2020 AL 30.06.2025;3339;1;3;2;16;1
VESCOVI RENZO SPA;08/07/2020;Infrastrutture stradali;78.530,18;0,00;14.161,18;76625128EE;Liquidazione Fattura Nr. 44/10  del 28/05/2020 (di cui Split per euro 14.161,18) - ACCORDO QUADRO VIABILITA' - 1� SAL SECONDO CONTRATTO APPLICATIVO;3361;2;2;1;9;12
CASALINI LIBRI S.P.A.;08/07/2020;Materiale bibliografico;144,90;0,00;0,00;Z5929C582D;Liquidazione Fattura Nr. 20-12110 del 22/05/2020 - Acquisto risorse librarie;3360;2;2;1;99;1
CO&SO EMPOLI - CONS. DI COOP. SOCIALI - SOCIETA' COOPERATIVA;08/07/2020;Altre spese per contratti di servizio pubblico;6.662,25;0,00;317,25;6927708D7B;Liquidazione Fattura Nr. 000468-2C0  del 10/06/2020 (di cui Split per euro 317,25) - ASSISTENZA SCOLASTICA SVOLTA NEL MESE DI MAGGIO 2020;3359;1;3;2;15;999
CRISTOFORO SOC.COOP. SOCIALE ONLUS;08/07/2020;Altri servizi diversi n.a.c.;8.402,27;0,00;763,84;7094139CB0;Liquidazione Fattura Nr. 572. 20006/ 2020  del 22/05/2020 (di cui Split per euro 763,84) - GESTIONE SERVIZIO ACCOMPAGNAMENTO MESE DI FEBBRAIO 2020;3355;1;3;2;99;999
CRISTOFORO SOC.COOP. SOCIALE ONLUS;08/07/2020;Altri servizi diversi n.a.c.;961,00;0,00;87,36;7094139CB0;Liquidazione Fattura Nr. 571. 20006/ 2020  del 22/05/2020 (di cui Split per euro 87,36) - GESTIONE SERVIZIO PRESCUOLA SVOLTO NEL MESE DI FEBBRAIO 2020;3356;1;3;2;99;999
LU-BEK SRL;08/07/2020;Altri servizi diversi n.a.c.;1.728,74;0,00;311,74;Z2E2C1BEA1;Liquidazione Fattura Nr. 111  del 27/05/2020 (di cui Split per euro 311,74) - Vendita Iva da versare a cura del cessionario o committente ai sensi dell'art. 17-ter del D.P.R. n. 633/1972 (scissione dei pagamenti);3357;1;3;2;99;999
EREDI LEPORATTI GUIDO S.A.S. DI FIORETTA PACINI;08/07/2020;Contratti di servizio di trasporto pubblico;2.381,40;0,00;216,49;Z842D27701;Liquidazione Fattura Nr. 06/20  del 30/06/2020 (di cui Split per euro 216,49) - FATTURA TPL MENSILITA' GIUGNO 2020;3358;1;3;2;15;1
BAZAR CINELLI  DI CINELLI ILARIA E PAOLO;13/07/2020;Carta, cancelleria e stampati;6,99;0,00;0,00;;"PAGAMENTO BUONO ECONOMALE NR. 200059 - ASSEGNAZIONE ECONOMALE ACQUISTO STAMPATI, CANCELLERIA E MATERIALE VARIO PER BIBLIOTECHE-ACQUISTO LIBRO COLLANA I MIEI PICCOLI EROI ""ROALD AMUNDESN""";3379;1;3;1;2;1
BAZAR CINELLI  DI CINELLI ILARIA E PAOLO;13/07/2020;Carta, cancelleria e stampati;6,99;0,00;0,00;;"PAGAMENTO BUONO ECONOMALE NR. 200061 - ASSEGNAZIONE ECONOMALE ACQUISTO STAMPATI, CANCELLERIA E MATERIALE VARIO PER BIBLIOTECHE-ACQUISTO LIBRO COLLANA ""I MIEI PICCOLI EROI""";3380;1;3;1;2;1
BAZAR CINELLI  DI CINELLI ILARIA E PAOLO;13/07/2020;Carta, cancelleria e stampati;6,99;0,00;0,00;;PAGAMENTO BUONO ECONOMALE NR. 200064 - ASSEGNAZIONE ECONOMALE ACQUISTO STAMPATI, CANCELLERIA E MATERIALE VARIO PER BIBLIOTECHE-ACQUISTO LIBRO COLLANA I MIEI PICCOLI EROI;3381;1;3;1;2;1
BAZAR CINELLI  DI CINELLI ILARIA E PAOLO;13/07/2020;Carta, cancelleria e stampati;6,99;0,00;0,00;;PAGAMENTO BUONO ECONOMALE NR. 200066 - ASSEGNAZIONE ECONOMALE ACQUISTO STAMPATI, CANCELLERIA E MATERIALE VARIO PER BIBLIOTECHE - ACQUISTO VOLUME N.40 COLLANA I MIEI PICCOLI EROI;3382;1;3;1;2;1
BAZAR CINELLI  DI CINELLI ILARIA E PAOLO;13/07/2020;Carta, cancelleria e stampati;6,99;0,00;0,00;;"PAGAMENTO BUONO ECONOMALE NR. 200068 - ASSEGNAZIONE ECONOMALE ACQUISTO STAMPATI, CANCELLERIA E MATERIALE VARIO PER BIBLIOTECHE-ACQUISTO VOLUME N.41 COLLANA ""I MIEI PICCOLI EROI""";3383;1;3;1;2;1
BAZAR CINELLI  DI CINELLI ILARIA E PAOLO;13/07/2020;Carta, cancelleria e stampati;6,99;0,00;0,00;;"PAGAMENTO BUONO ECONOMALE NR. 200078 - ASSEGNAZIONE ECONOMALE ACQUISTO STAMPATI, CANCELLERIA E MATERIALE VARIO PER BIBLIOTECHE-ACQUISTO LIBRO COLLANA ""I MIEI PICCOLI EROI"" VOL.N.42";3384;1;3;1;2;1
BAZAR CINELLI  DI CINELLI ILARIA E PAOLO;13/07/2020;Carta, cancelleria e stampati;9,00;0,00;0,00;;PAGAMENTO BUONO ECONOMALE NR. 200079 - ASSEGNAZIONE ECONOMALE ACQUISTO CANCELLERIA, STAMPATI E MATERIALE VARIO PER UFFICI-ACQUISTO PERFORATORE PER UFFICIO ECONOMATO;3369;1;3;1;2;1
BAZAR CINELLI  DI CINELLI ILARIA E PAOLO;13/07/2020;Carta, cancelleria e stampati;6,99;0,00;0,00;;"PAGAMENTO BUONO ECONOMALE NR. 200083 - ASSEGNAZIONE ECONOMALE ACQUISTO STAMPATI, CANCELLERIA E MATERIALE VARIO PER BIBLIOTECHE-ACQUISTO LIBRO N.43 COLLANA ""I MIEI PICCOLI EROI""";3385;1;3;1;2;1
BAZAR CINELLI  DI CINELLI ILARIA E PAOLO;13/07/2020;Carta, cancelleria e stampati;6,99;0,00;0,00;;"PAGAMENTO BUONO ECONOMALE NR. 200085 - ASSEGNAZIONE ECONOMALE ACQUISTO STAMPATI, CANCELLERIA E MATERIALE VARIO PER BIBLIOTECHE- ACQUISTO LIBRO COLLANA ""IMIEI PICCOLI EROI"" N.44";3386;1;3;1;2;1
MAGGIOLI S.P.A.;13/07/2020;Pubblicazioni;79,00;0,00;0,00;;PAGAMENTO BUONO ECONOMALE NR. 200055 - ASSEGNAZIONE ECONOMALE ACQUISTO GIORNALI, RIVISTE E PUBBLICAZIONI PER UFFICI-ACQUISTO LIBRO IL MANUALE DELL'ECONOMO;3373;1;3;1;1;2
MAGGIOLI S.P.A.;13/07/2020;Pubblicazioni;17,25;0,00;0,00;;PAGAMENTO BUONO ECONOMALE NR. 200069 - ASSEGNAZIONE ECONOMALE ACQUISTO GIORNALI, RIVISTE E PUBBLICAZIONI PER UFFICI-ACQUISTO E-BOOK PER UFFICIO LL.PP.;3374;1;3;1;1;2
CEROFOLINI S.R.L.;13/07/2020;Altri beni e materiali di consumo n.a.c.;18,60;0,00;0,00;;PAGAMENTO BUONO ECONOMALE NR. 200062 - ASSEGNAZIONE ECONOMALE ACQUISTI BENI IGIENICO-SANITARI E PULIZIA SEDI ISTITUZIONALI-ACQUISTO LIQUIDO PER SANIFICAZIONE LOCALI;3366;1;3;1;2;999
MARINELLI MARIA ROSARIA;13/07/2020;Altri beni e materiali di consumo n.a.c.;11,70;0,00;0,00;;PAGAMENTO BUONO ECONOMALE NR. 200076 - ASSEGNAZIONE ECONOMALE ACQUISTI BENI IGIENICO-SANITARI E PULIZIA SEDI ISTITUZIONALI-ACQUISTO SPRAY IGIENIZZANTI PER UFFICI;3367;1;3;1;2;999
POSTE ITALIANE SPA SOCIETA' CON SOCIO UNICO;13/07/2020;Spese postali;2,56;0,00;0,00;;PAGAMENTO BUONO ECONOMALE NR. 200067 - ASSEGNAZIONE ECONOMALE PER SPESE POSTALI-SPEDIZIONE DI UN LIBRO SU LEONARDO;3375;1;3;2;16;2
POSTE ITALIANE SPA SOCIETA' CON SOCIO UNICO;13/07/2020;Altri beni e materiali di consumo n.a.c.;16,50;0,00;0,00;;PAGAMENTO BUONO ECONOMALE NR. 200084 - ASSEGNAZIONE ECONOMALE ACQUISTO BENI DI PROMOZIONE PER TUTELA AMBIENTALE-PAGAMENTO DIRITTI SEGRETERIA MUD 2020;3394;1;3;1;2;999
SINTESI S.R.L. - SISTEMI INTEGRATI PER UFFICIO;13/07/2020;Altri beni e materiali di consumo n.a.c.;201,00;0,00;0,00;;PAGAMENTO BUONO ECONOMALE NR. 200081 - ASSEGNAZIONE ECONOMALE PER ACQUISTO BENI E PICCOLA ATTREZZATURA PER UFFICI-ACQUISTO N.3 CALCOLATRICI A CARTA TERMICA;3368;1;3;1;2;999
SINTESI S.R.L. - SISTEMI INTEGRATI PER UFFICIO;13/07/2020;Carta, cancelleria e stampati;48,00;0,00;0,00;;PAGAMENTO BUONO ECONOMALE NR. 200082 - ASSEGNAZIONE ECONOMALE ACQUISTO STAMPATI, CANCELLERIA E MATERIALE VARIO PER NUSEI -ACQUISTO 5 RISME CARTA A3 URGENTI;3392;1;3;1;2;1
ETRURIA P.A. SRL;13/07/2020;Carta, cancelleria e stampati;200,00;0,00;0,00;;PAGAMENTO BUONO ECONOMALE NR. 200056 - ASSEGNAZIONE ECONOMALE ACQUISTO CANCELLERIA, STAMPATI E MATERIALE VARIO PER UFFICI-ACQUISTO BUSTE PER CONSEGNA URGENTE MASCHERINE COVID-19;3371;1;3;1;2;1
ETRURIA P.A. SRL;13/07/2020;Carta, cancelleria e stampati;197,00;0,00;0,00;;PAGAMENTO BUONO ECONOMALE NR. 200057 - ASSEGNAZIONE ECONOMALE ACQUISTO CANCELLERIA, STAMPATI E MATERIALE VARIO PER UFFICI-ACQUISTO BUSTE PER CONSEGNA URGENTE MASCHERINE COVID-19;3372;1;3;1;2;1
BARSANTI ROBERTA;13/07/2020;Carta, cancelleria e stampati;14,84;0,00;0,00;;PAGAMENTO BUONO ECONOMALE NR. 200075 - ASSEGNAZIONE ECONOMALE ACQUISTO STAMPATI, CANCELLERIA E MATERIALE VARIO PER NUSEI -ACQUISTO MATERIALE PER MESSA IN SICUREZZA RIAPERTURA MUSEI;3390;1;3;1;2;1
BARBATO ANGELA;13/07/2020;Altri beni e materiali di consumo n.a.c.;2,00;0,00;0,00;;PAGAMENTO BUONO ECONOMALE NR. 200065 - ASSEGNAZIONE ECONOMALE ACQUISTO BENI PER MANUTENZIONI SEDI ISTITUZIONALI- UNA COPIA CHIAVE PORTA DELL'ETE CIVICO N.27;3363;1;3;1;2;999
COMAR DI CATIA CORSI;13/07/2020;Carta, cancelleria e stampati;210,00;0,00;0,00;;PAGAMENTO BUONO ECONOMALE NR. 200058 - ASSEGNAZIONE ECONOMALE ACQUISTO CANCELLERIA, STAMPATI E MATERIALE VARIO PER UFFICI-ACQUISTO BUSTE PER CONSEGNA URGENTE MASCHERINE COVID-19;3370;1;3;1;2;1
COMAR DI CATIA CORSI;13/07/2020;Altri beni e materiali di consumo n.a.c.;287,29;0,00;0,00;;PAGAMENTO BUONO ECONOMALE NR. 200071 - ASSEGNAZIONE ECONOMALE ACQUISTO BENI PER MANUTENZIONI SEDI ISTITUZIONALI-ACQUISTO BUSTE PER DISTRIBUZIONE MASCHERINE AI CITTADINI;3364;1;3;1;2;999
AUTOGAMMA SNC DI LETTIERI FABIO & C.;13/07/2020;Manutenzione ordinaria e riparazioni di mezzi di trasporto ad uso civile, di sicurezza e ordine pubblico;65,00;0,00;0,00;;PAGAMENTO BUONO ECONOMALE NR. 200080 - ASSEGNAZIONE ECONOMALE MANUTENZ.E RIPARAZ. VEICOLI PER MANUT.SEDI ISTITUZIONALI-ACQUISTO BATTERIA PER MEZZO RIMASTO FERMO;3376;1;3;2;9;1
ROMANELLI FRANCESCO;13/07/2020;Manutenzione ordinaria e riparazioni di mezzi di trasporto ad uso civile, di sicurezza e ordine pubblico;10,00;0,00;0,00;;PAGAMENTO BUONO ECONOMALE NR. 200063 - ASSEGNAZIONE ECONOMALE MANUTENZ.E RIPARAZ.VEICOLI SERVIZI SPORT E TEMPO LIBERO-RIPARAZIONE RUOTA FORATA DEL TRATTORINO TAGLIAERBA;3378;1;3;2;9;1
VIVAI PIANTE GIULIANI SSA;13/07/2020;Altri beni e materiali di consumo n.a.c.;75,00;0,00;0,00;;PAGAMENTO BUONO ECONOMALE NR. 200074 - ASSEGNAZIONE ECONOMALE ACQUISTO BENI MANUTENZ. PARCHI GIOCO E AREE ATTREZZATE-ACQUISTO PIANTE PER RICORRENNZA FINE ANNO SCOLASTICO;3393;1;3;1;2;999
SCARDIGLI MATTEO;13/07/2020;Carta, cancelleria e stampati;41,94;0,00;0,00;;PAGAMENTO BUONO ECONOMALE NR. 200054 - ASSEGNAZIONE ECONOMALE  PER BIBLIOTECHE- ACQUISTO N.6 LIBRI COLLANA I MIEI PICCOLI EROI;3387;1;3;1;2;1
SCARDIGLI MATTEO;13/07/2020;Carta, cancelleria e stampati;29,79;0,00;0,00;;PAGAMENTO BUONO ECONOMALE NR. 200086 - ASSEGNAZIONE ECONOMALE ACQUISTO STAMPATI, CANCELLERIA E MATERIALE VARIO PER BIBLIOTECHE-ACQUISTI DUE PUBBLICAZIONI PER BAMBINI E COPERTINA PER TABLET  DONATO DALLA REGIONE ALLA BILBIOTECA LEONARDIANA;3388;1;3;1;2;1
A. SETTI SRL;13/07/2020;Manutenzione ordinaria e riparazioni di mezzi di trasporto ad uso civile, di sicurezza e ordine pubblico;51,16;0,00;0,00;;PAGAMENTO BUONO ECONOMALE NR. 200072 - ASSEGNAZIONE ECONOMALE MANUTENZ.E RIPARAZ.VEICOLI SERVIZI SPORT E TEMPO LIBERO-ACQUISTO 3 CINGHIE PER OSSTITUZIONE TRATTORINO TAGLIAERBA;3377;1;3;2;9;1
FERRAMENTA CAMPATELLI S.A.S. DI CAMPATELLI ALESSANDRA & C.;13/07/2020;Carta, cancelleria e stampati;27,00;0,00;0,00;;PAGAMENTO BUONO ECONOMALE NR. 200073 - ASSEGNAZIONE ECONOMALE ACQUISTO STAMPATI, CANCELLERIA E MATERIALE VARIO PER NUSEI- ACQUISTO CORDA PER DISTANZIAMENTI DI SICUREZZA INGRESSI MUSEI;3391;1;3;1;2;1
AGRARIA VANNACCI S.R.L.;13/07/2020;Carta, cancelleria e stampati;7,90;0,00;0,00;;PAGAMENTO BUONO ECONOMALE NR. 200077 - ASSEGNAZIONE ECONOMALE ACQUISTO STAMPATI, CANCELLERIA E MATERIALE VARIO PER NUSEI - ACQUISTO CORDA PER DISTANZIAMENTO INGRESSO MUSEO;3389;1;3;1;2;1
SCATOLIFICIO LEONARDO;13/07/2020;Altri beni e materiali di consumo n.a.c.;160,30;0,00;0,00;;PAGAMENTO BUONO ECONOMALE NR. 200070 - ASSEGNAZIONE ECONOMALE ACQUISTO BENI PER MANUTENZIONI SEDI ISTITUZIONALI-ACQUISTO SCATOLE PER TRASFERIMENTO SCUOLE;3365;1;3;1;2;999
ERARIO DELLO STATO PER PAGAMENTO I.V.A.;14/07/2020;Versamenti IVA a debito per le gestioni commerciali;368,53;0,00;0,00;;IVA A DEBITO SU SERVIZI COMMERCIALI DELL'ENTE   ESERCIZIO 2020 MESE DI GIUGNO;3400;1;10;3;1;1
ATO TOSCANA CENTRO AUTORIT� PER IL SERVIZIO DI GESTIONE INTEGRATA DEI RIFIUTI UR;14/07/2020;Trasferimenti correnti a altre Amministrazioni Locali n.a.c.;5.395,00;0,00;0,00;;SPESE DI FUNZIONAMENTO ATO TOSCANA CENTRO. 1 RATA ANNO 2020;3404;1;4;1;2;999
O.L.V. SRL IMPIANTI ELETTRICI CIVILI ED INDUSTRIALI;14/07/2020;Altre spese per contratti di servizio pubblico;8.671,39;0,00;1.563,69;ZA42682017;Liquidazione Fattura Nr. 87  del 25/05/2020 (di cui Split per euro 1.563,69) - OPERAZIONI CIMITERIALI E SERVIZIO ILLUMINAZIONE VOTIVA;3395;1;3;2;15;999
O.L.V. SRL IMPIANTI ELETTRICI CIVILI ED INDUSTRIALI;14/07/2020;Altre spese per contratti di servizio pubblico;6.937,12;0,00;1.250,96;ZED289C498;Liquidazione Fattura Nr. 88  del 25/05/2020 (di cui Split per euro 1.250,96) - OPERAZIONI CIMITERIALI E SERVIZIO ILLUMINAZIONE VOTIVA;3396;1;3;2;15;999
PENSIONE PER CANI CERTOSA S.A.S. DI NERI FRANCESCA & C.;14/07/2020;Contratti di servizio per la lotta al randagismo ;1.850,74;0,00;333,74;7951734A79;Liquidazione Fattura Nr. FATTPA 21_20  del 01/07/2020 (di cui Split per euro 333,74) - PROCEDURA NEGOZIATA SENZA PREVIA PUBBLICAZIONEDI BANDO DI GARA AI SENSI DELL'ART. 63 COMMA 5 D.LGS 50/2016 SVOLTA CON MODALIT� TELEMATICA PER LA RIPETIZI;3397;1;3;2;15;11
LENSI MARZIO E AMMANNATI GIANNA PAOLA;15/07/2020;Locazione di beni immobili;6.375,00;0,00;0,00;;ESECUZIONE IMMOBILIARE RGE 519/15_CANONE LOCAZIONE IMMOBILE ARCHIVIO VIA ROMA 3� TRIM 2020;3405;1;3;2;7;1
ACQUE S.P.A.;15/07/2020;Acqua;1.358,67;0,00;123,52;;Liquidazione Fattura Nr. 6020012000006497  del 11/06/2020 (di cui Split per euro 123,52) - FORNITURA ACQUA POTABILE primaria spicchio;3424;1;3;2;5;5
ACQUE S.P.A.;15/07/2020;Acqua;54,92;0,00;4,99;;Liquidazione Fattura Nr. 6020012000006521  del 11/06/2020 (di cui Split per euro 4,99) - FORNITURA ACQUA POTABILE fontanello;3437;1;3;2;5;5
ACQUE S.P.A.;15/07/2020;Acqua;156,36;0,00;21,32;;Liquidazione Fattura Nr. 6020012000006597  del 12/06/2020 (di cui Split per euro 21,32) - Fornitura acqua Palasport;3432;1;3;2;5;5
ACQUE S.P.A.;15/07/2020;Acqua;234,54;0,00;14,22;;Liquidazione Fattura Nr. 6020012000006597  del 12/06/2020 (di cui Split per euro 14,22) - Fornitura acqua Palasport;3433;1;3;2;5;5
ACQUE S.P.A.;15/07/2020;Acqua;360,90;0,00;32,81;;Liquidazione Fattura Nr. 6020012000006596  del 12/06/2020 (di cui Split per euro 32,81) - FORNITURA ACQUA POTABILE secondaria sovigliana;3427;1;3;2;5;5
ACQUE S.P.A.;15/07/2020;Acqua;319,13;0,00;23,95;;Liquidazione Fattura Nr. 6020012000006725  del 16/06/2020 (di cui Split per euro 23,95) - FORNITURA ACQUA POTABILE area Via Villa Alessandri;3436;1;3;2;5;5
ACQUE S.P.A.;15/07/2020;Acqua;1.037,76;0,00;94,34;;Liquidazione Fattura Nr. 6020012000006847  del 18/06/2020 (di cui Split per euro 94,34) - FORNITURA ACQUA POTABILE inf. Sovigliana;3420;1;3;2;5;5
ACQUE S.P.A.;15/07/2020;Acqua;278,59;0,00;25,33;;Liquidazione Fattura Nr. 6020012000006920  del 19/06/2020 (di cui Split per euro 25,33) - FORNITURA ACQUA POTABILE rotatoria Via dei Martiri;3415;1;3;2;5;5
ACQUE S.P.A.;15/07/2020;Acqua;117,70;0,00;10,70;;Liquidazione Fattura Nr. 6020012000006920  del 19/06/2020 (di cui Split per euro 10,70) - FORNITURA ACQUA POTABILE rotatoria Via dei Martiri;3414;1;3;2;5;5
ACQUE S.P.A.;15/07/2020;Acqua;1.458,27;0,00;132,57;;Liquidazione Fattura Nr. 6020012000006950  del 22/06/2020 (di cui Split per euro 132,57) - FORNITURA ACQUA POTABILE Residenza nziani;3446;1;3;2;5;5
ACQUE S.P.A.;15/07/2020;Acqua;34,39;0,00;3,13;;Liquidazione Fattura Nr. 6020012000006961  del 22/06/2020 (di cui Split per euro 3,13) - FORNITURA ACQUA POTABILE bagni pubblici;3438;1;3;2;5;5
ACQUE S.P.A.;15/07/2020;Acqua;323,51;0,00;29,41;;Liquidazione Fattura Nr. 6020012000006962  del 22/06/2020 (di cui Split per euro 29,41) - FORNITURA ACQUA POTABILE scuola infanzia Vinci;3421;1;3;2;5;5
ACQUE S.P.A.;15/07/2020;Acqua;472,48;0,00;42,95;;Liquidazione Fattura Nr. 6020012000007103  del 23/06/2020 (di cui Split per euro 42,95) - FORNITURA ACQUA POTABILE Palazzina Uzielli;3429;1;3;2;5;5
POSTE ITALIANE SPA SOCIETA' CON SOCIO UNICO;15/07/2020;Spese postali;595,05;0,00;0,00;ZC7276DD8B;Liquidazione Fattura Nr. 1020153412  del 05/06/2020 - posta easy marzo 2020 - 30027076-014;3413;1;3;2;16;2
POSTE ITALIANE SPA SOCIETA' CON SOCIO UNICO;15/07/2020;Spese postali;327,20;0,00;0,00;ZC7276DD8B;Liquidazione Fattura Nr. 1020165688  del 18/06/2020 - posta easy agosto 2019-(saldo ft 8719330783 -2019 euro 490,00 liquidata nel 2019) - 30027076-014;3411;1;3;2;16;2
POSTE ITALIANE SPA SOCIETA' CON SOCIO UNICO;15/07/2020;Spese postali;429,51;0,00;0,00;ZC7276DD8B;Liquidazione Fattura Nr. 1020165688  del 18/06/2020 - posta easy agosto 2019-(saldo ft 8719330783 -2019 euro 490,00 liquidata nel 2019) - 30027076-014;3412;1;3;2;16;2
TOSCANA ENERGIA GREEN S.P.A.;15/07/2020;Trasferimenti correnti a altre imprese;5.169,25;0,00;538,49;;Liquidazione Fattura Nr. S99  del 25/06/2020 (di cui Split per euro 538,49) - CONTRATTO DI CONCESSIONE PER REALIZZAZIONE E GESTIONE DI UN IMPIANTO FOTOVOLTAICO PRESSO LA SCUOLA ELEMENTARE DI VIA GUIDUCCI ? IMPEGNO DI SPESA PER LIQUIDAZIONE ;3440;1;4;3;99;999
TOSCANA ENERGIA GREEN S.P.A.;15/07/2020;Trasferimenti correnti a altre imprese;1.577,08;0,00;164,28;;Liquidazione Fattura Nr. S100  del 25/06/2020 (di cui Split per euro 164,28) - CONTRATTO DI CONCESSIONE PER REALIZZAZIONE E GESTIONE DI UN IMPIANTO FOTOVOLTAICO PRESSO LA SCUOLA ELEMENTARE DI VIA GUIDUCCI ? IMPEGNO DI SPESA PER LIQUIDAZIONE;3441;1;4;3;99;999
TOSCANA ENERGIA GREEN S.P.A.;15/07/2020;Trasferimenti correnti a altre imprese;1.271,20;0,00;132,43;;Liquidazione Fattura Nr. S100  del 25/06/2020 (di cui Split per euro 132,43) - CONTRATTO DI CONCESSIONE PER REALIZZAZIONE E GESTIONE DI UN IMPIANTO FOTOVOLTAICO PRESSO LA SCUOLA ELEMENTARE DI VIA GUIDUCCI ? IMPEGNO DI SPESA PER LIQUIDAZIONE;3442;1;4;3;99;999
ESTRA ENERGIE S.R.L.;15/07/2020;Gas;21,89;0,00;3,95;8038889D0D;Liquidazione Fattura Nr. 201901500348  del 24/06/2020 (di cui Split per euro 3,95) - FORNITURA DI GAS METANO Maggio 2020 - scuole Vinci;3426;1;3;2;5;6
ESTRA ENERGIE S.R.L.;15/07/2020;Gas;21,88;0,00;3,94;8038889D0D;Liquidazione Fattura Nr. 201901500348  del 24/06/2020 (di cui Split per euro 3,94) - FORNITURA DI GAS METANO Maggio 2020 - scuole Vinci;3422;1;3;2;5;6
ESTRA ENERGIE S.R.L.;15/07/2020;Gas;43,77;0,00;7,89;8038889D0D;Liquidazione Fattura Nr. 201901500341  del 24/06/2020 (di cui Split per euro 7,89) - FORNITURA DI GAS METANO Maggio 2020 Infanzia Sovigliana;3419;1;3;2;5;6
ESTRA ENERGIE S.R.L.;15/07/2020;Gas;43,77;0,00;7,89;8038889D0D;Liquidazione Fattura Nr. 201901500347  del 24/06/2020 (di cui Split per euro 7,89) - FORNITURA DI GAS METANO Maggio 2020 Secondaria Sovigliana;3425;1;3;2;5;6
ESTRA ENERGIE S.R.L.;15/07/2020;Gas;43,77;0,00;7,89;8038889D0D;Liquidazione Fattura Nr. 201901500349  del 24/06/2020 (di cui Split per euro 7,89) - FORNITURA DI GAS METANO Maggio 2020 primaria Spicchio;3423;1;3;2;5;6
ESTRA ENERGIE S.R.L.;15/07/2020;Gas;26,26;0,00;4,74;8038889D0D;Liquidazione Fattura Nr. 201901500350  del 24/06/2020 (di cui Split per euro 4,74) - FORNITURA DI GAS METANO Maggio 2020 Palasport;3434;1;3;2;5;6
ESTRA ENERGIE S.R.L.;15/07/2020;Gas;17,51;0,00;3,15;8038889D0D;Liquidazione Fattura Nr. 201901500350  del 24/06/2020 (di cui Split per euro 3,15) - FORNITURA DI GAS METANO Maggio 2020 Palasport;3435;1;3;2;5;6
ESTRA ENERGIE S.R.L.;15/07/2020;Gas;113,51;0,00;20,47;8038889D0D;Liquidazione Fattura Nr. 201901500344  del 24/06/2020 (di cui Split per euro 20,47) - FORNITURA DI GAS METANO Maggio 2020 Magazzino;3410;1;3;2;5;6
ESTRA ENERGIE S.R.L.;15/07/2020;Gas;33,79;0,00;6,09;8038889D0D;Liquidazione Fattura Nr. 201901500343  del 24/06/2020 (di cui Split per euro 6,09) - FORNITURA DI GAS METANO Maggio 2020 NIDO;3445;1;3;2;5;6
ESTRA ENERGIE S.R.L.;15/07/2020;Gas;75,76;0,00;13,66;8038889D0D;Liquidazione Fattura Nr. 201901500342  del 24/06/2020 (di cui Split per euro 13,66) - FORNITURA DI GAS METANO Maggio 2020 Uffici Via Battisti;3409;1;3;2;5;6
ESTRA ENERGIE S.R.L.;15/07/2020;Gas;118,54;0,00;21,38;8038889D0D;Liquidazione Fattura Nr. 201901500351  del 24/06/2020 (di cui Split per euro 21,38) - FORNITURA DI GAS METANO Maggio 2020 Palazzina Uzielli;3408;1;3;2;5;6
ESTRA ENERGIE S.R.L.;15/07/2020;Gas;43,77;0,00;7,89;8038889D0D;Liquidazione Fattura Nr. 201901500339  del 24/06/2020 (di cui Split per euro 7,89) - FORNITURA DI GAS METANO Maggio 2020 INFANZIA Vinci;3418;1;3;2;5;6
ESTRA ENERGIE S.R.L.;15/07/2020;Gas;392,85;0,00;70,84;8038889D0D;Liquidazione Fattura Nr. 201901500346  del 24/06/2020 (di cui Split per euro 70,84) - FORNITURA DI GAS METANO Maggio 2020 RSA;3447;1;3;2;5;6
TIM S.P.A. DIREZIONE E COORDINAMENTO VIVENDI SA;15/07/2020;Telefonia mobile;84,34;0,00;15,21;Z692A72C5A;Liquidazione Fattura Nr. 7X02200229  del 15/06/2020 (di cui Split per euro 15,21) - 4BIM 2020;3416;1;3;2;5;2
TIM S.P.A. DIREZIONE E COORDINAMENTO VIVENDI SA;15/07/2020;Telefonia mobile;39,36;0,00;7,10;Z692A72C5A;Liquidazione Fattura Nr. 7X02200229  del 15/06/2020 (di cui Split per euro 7,10) - 4BIM 2020;3417;1;3;2;5;2
TIM S.P.A. DIREZIONE E COORDINAMENTO VIVENDI SA;15/07/2020;Servizi di rete per trasmissione dati e VoIP e relativa manutenzione;11,25;0,00;2,02;Z692A72C5A;Liquidazione Fattura Nr. 7X02200229  del 15/06/2020 (di cui Split per euro 2,02) - 4BIM 2020;3431;1;3;2;19;4
CINELLI TACITO E GABBANINI DIANA;15/07/2020;Locazione di beni immobili;2.500,00;0,00;0,00;;CANONE LOCAZIONE IMMOBILE VIA FUCINI ANGOLO VIA ROSSI-PARTE ADIBITA A U.R.P. - 2� TRIM 2020;3406;1;3;2;7;1
CINELLI TACITO E GABBANINI DIANA;15/07/2020;Locazione di beni immobili;1.677,47;0,00;0,00;;CANONE LOCAZIONE IMMOBILE VIA ROSSI-PARTE ADIBITA A BIBLIOTECA CIVICA - 2� TRIM 2020;3407;1;3;2;7;1
A2A ENERGIA SPA;15/07/2020;Energia elettrica;16.058,83;0,00;2.895,86;8191995820;Liquidazione Fattura Nr. 820000119102  del 29/06/2020 (di cui Split per euro 2.895,86) - FORNITURA ENERGIA ELETTRICA periodo: 01.05.2020-31.05.2020 kWh 74971 Importi al netto della ritenuta di garanzia del 0,5% ai sensi art.4 D.P.R.207/20;3439;1;3;2;5;4
ACQUE S.P.A.;15/07/2020;Acqua;656,69;0,00;59,70;;Liquidazione Fattura Nr. 6020012000007127  del 24/06/2020 (di cui Split per euro 59,70) - FORNITURA ACQUA POTABILE scuola secondaria 1� grado Vinci;3428;1;3;2;5;5
ACQUE S.P.A.;15/07/2020;Acqua;391,56;0,00;35,60;;Liquidazione Fattura Nr. 6020012000007264  del 26/06/2020 (di cui Split per euro 35,60) - FORNITURA ACQUA POTABILE Nido;3444;1;3;2;5;5
ACQUE S.P.A.;15/07/2020;Acqua;136,39;0,00;12,40;;Liquidazione Fattura Nr. 6020012000007264  del 26/06/2020 (di cui Split per euro 12,40) - FORNITURA ACQUA POTABILE Nido;3443;1;3;2;5;5
ACQUE S.P.A.;15/07/2020;Acqua;186,54;0,00;16,96;;Liquidazione Fattura Nr. 6020012000007271  del 26/06/2020 (di cui Split per euro 16,96) - FORNITURA ACQUA POTABILE Casa Natale Leonardo;3430;1;3;2;5;5
COMANDO PROVINCIALE VIGILI DEL FUOCO;16/07/2020;Altre spese per servizi amministrativi;200,00;0,00;0,00;;Versamento per valutazione progetto per pratica prevenzione incendi realizzazione nuova scuola infanzia Vinci ;3448;1;3;2;16;999
CASSA DEPOSITI E PRESTITI S.P.A. (C.D.P. S.P.A.);17/07/2020;Interessi passivi a Cassa Depositi e Prestiti SPA su mutui e altri finanziamenti a medio lungo termine;1.633,80;0,00;0,00;;Quota Interessi - IMPIANTI SPORTIVI C.S. SOVIGLIANA  142.025,65 - Rep. N.3067509/00;3464;1;7;5;4;3
CASSA DEPOSITI E PRESTITI S.P.A. (C.D.P. S.P.A.);17/07/2020;Interessi passivi a Cassa Depositi e Prestiti SPA su mutui e altri finanziamenti a medio lungo termine;2.575,30;0,00;0,00;;Quota Interessi - STRADE CIM. SPICCHIO ? 219.494,18 - Rep. N.3076816/00;3465;1;7;5;4;3
CASSA DEPOSITI E PRESTITI S.P.A. (C.D.P. S.P.A.);17/07/2020;Interessi passivi a Cassa Depositi e Prestiti SPA su mutui e altri finanziamenti a medio lungo termine;845,33;0,00;0,00;;Quota Interessi - SISTEMAZIONE STRADA ? 70.778,12 - Rep. N.3104145/00;3466;1;7;5;4;3
CASSA DEPOSITI E PRESTITI S.P.A. (C.D.P. S.P.A.);17/07/2020;Interessi passivi a Cassa Depositi e Prestiti SPA su mutui e altri finanziamenti a medio lungo termine;859,57;0,00;0,00;;Quota Interessi - ACQUEDOTTO CIVICO ? 121.367,37 - Rep. N.3124797/00;3493;1;7;5;4;3
CASSA DEPOSITI E PRESTITI S.P.A. (C.D.P. S.P.A.);17/07/2020;Interessi passivi a Cassa Depositi e Prestiti SPA su mutui e altri finanziamenti a medio lungo termine;598,71;0,00;0,00;;Quota Interessi - COSTRUZIONE STRADA COM.LE ? 69.375,66 - Rep. N.3154940/00;3467;1;7;5;4;3
CASSA DEPOSITI E PRESTITI S.P.A. (C.D.P. S.P.A.);17/07/2020;Interessi passivi a Cassa Depositi e Prestiti SPA su mutui e altri finanziamenti a medio lungo termine;1.015,02;0,00;0,00;;Quota Interessi - IMPIANTO PUBBLICA ILLUMINAZIONE ? 108.944,49 - Rep. N.3185942/00;3491;1;7;5;4;3
CASSA DEPOSITI E PRESTITI S.P.A. (C.D.P. S.P.A.);17/07/2020;Interessi passivi a Cassa Depositi e Prestiti SPA su mutui e altri finanziamenti a medio lungo termine;1.923,86;0,00;0,00;;Quota Interessi - P.ZZA MAZZINGHI A VITOLINI  ? 96.000,00 - Rep. N.4525451/00;3468;1;7;5;4;3
CASSA DEPOSITI E PRESTITI S.P.A. (C.D.P. S.P.A.);17/07/2020;Interessi passivi a Cassa Depositi e Prestiti SPA su mutui e altri finanziamenti a medio lungo termine;15.387,14;0,00;0,00;;Quota Interessi - ASSE ATTREZZATO V.TOGLIATTI V.LEONARDO DA VINCI 3 STRALCIO ? 799.744,00  - Rep. N.4525841/00;3469;1;7;5;4;3
CASSA DEPOSITI E PRESTITI S.P.A. (C.D.P. S.P.A.);17/07/2020;Interessi passivi a Cassa Depositi e Prestiti SPA su mutui e altri finanziamenti a medio lungo termine;8.236,46;0,00;0,00;;Quota Interessi - RESTAURO CASA NATALE LEONARDO AD ANCHIANO    ? 476.998,96     27/11/2009 - Rep. N.4535280/00;3461;1;7;5;4;3
CASSA DEPOSITI E PRESTITI S.P.A. (C.D.P. S.P.A.);17/07/2020;Interessi passivi a Cassa Depositi e Prestiti SPA su mutui e altri finanziamenti a medio lungo termine;2.732,69;0,00;0,00;;Quota Interessi - G.MATTEOTTI ? 150.000,00 - Rep. N.4490213/00;3470;1;7;5;4;3
CASSA DEPOSITI E PRESTITI S.P.A. (C.D.P. S.P.A.);17/07/2020;Interessi passivi a Cassa Depositi e Prestiti SPA su mutui e altri finanziamenti a medio lungo termine;18.217,93;0,00;0,00;;Quota Interessi - VIA TRAVERSA DI LIMITE  ? 1.000.000,00 - Rep. N.4490401/00;3471;1;7;5;4;3
CASSA DEPOSITI E PRESTITI S.P.A. (C.D.P. S.P.A.);17/07/2020;Interessi passivi a Cassa Depositi e Prestiti SPA su mutui e altri finanziamenti a medio lungo termine;2.501,86;0,00;0,00;;Quota Interessi - ACQUISTO MEZZI DI TRASPORTO LL.PP. ? 139.000,00 - Rep. N.4494194/00;3449;1;7;5;4;3
CASSA DEPOSITI E PRESTITI S.P.A. (C.D.P. S.P.A.);17/07/2020;Interessi passivi a Cassa Depositi e Prestiti SPA su mutui e altri finanziamenti a medio lungo termine;40.762,10;0,00;0,00;;"Quota Interessi - PALESTRA SCUOLA MEDIA ""L.DA VINCI"" A SOVIGLIANA I LOTTO E 2.100.000,00 - Rep. N.4517215/00";3458;1;7;5;4;3
CASSA DEPOSITI E PRESTITI S.P.A. (C.D.P. S.P.A.);17/07/2020;Interessi passivi a Cassa Depositi e Prestiti SPA su mutui e altri finanziamenti a medio lungo termine;1.658,95;0,00;0,00;;Quota Interessi - TRATTO BANCHINA STRADALE LOC. S.ANSANO  ? 82.000,00 - Rep. N.4522673/00;3472;1;7;5;4;3
CASSA DEPOSITI E PRESTITI S.P.A. (C.D.P. S.P.A.);17/07/2020;Interessi passivi a Cassa Depositi e Prestiti SPA su mutui e altri finanziamenti a medio lungo termine;2.276,00;0,00;0,00;;Quota Interessi - MARCIAPIEDI E RIPRISTINO STRADE  ? 112.500,00 - Rep. N.4522747/00;3473;1;7;5;4;3
CASSA DEPOSITI E PRESTITI S.P.A. (C.D.P. S.P.A.);17/07/2020;Interessi passivi a Cassa Depositi e Prestiti SPA su mutui e altri finanziamenti a medio lungo termine;49.560,73;0,00;0,00;;Quota Interessi - VIALE TOGL�IATTI 2 LOTTO VIA L. DA VINCI SPICCHIO SOVIGLIANA ? 2.795.644,72 - Rep. N.4417863/01;3474;1;7;5;4;3
CASSA DEPOSITI E PRESTITI S.P.A. (C.D.P. S.P.A.);17/07/2020;Interessi passivi a Cassa Depositi e Prestiti SPA su mutui e altri finanziamenti a medio lungo termine;6.201,02;0,00;0,00;;Quota Interessi - VIA PIETRAMARINA RETI ACQUA GAS-METANO E FOGNATURA ZONA SOVIGLIANA ? 348.492,44 - Rep. N.44185235/01;3494;1;7;5;4;3
CASSA DEPOSITI E PRESTITI S.P.A. (C.D.P. S.P.A.);17/07/2020;Interessi passivi a Cassa Depositi e Prestiti SPA su mutui e altri finanziamenti a medio lungo termine;5.664,53;0,00;0,00;;Quota Interessi - PARCHEGGIO VIA CERRETANA...  ? 367.440,34 - Rep. N.4437074/01;3475;1;7;5;4;3
CASSA DEPOSITI E PRESTITI S.P.A. (C.D.P. S.P.A.);17/07/2020;Interessi passivi a Cassa Depositi e Prestiti SPA su mutui e altri finanziamenti a medio lungo termine;19.841,98;0,00;0,00;;Quota Interessi - RIQUALIFICAZIONE BENI COM.LI P.ZZA GUIDI E AMPLIAM. MUSEO ? 1.357.105,44 - Rep. N.4437075/01;3462;1;7;5;4;3
CASSA DEPOSITI E PRESTITI S.P.A. (C.D.P. S.P.A.);17/07/2020;Interessi passivi a Cassa Depositi e Prestiti SPA su mutui e altri finanziamenti a medio lungo termine;11.310,73;0,00;0,00;;Quota Interessi - VILLA REGHINI PER RIUSO LOCALI ? 773.605,07 - Rep. N.4458317/01;3450;1;7;5;4;3
CASSA DEPOSITI E PRESTITI S.P.A. (C.D.P. S.P.A.);17/07/2020;Interessi passivi a Cassa Depositi e Prestiti SPA su mutui e altri finanziamenti a medio lungo termine;7.093,87;0,00;0,00;;Quota Interessi - PARCHEGGIO VIA BIXIO  ? 438.000,00 - Rep. N.4465531/00;3476;1;7;5;4;3
CASSA DEPOSITI E PRESTITI S.P.A. (C.D.P. S.P.A.);17/07/2020;Interessi passivi a Cassa Depositi e Prestiti SPA su mutui e altri finanziamenti a medio lungo termine;4.253,02;0,00;0,00;;Quota Interessi - EMPOLESE DI POGGIO STRADE COM.LI  ? 234.600,51 - Rep. N.4398880/01;3477;1;7;5;4;3
CASSA DEPOSITI E PRESTITI S.P.A. (C.D.P. S.P.A.);17/07/2020;Interessi passivi a Cassa Depositi e Prestiti SPA su mutui e altri finanziamenti a medio lungo termine;3.369,50;0,00;0,00;;Quota Interessi - S.PANTALEO STRADE COM.LI ? 189.715,45 - Rep. N.4399039/01;3478;1;7;5;4;3
CASSA DEPOSITI E PRESTITI S.P.A. (C.D.P. S.P.A.);17/07/2020;Interessi passivi a Cassa Depositi e Prestiti SPA su mutui e altri finanziamenti a medio lungo termine;3.148,66;0,00;0,00;;Quota Interessi - PICCARATICO STRADE COM.LI  ? 173.683,16 - Rep. N.4399044/01;3479;1;7;5;4;3
CASSA DEPOSITI E PRESTITI S.P.A. (C.D.P. S.P.A.);17/07/2020;Interessi passivi a Cassa Depositi e Prestiti SPA su mutui e altri finanziamenti a medio lungo termine;11.394,92;0,00;0,00;;Quota Interessi - RISTRUTTURAZIONE MAGAZZINO COM.LE COMPLETAM.CENTRO OPERATIVO ? 636.838,27 - Rep. N.4400170/01;3451;1;7;5;4;3
CASSA DEPOSITI E PRESTITI S.P.A. (C.D.P. S.P.A.);17/07/2020;Interessi passivi a Cassa Depositi e Prestiti SPA su mutui e altri finanziamenti a medio lungo termine;5.673,96;0,00;0,00;;Quota Interessi - VILLA REGHINI IN SOVIGLIANA  ? 311.769.58 - Rep. N.4408252/01;3452;1;7;5;4;3
CASSA DEPOSITI E PRESTITI S.P.A. (C.D.P. S.P.A.);17/07/2020;Interessi passivi a Cassa Depositi e Prestiti SPA su mutui e altri finanziamenti a medio lungo termine;6.985,71;0,00;0,00;;Quota Interessi - CIMITERO SOVIGLIANA AMPLIAMENTOI ? 381.756,53 - Rep. N.4417690/01;3503;1;7;5;4;3
CASSA DEPOSITI E PRESTITI S.P.A. (C.D.P. S.P.A.);17/07/2020;Interessi passivi a Cassa Depositi e Prestiti SPA su mutui e altri finanziamenti a medio lungo termine;4.119,06;0,00;0,00;;Quota Interessi - CIMITERO VITOLINI  ? 258.228,45 - Rep. N.4378882/00;3504;1;7;5;4;3
CASSA DEPOSITI E PRESTITI S.P.A. (C.D.P. S.P.A.);17/07/2020;Interessi passivi a Cassa Depositi e Prestiti SPA su mutui e altri finanziamenti a medio lungo termine;1.825,07;0,00;0,00;;Quota Interessi - VIA IV NOVEMBRE IMP. ILLUMINAZ. P.ZZA DELLA LIBERTA' E 110.933,44 - Rep. N.4378895/00;3480;1;7;5;4;3
CASSA DEPOSITI E PRESTITI S.P.A. (C.D.P. S.P.A.);17/07/2020;Interessi passivi a Cassa Depositi e Prestiti SPA su mutui e altri finanziamenti a medio lungo termine;558,86;0,00;0,00;;Quota Interessi - IV NOVEMBRE SISTEMAZ. MARCIAPIEDI P.ZZA DELLA LIBERTA'  ? 33.968,00 - Rep. N.4378895/01;3481;1;7;5;4;3
CASSA DEPOSITI E PRESTITI S.P.A. (C.D.P. S.P.A.);17/07/2020;Interessi passivi a Cassa Depositi e Prestiti SPA su mutui e altri finanziamenti a medio lungo termine;7.469,39;0,00;0,00;;Quota Interessi - IMMOBILE USO PUBBLICO DA DESTINARE MAGAZZINO COM.LE  ? 464.811.21 - Rep. N.4379246/00;3453;1;7;5;4;3
CASSA DEPOSITI E PRESTITI S.P.A. (C.D.P. S.P.A.);17/07/2020;Interessi passivi a Cassa Depositi e Prestiti SPA su mutui e altri finanziamenti a medio lungo termine;2.544,53;0,00;0,00;;Quota Interessi - COLLEGONZI STRADE COM.LI ? 154.937,07 - Rep. N.4379658/00;3482;1;7;5;4;3
CASSA DEPOSITI E PRESTITI S.P.A. (C.D.P. S.P.A.);17/07/2020;Interessi passivi a Cassa Depositi e Prestiti SPA su mutui e altri finanziamenti a medio lungo termine;3.097,56;0,00;0,00;;Quota Interessi - P.ZZA DELLA LIBERTA' BASAMENTO CAVALLO DI LEONARDO ? 165.880,24 - Rep. N.4388742/02;3463;1;7;5;4;3
CASSA DEPOSITI E PRESTITI S.P.A. (C.D.P. S.P.A.);17/07/2020;Interessi passivi a Cassa Depositi e Prestiti SPA su mutui e altri finanziamenti a medio lungo termine;7.899,37;0,00;0,00;;Quota Interessi - FOGNATURA LOC. LA STELLA APPARITA  ? 519.018,07 - Rep. N.4327108/00;3495;1;7;5;4;3
CASSA DEPOSITI E PRESTITI S.P.A. (C.D.P. S.P.A.);17/07/2020;Interessi passivi a Cassa Depositi e Prestiti SPA su mutui e altri finanziamenti a medio lungo termine;17.027,49;0,00;0,00;;Quota Interessi - FOGNATURA VITOLINI-RACCOLTA SCARICHI CIVILI ? 1.164,60 - Rep. N.4350459/01;3496;1;7;5;4;3
CASSA DEPOSITI E PRESTITI S.P.A. (C.D.P. S.P.A.);17/07/2020;Interessi passivi a Cassa Depositi e Prestiti SPA su mutui e altri finanziamenti a medio lungo termine;16.993,40;0,00;0,00;;Quota Interessi - ASSE ATTREZZATO V.LE TOGLIATTI VIA L. DA VINCI  ? 1.032.913,80 - Rep. N.4357966/00;3483;1;7;5;4;3
CASSA DEPOSITI E PRESTITI S.P.A. (C.D.P. S.P.A.);17/07/2020;Interessi passivi a Cassa Depositi e Prestiti SPA su mutui e altri finanziamenti a medio lungo termine;22.941,08;0,00;0,00;;Quota Interessi - ASSE ATTREZ V.LE TOGLIATTI VIA L. DA VINCI ? 1.394.433,63 - Rep. N.4357966/01;3484;1;7;5;4;3
CASSA DEPOSITI E PRESTITI S.P.A. (C.D.P. S.P.A.);17/07/2020;Interessi passivi a Cassa Depositi e Prestiti SPA su mutui e altri finanziamenti a medio lungo termine;1.274,50;0,00;0,00;;Quota Interessi - SCUOLABUS   77.468,53 - Rep. N.4374162/00;3460;1;7;5;4;3
CASSA DEPOSITI E PRESTITI S.P.A. (C.D.P. S.P.A.);17/07/2020;Interessi passivi a Cassa Depositi e Prestiti SPA su mutui e altri finanziamenti a medio lungo termine;2.597,80;0,00;0,00;;Quota Interessi - VIA CERMENATI IMPIANTO RETE FOGNARIA ILL. SISTEM. ESTERNA..? 164.971,83 - Rep. N.4377122/00;3485;1;7;5;4;3
CASSA DEPOSITI E PRESTITI S.P.A. (C.D.P. S.P.A.);17/07/2020;Interessi passivi a Cassa Depositi e Prestiti SPA su mutui e altri finanziamenti a medio lungo termine;10.732,85;0,00;0,00;;Quota Interessi - SCUOLA ELEM. SPICCHIO  E 738.533,37 - Rep. N.4284029/01;3455;1;7;5;4;3
CASSA DEPOSITI E PRESTITI S.P.A. (C.D.P. S.P.A.);17/07/2020;Interessi passivi a Cassa Depositi e Prestiti SPA su mutui e altri finanziamenti a medio lungo termine;2.304,82;0,00;0,00;;Quota Interessi - COSTRUZIONE SCUOLA EL. MAGGIORI ONERI ESPROPRIO  ? 207.804.70  17/12/1996 - Rep. N.4290628/01;3456;1;7;5;4;3
CASSA DEPOSITI E PRESTITI S.P.A. (C.D.P. S.P.A.);17/07/2020;Interessi passivi a Cassa Depositi e Prestiti SPA su mutui e altri finanziamenti a medio lungo termine;6.485,39;0,00;0,00;;Quota Interessi - FOGNATURA 1 COMPLETAM  VIA GRAMSCI E VIA LIMITESE ? 445.498,89 - Rep. N.4292118/00;3497;1;7;5;4;3
CASSA DEPOSITI E PRESTITI S.P.A. (C.D.P. S.P.A.);17/07/2020;Interessi passivi a Cassa Depositi e Prestiti SPA su mutui e altri finanziamenti a medio lungo termine;657,06;0,00;0,00;;Quota Interessi - FOGNATURA 2 ADEGUAMENTO SIST. IDRAULICA RIO DEI MORTICINI ? 45.135,16 - Rep. N.4292118/01;3498;1;7;5;4;3
CASSA DEPOSITI E PRESTITI S.P.A. (C.D.P. S.P.A.);17/07/2020;Interessi passivi a Cassa Depositi e Prestiti SPA su mutui e altri finanziamenti a medio lungo termine;1.372,25;0,00;0,00;;Quota Interessi - MAGGIORI ONERI ESPROPRIO SCUOLA MEDIA ? 123.723,57   17/12/1996 - Rep. N.4293932/01;3459;1;7;5;4;3
CASSA DEPOSITI E PRESTITI S.P.A. (C.D.P. S.P.A.);17/07/2020;Interessi passivi a Cassa Depositi e Prestiti SPA su mutui e altri finanziamenti a medio lungo termine;23.171,90;0,00;0,00;;Quota Interessi - SCUOLA MATERNA LOC. SOVIGLIANA ? 1.581.857,84 - Rep. N.4308818/01;3454;1;7;5;4;3
CASSA DEPOSITI E PRESTITI S.P.A. (C.D.P. S.P.A.);17/07/2020;Interessi passivi a Cassa Depositi e Prestiti SPA su mutui e altri finanziamenti a medio lungo termine;648,39;0,00;0,00;;Quota Interessi - IMPIANTO IMMUNIZ. PUBBL. FALTOGNANO ? 60.875,36 - Rep. N.4223978/00;3492;1;7;5;4;3
CASSA DEPOSITI E PRESTITI S.P.A. (C.D.P. S.P.A.);17/07/2020;Interessi passivi a Cassa Depositi e Prestiti SPA su mutui e altri finanziamenti a medio lungo termine;1.421,28;0,00;0,00;;Quota Interessi - OPERE VIARIE VIA DEI MARTIRI ? 133.439,40 - Rep. N.4225689/00;3486;1;7;5;4;3
CASSA DEPOSITI E PRESTITI S.P.A. (C.D.P. S.P.A.);17/07/2020;Interessi passivi a Cassa Depositi e Prestiti SPA su mutui e altri finanziamenti a medio lungo termine;4.816,18;0,00;0,00;;Quota Interessi - SISTEMAZIONE STRADA CPL ? 361.519,83 - Rep. N.4257724/00;3487;1;7;5;4;3
CASSA DEPOSITI E PRESTITI S.P.A. (C.D.P. S.P.A.);17/07/2020;Interessi passivi a Cassa Depositi e Prestiti SPA su mutui e altri finanziamenti a medio lungo termine;1.659,97;0,00;0,00;;Quota Interessi - SISTEMAZIONE STRADA S.ANSANO  ? 125.499,03 - Rep. N.4262078/00;3488;1;7;5;4;3
CASSA DEPOSITI E PRESTITI S.P.A. (C.D.P. S.P.A.);17/07/2020;Interessi passivi a Cassa Depositi e Prestiti SPA su mutui e altri finanziamenti a medio lungo termine;5.641,81;0,00;0,00;;Quota Interessi - FOGNATURE VIA GRAMSCI ? 423.494,66 - Rep. N.4262079/00;3499;1;7;5;4;3
CASSA DEPOSITI E PRESTITI S.P.A. (C.D.P. S.P.A.);17/07/2020;Interessi passivi a Cassa Depositi e Prestiti SPA su mutui e altri finanziamenti a medio lungo termine;4.023,22;0,00;0,00;;Quota Interessi - SISTEMAZIONE STRADE 1 PETROIO  ? 296.226,92 - Rep. N.4273541/00;3489;1;7;5;4;3
CASSA DEPOSITI E PRESTITI S.P.A. (C.D.P. S.P.A.);17/07/2020;Interessi passivi a Cassa Depositi e Prestiti SPA su mutui e altri finanziamenti a medio lungo termine;689,31;0,00;0,00;;Quota Interessi - RETE IDRICA INTERNA ? 185.159,24 - Rep. N.4051791/00;3500;1;7;5;4;3
CASSA DEPOSITI E PRESTITI S.P.A. (C.D.P. S.P.A.);17/07/2020;Interessi passivi a Cassa Depositi e Prestiti SPA su mutui e altri finanziamenti a medio lungo termine;2.472,78;0,00;0,00;;Quota Interessi - ACQUEDOTTO ? 232.103,77 - Rep. N.4055469/00;3501;1;7;5;4;3
CASSA DEPOSITI E PRESTITI S.P.A. (C.D.P. S.P.A.);17/07/2020;Interessi passivi a Cassa Depositi e Prestiti SPA su mutui e altri finanziamenti a medio lungo termine;848,84;0,00;0,00;;Quota Interessi - SCUOLA ELEMENTARE VITOLINI ? 228.011,35 - Rep. N.4083184/00;3457;1;7;5;4;3
CASSA DEPOSITI E PRESTITI S.P.A. (C.D.P. S.P.A.);17/07/2020;Interessi passivi a Cassa Depositi e Prestiti SPA su mutui e altri finanziamenti a medio lungo termine;4.176,24;0,00;0,00;;Quota Interessi - RETE FOGNARIA ? 374.917,54 - Rep. N.4102043/00;3502;1;7;5;4;3
CASSA DEPOSITI E PRESTITI S.P.A. (C.D.P. S.P.A.);17/07/2020;Interessi passivi a Cassa Depositi e Prestiti SPA su mutui e altri finanziamenti a medio lungo termine;621,46;0,00;0,00;;Quota Interessi - AUTOMEZZI PUBBLICI  ? 90.643,02 - Rep. N.4130589/00;3490;1;7;5;4;3
CASSA DEPOSITI E PRESTITI S.P.A. (C.D.P. S.P.A.);17/07/2020;Interessi passivi a Cassa Depositi e Prestiti SPA su mutui e altri finanziamenti a medio lungo termine;683,16;0,00;0,00;;Quota Interessi - SISTEMAZIONE CIMITERO VITOLINI  ? 99.641,88 - Rep. N.4145912/00;3505;1;7;5;4;3
ALIA SERVIZI AMBIENTALI S.P.A.;20/07/2020;Contratti di servizio per la raccolta rifiuti;188.341,82;0,00;17.121,98;4726694F44;"Liquidazione Fattura Nr. 0000133200  del 30/06/2020 (di cui Split per euro 17.121,98) -  Iva da versare a cura del cessionario o committente ai sensi dell'art.17 -ter del D.P.R. nr.633/1972 Scissione pagamenti - giugno 2020
";3563;1;3;2;15;4
OFFICINA MAZZI & TADDEI SNC  DI MAZZI R. E TADDEI G.;22/07/2020;Manutenzione ordinaria e riparazioni di mezzi di trasporto ad uso civile, di sicurezza e ordine pubblico;323,38;0,00;56,48;ZC52D19077;Liquidazione Fattura Nr. 121  del 30/06/2020 (di cui Split per euro 56,48) - REVISIONE E ALTRI INTERVENTI SU PIAGGIO PORTER TARGATO DJ893SZ _ DETERMINA A CONTRARRE E AFFIDAMENTO OFFICINA MAZZI E TADDEI SNC;3573;1;3;2;9;1
M.F.M. SRL;22/07/2020;Generi alimentari;3.040,00;0,00;0,00;;Liquidazione Fattura Nr. 12941  del 08/06/2020 - BUONI SPESA EMERGENZA COVID MAGGIO 2020;3621;1;3;1;2;11
M.F.M. SRL;22/07/2020;Generi alimentari;40,00;0,00;0,00;;Liquidazione Fattura Nr. 15364  del 07/07/2020 - INTEGRAZIONE FT BUONI SPESA EMERGENZA COVID MAGGIO 2020;3620;1;3;1;2;11
LA BOUTIQUE DELLA FRUTTA DI GALIBERTI FRANCESCA;22/07/2020;Generi alimentari;40,00;0,00;0,00;;Liquidazione Fattura Nr. 2/P  del 30/06/2020 - Nota di Debito buoni covid maggio 2020;3619;1;3;1;2;11
COLORIFICIO CAPPELLI  DI STEFANO CAPPELLI;22/07/2020;Altri beni e materiali di consumo n.a.c.;152,68;0,00;27,53;Z8B2CFC1BD;Liquidazione Fattura Nr. 1362  del 30/06/2020 (di cui Split per euro 27,53) - FORNITURA MATERIALI PER VERNICIATURA _ DETERMINA A CONTRARRE E AFFIDAMENTO COLORIFICIO CAPPELLI DI STEFANO CAPPELLI;3598;1;3;1;2;999
ARCA - COOPERATIVA SOCIALE A R.L.;22/07/2020;Contratti di servizio di asilo nido;1.293,75;0,00;61,61;6927708D7B;Liquidazione Fattura Nr. 768/E  del 22/05/2020 (di cui Split per euro 61,61) - GESTIONE SERVIZIO REFEZIONE SVOLTO PRESSO IL NIDO PICCINO PICCIO' NEL MESE DI MARZO 2020;3614;1;3;2;15;10
ARCA - COOPERATIVA SOCIALE A R.L.;22/07/2020;Contratti di servizio di asilo nido;74,18;0,00;3,53;6927708D7B;Liquidazione Fattura Nr. 768/E  del 22/05/2020 (di cui Split per euro 3,53) - GESTIONE SERVIZIO REFEZIONE SVOLTO PRESSO IL NIDO PICCINO PICCIO' NEL MESE DI MARZO 2020;3615;1;3;2;15;10
ARCA - COOPERATIVA SOCIALE A R.L.;22/07/2020;Altri servizi diversi n.a.c.;9.646,05;0,00;459,34;;Liquidazione Fattura Nr. 767/E  del 22/05/2020 (di cui Split per euro 459,34) - GESTIONE SERVIZIO EDUCATIVO SVOLTO PRESSO IL NIDO PICCINO PICCIO' SVOLTO NEL MESE DI MARZO 2020;3616;1;3;2;99;999
ARCA - COOPERATIVA SOCIALE A R.L.;22/07/2020;Trasferimenti correnti a Istituzioni Sociali Private ;2.334,00;0,00;0,00;;CONTRIBUTO PER COSTI DI GESTIONE MESI DI MAGGIO E GIUGNO 2020 DA FINANZIAMENTO MIUR;3624;1;4;4;1;1
BARTALUCCI SAS DI BARTALUCCI ELENA E BARTALUCCI MONICA;22/07/2020;Altri servizi ausiliari n.a.c.;107,06;0,00;19,31;Z712CC2503;Liquidazione Fattura Nr. 195/P  del 06/07/2020 (di cui Split per euro 19,31) - TRASCRIZIONE CC DEL 13 MARZO 2020;3608;1;3;2;13;999
SPEMA S.N.C. - ALLESTIMENTI SU VEICOLI INDUSTRIALI;22/07/2020;Manutenzione ordinaria e riparazioni di mezzi di trasporto ad uso civile, di sicurezza e ordine pubblico;2.360,82;0,00;425,72;ZF52C38642;Liquidazione Fattura Nr. 517  del 15/05/2020 (di cui Split per euro 425,72) - MANUTENZIONE ORDINARIA VARI MEZZI _ DETERMINA A CONTRARRE E AFFIDAMENTO DITTA SPEMA SNC;3574;1;3;2;9;1
ESKIMO COOP. SOCIALE ONLUS;22/07/2020;Trasferimenti correnti a Istituzioni Sociali Private ;2.014,64;0,00;0,00;;CONTRIBUTO PER COSTI DI GESTIONE MESI DI MAGGIO E GIUGNO 2020 DA FINANZIAMENTO MIUR;3625;1;4;4;1;1
NUOVA IDEAL BIMBO SRL;22/07/2020;Generi alimentari;320,00;0,00;0,00;;Liquidazione Fattura Nr. 00000000132  del 08/07/2020 - BUONI COVID MAGGIO 2020;3622;1;3;1;2;11
NUOVA IDEAL BIMBO SRL;22/07/2020;Generi alimentari;620,00;0,00;0,00;;Liquidazione Fattura Nr. 00000000131  del 08/07/2020 - BUONI COVID APRILE 2020;3623;1;3;1;2;11
CENTRO SERVIZI SOC.COOP.SOCIALE;22/07/2020;Altri servizi diversi n.a.c.;144,00;0,00;6,86;;Liquidazione Fattura Nr. 12/PA  del 21/04/2020 (di cui Split per euro 6,86) - ASSEGNAZIONE POSTI NIDO PRESSO NIDO SAN GIOVANNI EVANGELISTA FEBBRAIO 2020;3617;1;3;2;99;999
CENTRO SERVIZI SOC.COOP.SOCIALE;22/07/2020;Altri servizi diversi n.a.c.;288,00;0,00;13,71;;Liquidazione Fattura Nr. 14/PA  del 21/05/2020 (di cui Split per euro 13,71) - ASSEGNAZIONE POSTI NIDO PRESSO NIDO SAN GIOVANNI EVANGELISTA MARZO E APRILE 2020;3618;1;3;2;99;999
GESTORE DEI SERVIZI ENERGETICI - GSE S.P.A.;22/07/2020;Energia elettrica;48,21;0,00;8,69;8191752F96;Liquidazione Fattura Nr. 2020030844  del 29/06/2020 (di cui Split per euro 8,69) - Contributo a favore GSE art. 17 D.M. 28 dicembre 2012 - Codice identificativo richiesta: CT00342310;3626;1;3;2;5;4
GESTORE DEI SERVIZI ENERGETICI - GSE S.P.A.;22/07/2020;Energia elettrica;183,00;0,00;33,00;8191752F96;Liquidazione Fattura Nr. 2020030845  del 29/06/2020 (di cui Split per euro 33,00) - Contributo a favore GSE art. 17 D.M. 28 dicembre 2012 - Codice identificativo richiesta: CT00361413;3627;1;3;2;5;4
GESTORE DEI SERVIZI ENERGETICI - GSE S.P.A.;22/07/2020;Energia elettrica;35,65;0,00;6,43;8191752F96;Liquidazione Fattura Nr. 2020030842  del 29/06/2020 (di cui Split per euro 6,43) - Contributo a favore GSE art. 17 D.M. 28 dicembre 2012 - Codice identificativo richiesta: CT00341313;3628;1;3;2;5;4
GESTORE DEI SERVIZI ENERGETICI - GSE S.P.A.;22/07/2020;Energia elettrica;35,65;0,00;6,43;8191752F96;Liquidazione Fattura Nr. 2020030843  del 29/06/2020 (di cui Split per euro 6,43) - Contributo a favore GSE art. 17 D.M. 28 dicembre 2012 - Codice identificativo richiesta: CT00341810;3629;1;3;2;5;4
GESTORE DEI SERVIZI ENERGETICI - GSE S.P.A.;22/07/2020;Energia elettrica;147,18;0,00;26,54;8191752F96;Liquidazione Fattura Nr. 2020030841  del 29/06/2020 (di cui Split per euro 26,54) - Contributo a favore GSE art. 17 D.M. 28 dicembre 2012 - Codice identificativo richiesta: CT00340155;3630;1;3;2;5;4
RAME LUCA DI MIGLIORINI LUCA;22/07/2020;Cimiteri;1.701,05;0,00;306,75;ZA12B224CD;Liquidazione Fattura Nr. 2/PA  del 14/05/2020 (di cui Split per euro 306,75) - Installazione nuova scossalina al Cimitero di Vitolini;3606;2;2;1;9;15
A2A ENERGIA SPA;22/07/2020;Energia elettrica;46,91;0,00;8,46;8191752F96;Liquidazione Fattura Nr. 820000119099  del 29/06/2020 (di cui Split per euro 8,46) - FORNITURA ENERGIA ELETTRICA periodo: 01.05.2020-31.05.2020 POD IT001E04919517 FORNITURA ENERGIA ELETTRICA CASSA ESPANS. PICCARATO IMESE DI MAGGIO 2020 kWh ;3592;1;3;2;5;4
A2A ENERGIA SPA;22/07/2020;Energia elettrica;20,68;0,00;3,73;8191752F96;Liquidazione Fattura Nr. 820000116204  del 29/06/2020 (di cui Split per euro 3,73) - FORNITURA ENERGIA ELETTRICA periodo: 01.05.2020-31.05.2020 POD IT001E04919518 FORNITURA ENERGIA ELETTRICA PILOMAT MESE DI MAGGIO 2020 kWh 15 Importi al net;3593;1;3;2;5;4
A2A ENERGIA SPA;22/07/2020;Energia elettrica;726,25;0,00;130,96;8191752F96;Liquidazione Fattura Nr. 820000129603  del 29/06/2020 (di cui Split per euro 130,96) - FORNITURA ENERGIA ELETTRICA periodo: 01.05.2020-31.05.2020 POD IT001E43445285 FORNITURA ENERGIA ELETTRICA VIA VILLA ALESSANDRI PETROIO MESE DI MAGGIO 202;3594;1;3;2;5;4
A2A ENERGIA SPA;22/07/2020;Energia elettrica;30,49;0,00;5,50;8191752F96;Liquidazione Fattura Nr. 820000119090  del 29/06/2020 (di cui Split per euro 5,50) - FORNITURA ENERGIA ELETTRICA periodo: 01.05.2020-31.05.2020 POD IT001E04919543 FORNITURA ENERGIA ELETTRICA MERCATO SETT. E IMPIANTO IRRIGAZ. MESE DI MAGGIO ;3595;1;3;2;5;4
A2A ENERGIA SPA;22/07/2020;Energia elettrica;304,58;0,00;54,92;8191752F96;Liquidazione Fattura Nr. 820000119088  del 29/06/2020 (di cui Split per euro 54,92) - FORNITURA ENERGIA ELETTRICA periodo: 01.05.2020-31.05.2020 POD IT001E40889726 FORNITURA ENERGIA ELETTRICA TESTRO MISERICORDIA MESE DI MAGGIO 2020 Importi ;3589;1;3;2;5;4
A2A ENERGIA SPA;22/07/2020;Energia elettrica;286,86;0,00;51,73;8191752F96;Liquidazione Fattura Nr. 820000116205  del 29/06/2020 (di cui Split per euro 51,73) - FORNITURA ENERGIA ELETTRICA periodo: 01.05.2020-31.05.2020 POD IT001E04919534 FORNITURA ENERGIA ELETTRICA RESIDENZA PER ANZIANI MESE DI MAGGIO 2020 kWh 14;3605;1;3;2;5;4
A2A ENERGIA SPA;22/07/2020;Energia elettrica;84,74;0,00;15,28;8191752F96;Liquidazione Fattura Nr. 820000119094  del 29/06/2020 (di cui Split per euro 15,28) - FORNITURA ENERGIA ELETTRICA periodo: 01.05.2020-31.05.2020 POD IT001E04919520 FORNITURA ENERGIA ELETT.SCUOLA PRIM. E SEC. 1� GRADO MESE DI MAGGIO 2020 kWh;3580;1;3;2;5;4
A2A ENERGIA SPA;22/07/2020;Energia elettrica;84,73;0,00;15,28;8191752F96;Liquidazione Fattura Nr. 820000119094  del 29/06/2020 (di cui Split per euro 15,28) - FORNITURA ENERGIA ELETTRICA periodo: 01.05.2020-31.05.2020 POD IT001E04919520 FORNITURA ENERGIA ELETT.SCUOLA PRIM. E SEC. 1� GRADO MESE DI MAGGIO 2020 kWh;3583;1;3;2;5;4
A2A ENERGIA SPA;22/07/2020;Energia elettrica;71,62;0,00;12,92;8191752F96;Liquidazione Fattura Nr. 820000119101  del 29/06/2020 (di cui Split per euro 12,92) - FORNITURA ENERGIA ELETTRICA periodo: 01.05.2020-31.05.2020 POD IT001E04919544 FORNITURA ENERGIA ELETTRICA NIDO COMUNALE MESE DI MAGGIO 2020 kWh 269 Import;3603;1;3;2;5;4
A2A ENERGIA SPA;22/07/2020;Energia elettrica;78,32;0,00;14,12;8191752F96;Liquidazione Fattura Nr. 820000116207  del 29/06/2020 (di cui Split per euro 14,12) - FORNITURA ENERGIA ELETTRICA periodo: 01.05.2020-31.05.2020 POD IT001E41412665 FORNITURA ENERGIA ELETTRICA PALASPORT MESE DI MAGGIO 2020 kWh 599 Importi al;3590;1;3;2;5;4
A2A ENERGIA SPA;22/07/2020;Energia elettrica;52,22;0,00;9,42;8191752F96;Liquidazione Fattura Nr. 820000116207  del 29/06/2020 (di cui Split per euro 9,42) - FORNITURA ENERGIA ELETTRICA periodo: 01.05.2020-31.05.2020 POD IT001E41412665 FORNITURA ENERGIA ELETTRICA PALASPORT MESE DI MAGGIO 2020 kWh 599 Importi al ;3591;1;3;2;5;4
A2A ENERGIA SPA;22/07/2020;Energia elettrica;41,84;0,00;7,54;8191752F96;Liquidazione Fattura Nr. 820000119089  del 29/06/2020 (di cui Split per euro 7,54) - FORNITURA ENERGIA ELETTRICA periodo: 01.05.2020-31.05.2020 POD IT001E04919525 FORNITURA ENERGIA ELETTRICA UFF. TURISTICO NUOVO  MESE DI MAGGIO 2020 Importi;3596;1;3;2;5;4
A2A ENERGIA SPA;22/07/2020;Energia elettrica;29,95;0,00;5,40;8191752F96;Liquidazione Fattura Nr. 820000116201  del 29/06/2020 (di cui Split per euro 5,40) - FORNITURA ENERGIA ELETTRICA periodo: 01.05.2020-31.05.2020 POD IT001E04919526 FORNITURA ENERGIA ELETTRICA BAGNI PUBBLICI MESE DI MAGGIO 2020 Importi al net;3597;1;3;2;5;4
A2A ENERGIA SPA;22/07/2020;Energia elettrica;180,88;0,00;32,61;8191752F96;Liquidazione Fattura Nr. 820000119083  del 29/06/2020 (di cui Split per euro 32,61) - FORNITURA ENERGIA ELETTRICA periodo: 01.05.2020-31.05.2020 POD IT001E04919529 FORNITURA ENERGIA ELETTRICA CASA NATALE LEONARDO MESE DI MAGGIO 2020 kWh 832;3586;1;3;2;5;4
A2A ENERGIA SPA;22/07/2020;Energia elettrica;86,08;0,00;15,52;8191752F96;Liquidazione Fattura Nr. 820000119098  del 29/06/2020 (di cui Split per euro 15,52) - FORNITURA ENERGIA ELETTRICA periodo: 01.05.2020-31.05.2020 POD IT001E04919540 FORNITURA ENERGIA ELETTRICA BIBLIOTECA MESE DI MAGGIO 2020 kWh 354 Importi a;3604;1;3;2;5;4
A2A ENERGIA SPA;22/07/2020;Energia elettrica;226,88;0,00;40,92;8191752F96;Liquidazione Fattura Nr. 820000116200  del 29/06/2020 (di cui Split per euro 40,92) - FORNITURA ENERGIA ELETTRICA periodo: 01.05.2020-31.05.2020 POD IT001E04919516 FORNITURA ENERGIA ELETTRICA SCUOLA PRIMARIA SPICCHIO MESE DI MAGGIO 2020 kWh;3581;1;3;2;5;4
A2A ENERGIA SPA;22/07/2020;Energia elettrica;93,20;0,00;16,81;8191752F96;Liquidazione Fattura Nr. 820000116206  del 29/06/2020 (di cui Split per euro 16,81) - FORNITURA ENERGIA ELETTRICA periodo: 01.05.2020-31.05.2020 POD IT001E04919519 FORNITURA ENERGIA ELETTRICA URP VIA FUCINI MESE DI MAGGIO 2020 kWh 372 Impor;3576;1;3;2;5;4
A2A ENERGIA SPA;22/07/2020;Energia elettrica;74,14;0,00;13,37;8191752F96;Liquidazione Fattura Nr. 820000119095  del 29/06/2020 (di cui Split per euro 13,37) - FORNITURA ENERGIA ELETTRICA periodo: 01.05.2020-31.05.2020 POD IT001E43232057 FORNITURA ENERGIA ELETTRICA FONTANEL. P.ZZA GARIBALDI MESE DI MAGGIO 2020 kW;3602;1;3;2;5;4
A2A ENERGIA SPA;22/07/2020;Energia elettrica;674,52;0,00;121,64;8191752F96;Liquidazione Fattura Nr. 820000116202  del 29/06/2020 (di cui Split per euro 121,64) - FORNITURA ENERGIA ELETTRICA periodo: 01.05.2020-31.05.2020 POD IT001E04919531 FORNITURA ENERGIA ELETTRICA MUSEO LEONARDIANO MESE DI MAGGIO 2020 Importi a;3587;1;3;2;5;4
A2A ENERGIA SPA;22/07/2020;Energia elettrica;41,72;0,00;7,52;8191752F96;Liquidazione Fattura Nr. 820000119097  del 29/06/2020 (di cui Split per euro 7,52) - FORNITURA ENERGIA ELETTRICA periodo: 01.05.2020-31.05.2020 POD IT001E43263124 FORNITURA ENERGIA ELETTRICA FONTANELLO VITOLINI MESE DI MAGGIO 2020 kWh 123 I;3601;1;3;2;5;4
A2A ENERGIA SPA;22/07/2020;Energia elettrica;30,90;0,00;5,57;8191752F96;Liquidazione Fattura Nr. 820000116199  del 29/06/2020 (di cui Split per euro 5,57) - FORNITURA ENERGIA ELETTRICA periodo: 01.05.2020-31.05.2020 POD IT001E04919527 FORNITURA ENERGIA ELETTRICA ARCHIVIO COMUNALE MESE DI MAGGIO 2020 kWh 56 Impo;3575;1;3;2;5;4
A2A ENERGIA SPA;22/07/2020;Energia elettrica;39,13;0,00;7,05;8191752F96;Liquidazione Fattura Nr. 820000116194  del 29/06/2020 (di cui Split per euro 7,05) - FORNITURA ENERGIA ELETTRICA periodo: 01.05.2020-31.05.2020 POD IT001E41398842 FORNITURA ENERGIA ELETTRICA FONTANELLO PARCO MILLE MESE DI MAGGIO 2020  kWh 1;3599;1;3;2;5;4
A2A ENERGIA SPA;22/07/2020;Energia elettrica;44,95;0,00;8,11;8191752F96;Liquidazione Fattura Nr. 820000119087  del 29/06/2020 (di cui Split per euro 8,11) - FORNITURA ENERGIA ELETTRICA periodo: 01.05.2020-31.05.2020 POD IT001E43232056 FORNITURA ENERGIA ELETTRICA FONTANELLO APPARITA MESE DI MAGGIO 2020 kWh 140 I;3600;1;3;2;5;4
A2A ENERGIA SPA;22/07/2020;Energia elettrica;40,05;0,00;7,22;8191752F96;Liquidazione Fattura Nr. 820000119093  del 29/06/2020 (di cui Split per euro 7,22) - FORNITURA ENERGIA ELETTRICA periodo: 01.05.2020-31.05.2020 POD IT001E40889318 FORNITURA ENERGIA ELETTRICA CASA COMPARINI MESE DI MAGGIO 20202 kWh 116 Impor;3567;1;3;2;5;4
A2A ENERGIA SPA;22/07/2020;Energia elettrica;306,41;0,00;55,25;8191752F96;Liquidazione Fattura Nr. 820000119096  del 29/06/2020 (di cui Split per euro 55,25) - FORNITURA ENERGIA ELETTRICA periodo: 01.05.2020-31.05.2020 POD IT001E04919528 FORNITURA ENERGIA ELETTRICA PALAZZINA UZIELLI MESE DI MAGGIO 2020 kWh 1520 I;3588;1;3;2;5;4
A2A ENERGIA SPA;22/07/2020;Energia elettrica;261,47;0,00;47,15;8191752F96;Liquidazione Fattura Nr. 820000116196  del 29/06/2020 (di cui Split per euro 47,15) - FORNITURA ENERGIA ELETTRICA periodo: 01.05.2020-31.05.2020 POD IT001E04919536 FORNITURA ENERGIA ELETTRICA UFF. COMUN. VIA BATTISTI MESE DI MAGGIO 2020 kWh;3568;1;3;2;5;4
A2A ENERGIA SPA;22/07/2020;Energia elettrica;22,28;0,00;4,02;8191752F96;Liquidazione Fattura Nr. 820000116203  del 29/06/2020 (di cui Split per euro 4,02) - FORNITURA ENERGIA ELETTRICA periodo: 01.05.2020-31.05.2020 POD IT001E41741369 FORNITURA ENERGIA ELETTRICA ALLOGGI PETROIO MESE DI MAGGIO 2020 kWh 24 Import;3569;1;3;2;5;4
A2A ENERGIA SPA;22/07/2020;Energia elettrica;980,37;0,00;176,79;8191752F96;Liquidazione Fattura Nr. 820000119092  del 29/06/2020 (di cui Split per euro 176,79) - FORNITURA ENERGIA ELETTRICA periodo: 01.05.2020-31.05.2020 POD IT001E04919523 FORNITURA ENERGIA ELETTRICA EDIFICIO COMUNALE MESE DI MAGGIO 2020 kWh 5057 ;3570;1;3;2;5;4
A2A ENERGIA SPA;22/07/2020;Energia elettrica;17,81;0,00;3,21;8191752F96;Liquidazione Fattura Nr. 820000116197  del 29/06/2020 (di cui Split per euro 3,21) - FORNITURA ENERGIA ELETTRICA periodo: 01.05.2020-31.05.2020 POD IT001E04919522 FORNITURA ENERGIA ELETTRICA LOCALI EX MACELLI MESE DI MAGGIO 2020 kWh 0 Impor;3571;1;3;2;5;4
A2A ENERGIA SPA;22/07/2020;Energia elettrica;116,21;0,00;20,95;8191752F96;Liquidazione Fattura Nr. 820000116208  del 29/06/2020 (di cui Split per euro 20,95) - FORNITURA ENERGIA ELETTRICA periodo: 01.05.2020-31.05.2020 POD IT001E04919521 FORNITURA ENERGIA ELETTRICA BIBLIOTECA MESE DI MAGGIO 2020 Importi al netto ;3585;1;3;2;5;4
A2A ENERGIA SPA;22/07/2020;Energia elettrica;33,61;0,00;6,06;8191752F96;Liquidazione Fattura Nr. 820000116193  del 29/06/2020 (di cui Split per euro 6,06) - FORNITURA ENERGIA ELETTRICA periodo: 01.05.2020-31.05.2020 POD IT001E04919532 FORNITURA ENERGIA ELETTRICA UFF. COMUNALI VIA TORRE, 9 MESE DI MAGGIO 2020 kW;3572;1;3;2;5;4
A2A ENERGIA SPA;22/07/2020;Energia elettrica;17,81;0,00;3,21;8191752F96;Liquidazione Fattura Nr. 820000116198  del 29/06/2020 (di cui Split per euro 3,21) - FORNITURA ENERGIA ELETTRICA periodo: 01.05.2020-31.05.2020 POD IT001E04919533 FORNITURA ENERGIA ELETTRICA UFF. DISMESSO VIA TORRE 3 MESE DI MAGGIO 2020 kWh;3564;1;3;2;5;4
A2A ENERGIA SPA;22/07/2020;Energia elettrica;232,63;0,00;41,95;8191752F96;Liquidazione Fattura Nr. 820000116195  del 29/06/2020 (di cui Split per euro 41,95) - FORNITURA ENERGIA ELETTRICA periodo: 01.05.2020-31.05.2020 POD IT001E04919524 FORNITURA ENERGIA ELETTRICA MAGAZZINO COMUNALE MESE DI MAGGIO 2020 kWh 1138 ;3565;1;3;2;5;4
A2A ENERGIA SPA;22/07/2020;Energia elettrica;68,75;0,00;12,40;8191752F96;Liquidazione Fattura Nr. 820000119091  del 29/06/2020 (di cui Split per euro 12,40) - FORNITURA ENERGIA ELETTRICA periodo: 01.05.2020-31.05.2020 POD IT001E04919535 FORNITURA ENERGIA ELETTRICA SCUOLA INFANZIA VINCI MESE DI MAGGIO 2020 kWh 26;3578;1;3;2;5;4
A2A ENERGIA SPA;22/07/2020;Energia elettrica;221,50;0,00;39,94;8191752F96;Liquidazione Fattura Nr. 820000119084  del 29/06/2020 (di cui Split per euro 39,94) - FORNITURA ENERGIA ELETTRICA periodo: 01.05.2020-31.05.2020 POD IT001E04919538 FORNITURA ENERGIA ELETTRICA SCUOLA INFAN. SOVIGLIANA MESE DI MAGGIO 2020 kWh;3579;1;3;2;5;4
A2A ENERGIA SPA;22/07/2020;Energia elettrica;46,47;0,00;8,38;8191752F96;Liquidazione Fattura Nr. 820000119085  del 29/06/2020 (di cui Split per euro 8,38) - FORNITURA ENERGIA ELETTRICA periodo: 01.05.2020-31.05.2020 POD IT001E04919530 FORNITURA ENERGIA ELETTRICA EX SCUOLA DI ANCHIANO MESE DI MAGGIO 2020 kWh 199;3566;1;3;2;5;4
A2A ENERGIA SPA;22/07/2020;Energia elettrica;62,79;0,00;11,32;8191752F96;Liquidazione Fattura Nr. 820000119086  del 29/06/2020 (di cui Split per euro 11,32) - FORNITURA ENERGIA ELETTRICA periodo: 01.05.2020-31.05.2020 POD IT001E04919515 FORNITURA ENERGIA ELETTRICA SCUOLA INFANZIA SPCCHIO MESE DI MAGGIO 2020 kWh ;3577;1;3;2;5;4
A2A ENERGIA SPA;22/07/2020;Energia elettrica;275,55;0,00;49,69;8191752F96;Liquidazione Fattura Nr. 820000119100  del 29/06/2020 (di cui Split per euro 49,69) - FORNITURA ENERGIA ELETTRICA periodo: 01.05.2020-31.05.2020 POD IT001E40886806 FORNITURA ENERGIA ELETT. SCUOLA SEC.1� GRADO SOVIGLI.MESE DI MAGGIO 2020 kWh;3582;1;3;2;5;4
LA FIORERIA SNC DI BALDACCI SIMONA & C.;22/07/2020;Beni per attivit� di rappresentanza ;71,50;0,00;6,50;ZCE2BE0C76;Liquidazione Fattura Nr. 12  del 19/06/2020 (di cui Split per euro 6,50) - corona alloro cippo di spicchio 20 giu 2020;3607;1;3;1;2;9
C.G.C. SRL;22/07/2020;Altri beni e materiali di consumo n.a.c.;487,07;0,00;87,83;ZB82D22008;Liquidazione Fattura Nr. 323-2020-FE  del 30/06/2020 (di cui Split per euro 87,83) - prodotti anticovid per pulizie e sanificazione musei;3613;1;3;1;2;999
C.G.C. SRL;22/07/2020;Altri beni e materiali di consumo n.a.c.;177,44;0,00;32,00;ZB82D22008;Liquidazione Fattura Nr. 323-2020-FE  del 30/06/2020 (di cui Split per euro 32,00) - prodotti anticovid per pulizie e sanificazione edifici comunali;3612;1;3;1;2;999
ELMAS S.R.L.;23/07/2020;Manutenzione ordinaria e riparazioni di impianti e macchinari;744,81;0,00;134,31;Z4A2B64EA7;Liquidazione Fattura Nr. V5-0012  del 30/04/2020 (di cui Split per euro 134,31) - SERVIZIO DI MANUTENZIONE E VERIFICHE PERIODICHE DEGLI IMPIANTI DI ALLARME, TVCC E RILEVAZIONE INCENDI PRESSO EDIFICI ISTITUZIONALI, SERVIZI GENERALI,  SCUOLE,;3638;1;3;2;9;4
ELMAS S.R.L.;23/07/2020;Manutenzione ordinaria e riparazioni di beni immobili;374,54;0,00;67,54;Z4A2B64EA7;Liquidazione Fattura Nr. V5-0012  del 30/04/2020 (di cui Split per euro 67,54) - SERVIZIO DI MANUTENZIONE E VERIFICHE PERIODICHE DEGLI IMPIANTI DI ALLARME, TVCC E RILEVAZIONE INCENDI PRESSO EDIFICI ISTITUZIONALI, SERVIZI GENERALI,  SCUOLE, ;3647;1;3;2;9;8
ELMAS S.R.L.;23/07/2020;Manutenzione ordinaria e riparazioni di impianti e macchinari;362,34;0,00;65,34;Z4A2B64EA7;Liquidazione Fattura Nr. V5-0012  del 30/04/2020 (di cui Split per euro 65,34) - SERVIZIO DI MANUTENZIONE E VERIFICHE PERIODICHE DEGLI IMPIANTI DI ALLARME, TVCC E RILEVAZIONE INCENDI PRESSO EDIFICI ISTITUZIONALI, SERVIZI GENERALI,  SCUOLE, ;3640;1;3;2;9;4
ELMAS S.R.L.;23/07/2020;Manutenzione ordinaria e riparazioni di impianti e macchinari;304,39;0,00;54,89;Z4A2B64EA7;Liquidazione Fattura Nr. V5-0012  del 30/04/2020 (di cui Split per euro 54,89) - SERVIZIO DI MANUTENZIONE E VERIFICHE PERIODICHE DEGLI IMPIANTI DI ALLARME, TVCC E RILEVAZIONE INCENDI PRESSO EDIFICI ISTITUZIONALI, SERVIZI GENERALI,  SCUOLE, ;3637;1;3;2;9;4
ELMAS S.R.L.;23/07/2020;Manutenzione ordinaria e riparazioni di impianti e macchinari;231,80;0,00;41,80;Z4A2B64EA7;Liquidazione Fattura Nr. V5-0012  del 30/04/2020 (di cui Split per euro 41,80) - SERVIZIO DI MANUTENZIONE E VERIFICHE PERIODICHE DEGLI IMPIANTI DI ALLARME, TVCC E RILEVAZIONE INCENDI PRESSO EDIFICI ISTITUZIONALI, SERVIZI GENERALI,  SCUOLE, ;3631;1;3;2;9;4
ELMAS S.R.L.;23/07/2020;Manutenzione ordinaria e riparazioni di impianti e macchinari;158,60;0,00;28,60;Z4A2B64EA7;Liquidazione Fattura Nr. V5-0012  del 30/04/2020 (di cui Split per euro 28,60) - SERVIZIO DI MANUTENZIONE E VERIFICHE PERIODICHE DEGLI IMPIANTI DI ALLARME, TVCC E RILEVAZIONE INCENDI PRESSO EDIFICI ISTITUZIONALI, SERVIZI GENERALI,  SCUOLE, ;3641;1;3;2;9;4
ELMAS S.R.L.;23/07/2020;Manutenzione ordinaria e riparazioni di impianti e macchinari;158,60;0,00;28,60;Z4A2B64EA7;Liquidazione Fattura Nr. V5-0012  del 30/04/2020 (di cui Split per euro 28,60) - SERVIZIO DI MANUTENZIONE E VERIFICHE PERIODICHE DEGLI IMPIANTI DI ALLARME, TVCC E RILEVAZIONE INCENDI PRESSO EDIFICI ISTITUZIONALI, SERVIZI GENERALI,  SCUOLE, ;3633;1;3;2;9;4
ELMAS S.R.L.;23/07/2020;Manutenzione ordinaria e riparazioni di impianti e macchinari;103,70;0,00;18,70;Z4A2B64EA7;Liquidazione Fattura Nr. V5-0012  del 30/04/2020 (di cui Split per euro 18,70) - SERVIZIO DI MANUTENZIONE E VERIFICHE PERIODICHE DEGLI IMPIANTI DI ALLARME, TVCC E RILEVAZIONE INCENDI PRESSO EDIFICI ISTITUZIONALI, SERVIZI GENERALI,  SCUOLE, ;3635;1;3;2;9;4
ELMAS S.R.L.;23/07/2020;Manutenzione ordinaria e riparazioni di beni immobili;63,44;0,00;11,44;Z4A2B64EA7;Liquidazione Fattura Nr. V5-0012  del 30/04/2020 (di cui Split per euro 11,44) - SERVIZIO DI MANUTENZIONE E VERIFICHE PERIODICHE DEGLI IMPIANTI DI ALLARME, TVCC E RILEVAZIONE INCENDI PRESSO EDIFICI ISTITUZIONALI, SERVIZI GENERALI,  SCUOLE, ;3642;1;3;2;9;8
ELMAS S.R.L.;23/07/2020;Manutenzione ordinaria e riparazioni di beni immobili;95,16;0,00;17,16;Z4A2B64EA7;Liquidazione Fattura Nr. V5-0013  del 30/04/2020 (di cui Split per euro 17,16) - SERVIZIO DI MANUTENZIONE E VERIFICHE PERIODICHE DEGLI IMPIANTI DI ALLARME, TVCC E RILEVAZIONE INCENDI PRESSO NIDO, MUSEI, PALASPORT (60%) PER L'ANNO 2019;3643;1;3;2;9;8
ELMAS S.R.L.;23/07/2020;Manutenzione ordinaria e riparazioni di impianti e macchinari;201,30;0,00;36,30;Z4A2B64EA7;Liquidazione Fattura Nr. V5-0013  del 30/04/2020 (di cui Split per euro 36,30) - SERVIZIO DI MANUTENZIONE E VERIFICHE PERIODICHE DEGLI IMPIANTI DI ALLARME, TVCC E RILEVAZIONE INCENDI PRESSO NIDO, MUSEI, PALASPORT (60%) PER L'ANNO 2019;3646;1;3;2;9;4
ELMAS S.R.L.;23/07/2020;Manutenzione ordinaria e riparazioni di impianti e macchinari;3.300,10;0,00;595,10;Z4A2B64EA7;Liquidazione Fattura Nr. V5-0013  del 30/04/2020 (di cui Split per euro 595,10) - SERVIZIO DI MANUTENZIONE E VERIFICHE PERIODICHE DEGLI IMPIANTI DI ALLARME, TVCC E RILEVAZIONE INCENDI PRESSO NIDO, MUSEI, PALASPORT (60%) PER L'ANNO 2019;3639;1;3;2;9;4
PERI ELETTRONICA  SAS DI PERI MASSIMO & C.;23/07/2020;Altri beni e materiali di consumo n.a.c.;970,88;0,00;175,08;Z852D0C9D4;Liquidazione Fattura Nr. 165/01  del 09/06/2020 (di cui Split per euro 175,08) - ACQUISTO RICETRASMITTENTI _ DETERMINA A CONTRARRE E AFFIDAMENTO DITTA PERI ELETTRONICA SAS;3645;1;3;1;2;999
GIGLIOLI PIATTAFORME DI GIGLIOLI ANTONIO & C. S.A.S.;23/07/2020;Manutenzione ordinaria e riparazioni di beni immobili;475,80;0,00;85,80;Z1A2C5BCC5;Liquidazione Fattura Nr. 481  del 31/05/2020 (di cui Split per euro 85,80) - Contratto di Noleggio Iva da versare a cura del cessionario o committente ai sensi dell'art. 17-ter del D.P.R. n. 633/1972 (scissione dei pagamenti);3644;1;3;2;9;8
LEGGERE S.R.L.;23/07/2020;Pubblicazioni;1.192,98;0,00;0,00;Z8E29E47DF;Liquidazione Fattura Nr. 5180 del 27/05/2020 al netto di Nota: N. 5181 del 27/05/2020 di 6,88 - FORNITURA DI MATERIALE BIBLIOGRAFICO A STAMPA (VOLUMI E PERIODICI) PER LA BIBLIOTECA;3655;1;3;1;1;2
LEGGERE S.R.L.;23/07/2020;Pubblicazioni;499,07;0,00;90,00;Z8E29E47DF;Liquidazione Fattura Nr. 5179 del 27/05/2020 - FORNITURA DI MATERIALE MULTIMEDIALE PER LA BIBLIOTECA (di cui Split per euro 90,00);3656;1;3;1;1;2
ARNO MANETTI ASCENSORI S.R.L.;23/07/2020;Manutenzione ordinaria e riparazioni di impianti e macchinari;1.403,00;0,00;253,00;Z9C2CD026C;Liquidazione Fattura Nr. 8/E  del 21/05/2020 (di cui Split per euro 253,00) - INTERVENTO EXTRACANONE SU IMPIANTO ASCENSORE INSTALLATO PRESSO IL PALAZZO COMUNALE - DETERMINA A CONTRARRE ? AFFIDAMENTO DITTA ARNO MANETTI ASCENSORI SRL;3632;1;3;2;9;4
BLITZ DISINFESTAZIONI SRL;23/07/2020;Altri acquisti di servizi sanitari n.a.c.;1.382,27;0,00;249,26;ZBF274214B;Liquidazione Fattura Nr. 481/20  del 30/06/2020 (di cui Split per euro 249,26) - Fornitura generica;3661;1;3;2;18;999
ESKIMO COOP. SOCIALE ONLUS;23/07/2020;Altri servizi diversi n.a.c.;433,10;0,00;78,10;ZC52B2C96B;Liquidazione Fattura Nr. FATTPA 50_20 del 09/07/2020 - APPALTO SERVIZIO DI ATTACCHINAGGIO RELATIVO ALLE PUBBLICHE AFFISSIONI DAL 01.01.2020 AL 31.03.2020 - DETERMINA A CONTRARRE E AFFIDAMENTO (di cui Split per euro 78,10);3654;1;3;2;99;999
CO&SO EMPOLI - CONS. DI COOP. SOCIALI - SOCIETA' COOPERATIVA;23/07/2020;Altre spese per contratti di servizio pubblico;934,20;0,00;0,00;7121843AC1;Liquidazione Fattura Nr. 000430-2C0 del 25/05/2020 - Fattura smart working e realizzazione attivit� didattiche a distanza per biblioteca leonardiana e sedi distaccate - aprile 2020;3658;1;3;2;15;999
ALREDY TOSCANA SOC. COOP.;23/07/2020;Altri beni e materiali di consumo n.a.c.;153,72;0,00;27,72;Z012D2C182;Liquidazione Fattura Nr. 195  del 12/06/2020 (di cui Split per euro 27,72) - vendita;3659;1;3;1;2;999
VAR GROUP S.P.A. CON SOCIO UNICO;23/07/2020;Gestione e manutenzione applicazioni;201,30;0,00;36,30;Z6A2BDDAF5;Liquidazione Fattura Nr. 20/2E/000105 del 29/05/2020 - FATTURA SEZ.E Ove dovuto, contributo SIAE per D.L. N.68 del 9/4/2003, incluso nel prezzo. Contributo Ambientale CONAI assolto (di cui Split per euro 36,30);3657;1;3;2;19;1
LORENZO GIUSEPPE;23/07/2020;Altre prestazioni professionali e specialistiche n.a.c.;886,16;139,68;0,00;Z2F247F10D;LIQUIDAZIONE FATTURA NR. 89  DEL 06/05/2020 (DI CUI SPLIT PER EURO 160,16) - FORNITURA GENERICA;3634;1;3;2;11;999
LORENZO GIUSEPPE;23/07/2020;Altri beni e materiali di consumo n.a.c.;2,00;0,00;0,00;Z10279ED9E;LIQUIDAZIONE FATTURA NR. 89  DEL 06/05/2020 - FORNITURA GENERICA;3636;1;3;1;2;999
GE-GROUP SRL;23/07/2020;Impianti sportivi;352,00;0,00;32,00;Z622CE6A4F;Liquidazione Fattura Nr. 122-2020-FE  del 01/06/2020 (di cui Split per euro 32,00) - Fornitura e posa di riduttore di pressione e valvola sicurezza su centr. termica Campo Sportivo Vitolini;3650;2;2;1;9;16
PALANDRI E BELLI S.R.L.;23/07/2020;Fabbricati ad uso scolastico;2.719,96;0,00;247,27;7513007980;"Liquidazione Fattura Nr. 98  del 10/06/2020 (di cui Split per euro 247,27) - RIQUALIFICAZIONE CORPI ""B"" E ""C"" E COMPLETAMENTO DELLE OPERE DI PREVENZIONE INCENDI DELLA SCUOLA PRIMARIA SIBILLA ALERAMO DI SPICCHIO ? APPROVAZIONE VARIATA DISTRI";3648;2;2;1;9;3
DELTA PROJECT DI TOSI FABIO;23/07/2020;Incarichi professionali per la realizzazione di investimenti;1.529,64;0,00;0,00;Z2A2A8B244;Liquidazione Fattura Nr. FPA 1/20  del 08/06/2020 - LAVORI AGLI IMPIANTI ELETTRICI E SPECIALI PRELIMINARI ALL'APPALTO DI RIQUALIFICAZIONE ENERGETICA E MIGLIORAMENTO SISMICO SCUOLA SECONDARIA DI PRIMO GRADO SOVIGLIANA - INCARICO PER PROGETTO;3652;2;2;3;5;1
DELTA PROJECT DI TOSI FABIO;23/07/2020;Incarichi professionali per la realizzazione di investimenti;1.466,86;0,00;0,00;Z2A2A8B244;Liquidazione Fattura Nr. FPA 1/20  del 08/06/2020 - LAVORI AGLI IMPIANTI ELETTRICI E SPECIALI PRELIMINARI ALL'APPALTO DI RIQUALIFICAZIONE ENERGETICA E MIGLIORAMENTO SISMICO SCUOLA SECONDARIA DI PRIMO GRADO SOVIGLIANA - INCARICO PER PROGETTO;3651;2;2;3;5;1
DELTA PROJECT DI TOSI FABIO;23/07/2020;Fabbricati ad uso scolastico;921,08;0,00;0,00;Z1F2CF1480;Liquidazione Fattura Nr. FPA 2/20  del 08/06/2020 - LAVORI AGLI IMPIANTI ELETTRICI E SPECIALI PRELIMINARI ALL'APPALTO DI RIQUALIFICAZIONE ENERGETICA E MIGLIORAMENTO SISMICO SCUOLA SECONDARIA DI PRIMO GRADO SOVIGLIANA ? INTEGRAZIONE INCARICO;3649;2;2;1;9;3
"SCUOLA DI MUSICA ""L'OTTAVA NOTA""";23/07/2020;Altre prestazioni professionali e specialistiche n.a.c.;150,00;0,00;0,00;;integrazione pagamento per mancato versamento dell'IVA;3660;1;3;2;11;999
T. E. S. S.P.A.;23/07/2020;Infrastrutture stradali;5.978,00;0,00;1.078,00;Z612C9764B;Liquidazione Fattura Nr. 316PA  del 29/05/2020 (di cui Split per euro 1.078,00) - VENDITA;3653;2;2;1;9;12
AMMINISTRATORI COMUNALI;28/07/2020;Organi istituzionali dell'amministrazione - indennit�;6.894,12;0,00;0,00;;stipendio 07;3662;1;3;2;1;1
CASALINI LIBRI S.P.A.;30/07/2020;Materiale bibliografico;448,55;0,00;0,00;Z5929C582D;Liquidazione Fattura Nr. 20-15687 del 08/07/2020 - Acquisto risorse librarie;3936;2;2;1;99;1
CASALINI LIBRI S.P.A.;30/07/2020;Materiale bibliografico;332,91;0,00;0,00;Z5929C582D;Liquidazione Fattura Nr. 20-15686 del 08/07/2020 - Acquisto risorse librarie;3937;2;2;1;99;1
EUROGRAFICA  S.R.L.;30/07/2020;Altri beni e materiali di consumo n.a.c.;16,50;0,00;16,50;;IVA Liquidazione Fattura Nr. 3/01  del 25/06/2020 (di cui Split per euro 16,50) - Acquisto cartellini adesivi per nuove tessere pilomat;3922;1;3;1;2;999
ALBERTO TALLONE EDITORE S.A.S.;30/07/2020;Materiale bibliografico;260,00;0,00;0,00;Z9B2D67011;Liquidazione Fattura Nr. 56 del 03/07/2020 - Fornitura generica;3938;2;2;1;99;1
KUWAIT PETROLEUM ITALIA S.P.A.;30/07/2020;Carburanti, combustibili e lubrificanti ;1.222,01;0,00;220,36;785073791D;Liquidazione Fattura Nr. PJ02721035  del 30/06/2020 (di cui Split per euro 220,36) - FORNITURA DI CARBURANTE PER AUTOTRAZIONE MEDIANTE FUEL CARD ? ADESIONE ACCORDO QUADRO-GIUGNO 2020;3941;1;3;1;2;2
KUWAIT PETROLEUM ITALIA S.P.A.;30/07/2020;Carburanti, combustibili e lubrificanti ;1.179,20;0,00;212,64;785073791D;Liquidazione Fattura Nr. PJ02721035  del 30/06/2020 (di cui Split per euro 212,64) - FORNITURA DI CARBURANTE PER AUTOTRAZIONE MEDIANTE FUEL CARD ? ADESIONE ACCORDO QUADRO-GIUGNO 2020;3940;1;3;1;2;2
KUWAIT PETROLEUM ITALIA S.P.A.;30/07/2020;Carburanti, combustibili e lubrificanti ;437,47;0,00;78,89;785073791D;Liquidazione Fattura Nr. PJ02721035  del 30/06/2020 (di cui Split per euro 78,89) - FORNITURA DI CARBURANTE PER AUTOTRAZIONE MEDIANTE FUEL CARD ? ADESIONE ACCORDO QUADRO-GIUGNO 2020;3939;1;3;1;2;2
AGENZIA PER LO SVILUPPO  EMPOLESE VALDESA S.P.A.;30/07/2020;Acquisto di servizi per altre spese per formazione e addestramento n.a.c.;250,00;0,00;0,00;ZDE2C035D6;"Liquidazione Fattura Nr. 204/03  del 08/06/2020 - FORMAZIONE DELLE RISORSE UMANE DELL'ENTE-PARTECIPAZIONE DI DUE DIPENDENTI AL CORSO ""IL REDDITO DI CITTADINANZA:IL RUOLO DEI COMUNI E DELL'ANAGRAFE"" ORGANIZZATO PER IL GIORNO 03/03/2020  - DE";3920;1;3;2;4;999
DHL EXPRESS (ITALY) S.R.L.;30/07/2020;Altre prestazioni professionali e specialistiche n.a.c.;221,38;0,00;39,92;Z702BF2508;Liquidazione Fattura Nr. MIL0002564744  del 30/06/2020 (di cui Split per euro 39,92) - Arrotondamento IVA -0.030;3934;1;3;2;11;999
ETRURIA P.A. SRL;30/07/2020;Carta, cancelleria e stampati;26,40;0,00;26,40;;IVA Liquidazione Fattura Nr. 845/00000  del 29/05/2020 (di cui Split per euro 26,40) - Fornitura generica;3919;1;3;1;2;1
ARTMEDIASTUDIO DI V.CAPALBO E M.BERTOZZI ARCHITETTI;30/07/2020;Manutenzione ordinaria e riparazioni di altri beni materiali;63,44;10,00;0,00;ZE52D4117E;LIQUIDAZIONE FATTURA NR. 13  DEL 07/07/2020 - INTERVENTO DI PROGRAMMAZIONE SUL SISTEMA DI MULTI PROIEZIONE DELLA VIDEO INSTALLAZIONE 'LEONARDO DA VINCI. UN GENIO SI RACCONTA';3929;1;3;2;9;11
CO&SO EMPOLI - CONS. DI COOP. SOCIALI - SOCIETA' COOPERATIVA;30/07/2020;Altre spese per contratti di servizio pubblico;1.505,85;0,00;271,55;7551132F3D;Liquidazione Fattura Nr. 000422-2C0  del 25/05/2020 (di cui Split per euro 271,55) - Fatt. regime sciss.pag.;3935;1;3;2;15;999
CO&SO EMPOLI - CONS. DI COOP. SOCIALI - SOCIETA' COOPERATIVA;30/07/2020;Altre spese per contratti di servizio pubblico;1.448,24;0,00;0,00;7551132F3D;Liquidazione Fattura Nr. 000421-2C0  del 25/05/2020 - Fattura vendita;3931;1;3;2;15;999
UNIONE DEI COMUNI CIRCONDARIO EMPOLESE VALDELSA;30/07/2020;Trasferimenti correnti a Unioni di Comuni;153.657,48;0,00;0,00;;QUOTA SOCIALE PER RATA DEL 20/06/2020_ TRASFERIMENTO ALL'UNIONE DEI COMUNI DEL CIRCONDARIO DELL'EMPOLESE VALDELSA PER LE TUTTE LE FUNZIONI SOCIO ASSISTENZIALI  COME DA CONVENZIONE CON SDS- ESERCIZIO 2020-;3927;1;4;1;2;5
STUDIO PICCHI ASSOCIATO;30/07/2020;Altre prestazioni professionali e specialistiche n.a.c.;2.579,46;406,60;0,00;Z532B35F19;LIQUIDAZIONE FATTURA NR. 45/PA  DEL 23/06/2020 - AFFIDAMENTO DEL  SERVIZIO ELABORAZIONE PAGHE, CONTRIBUTI E RELATIVI ADEMPIMENTI CONNESSI PER IL  PERIODO 01/01/2020 -31/12/2020: DETERMINA A CONTRARRE E DI AGGIUDICAZIONE SU START ALLO STUDIO;3921;1;3;2;11;999
ART DEFENDER SRL;30/07/2020;Altri servizi diversi n.a.c.;915,00;0,00;165,00;Z242A2145C;Liquidazione Fattura Nr. 000000147  del 17/03/2020 (di cui Split per euro 165,00) - DETERMINAZIONE A CONTRARRE E AFFIDAMENTO DEL SERVIZIO DI CUSTODIA DI N. 5 MODELLI DELLA COLLEZIONE PERMANENTE DEL MUSEO LEONARDIANO DI VINCI, COMPRESA COPER;3933;1;3;2;99;999
TIM S.P.A. DIREZIONE E COORDINAMENTO VIVENDI SA;30/07/2020;Servizi di sicurezza;2.171,60;0,00;391,60;Z612C4A5D8;Liquidazione Fattura Nr. 6820200720001356  del 21/07/2020 (di cui Split per euro 391,60) - LICENZE ANTIVIRUS AVG;3925;1;3;2;19;6
MY BOSS WAS;30/07/2020;Manutenzione ordinaria e riparazioni di altri beni materiali;244,00;0,00;44,00;Z7C2D29148;Liquidazione Fattura Nr. 27  del 12/06/2020 (di cui Split per euro 44,00) - INTERVENTO DI MANUTENZIONE A PC WORKSTATION  RIF. CIG  Z7C2D29148;3930;1;3;2;9;11
QUALCOSA DA FARE SRLS;30/07/2020;Altri servizi diversi n.a.c.;951,60;0,00;171,60;ZEE2D87D6B;"Liquidazione Fattura Nr. FPA 1/20  del 07/07/2020 (di cui Split per euro 171,60) - Canone adesione annale anno 2020
";3932;1;3;2;99;999
DATAONE S.R.L.;30/07/2020;Altri beni e materiali di consumo n.a.c.;6,05;0,00;6,05;;IVA Liquidazione Fattura Nr. 900-20  del 22/06/2020 (di cui Split per euro 6,05) - Acquisto firma digitale Sindaco Giuseppe Torchia;3923;1;3;1;2;999
TIPOGRAFICA PISTOIESE SRL;30/07/2020;Altri beni e materiali di consumo n.a.c.;1.129,72;0,00;203,72;ZDD2B64154;Liquidazione Fattura Nr. FPA 191/20  del 30/06/2020 (di cui Split per euro 203,72) - Fornitura generica;3928;1;3;1;2;999
LU-BEK SRL;30/07/2020;Carta, cancelleria e stampati;13,42;0,00;13,42;;IVA Liquidazione Fattura Nr. 132  del 16/07/2020 (di cui Split per euro 13,42) - Vendita Iva da versare a cura del cessionario o committente ai sensi dell'art. 17-ter del D.P.R. n. 633/1972 (scissione dei pagamenti);3926;1;3;1;2;1
MISTER WIZARD S.R.L.;30/07/2020;Carta, cancelleria e stampati;904,63;0,00;163,13;Z9D2C361CB;Liquidazione Fattura Nr. 204/PA  del 30/06/2020 (di cui Split per euro 163,13) - ACQUISTO CARTA IN RISME FORMATO A4 E FORMATO A3 PER GLI UFFICI DELL'ENTE - DETERMINA A CONTRARRE E DI AGGIUDICAZIONE MEDIANTE RDO SUL MEPA;3924;1;3;1;2;1
CENTRO L.I.F.E.;04/08/2020;Altri servizi diversi n.a.c.;2.596,60;0,00;468,24;Z832B1E5CF;Liquidazione Fattura Nr. 10  del 16/07/2020 (di cui Split per euro 468,24) - gestione sportello lavoro I trimestre 2020;3980;1;3;2;99;999
CENTRO L.I.F.E.;04/08/2020;Altri servizi diversi n.a.c.;1.434,98;0,00;258,77;Z832B1E5CF;Liquidazione Fattura Nr. 11  del 16/07/2020 (di cui Split per euro 258,77) - gestione sportello lavoro II trimestre 2020;3979;1;3;2;99;999
CEROFOLINI S.R.L.;04/08/2020;Servizi di pulizia e lavanderia;2.232,60;0,00;402,60;Z372CF8BB9;Liquidazione Fattura Nr. 5/06  del 15/07/2020 (di cui Split per euro 402,60) - sanificazione locali comunali e automezzi comunali per covid maggio 2020;3976;1;3;2;13;2
UISP - UNIONE ITALIANA SPORT PER TUTTI COMITATO TERRITORIALE EMPOLI VALDELSA;04/08/2020;Trasferimenti correnti a Istituzioni Sociali Private ;4.712,77;0,00;0,00;Z1F2AB83DE;Liquidazione Fattura Nr. 94  del 26/06/2020 - fatturazione effettuata da soggetto che si avvale del regime di cui alla legge16/12/1991 n.398 non assoggetta a split payment ai sensi della circolare agenzia delle entrate n.15/E del 13/04/2015;3975;1;4;4;1;1
ASSOCIAZIONE CULTURALE IL PONTE;04/08/2020;Trasferimenti correnti a Istituzioni Sociali Private ;786,85;31,47;0,00;;CONTRIBUTO PER COSTI DI GESTIONE MESI DI MAGGIO E GIUGNO 2020 DA FINANZIAMENTO MIUR;3982;1;4;4;1;1
ACQUE S.P.A.;04/08/2020;Infrastrutture idrauliche;7.920,00;0,00;720,00;;Liquidazione Fattura Nr. 6020022020000026  del 14/07/2020 (di cui Split per euro 720,00) - ESTENSIONE DELLA RETE IDRICA NEI COMUNI DI LAMPORECCHIO E DI VINCI ? ACCERTAMENTO E IMPEGNO DI SPESA;3960;2;2;1;9;10
ASSOCIAZIONE STRADA DEL VINO E DELL'OLIO DEL MONTALBANO - LE COLLINE DI LEONARDO;04/08/2020;Quote di associazioni;1.600,00;0,00;0,00;;Quota annuale di adesione anno 2020;3985;1;3;2;99;3
HALLEY TOSCANA SRL;04/08/2020;Gestione e manutenzione applicazioni;2.145,37;0,00;386,87;Z532D432B2;Liquidazione Fattura Nr. V30000117  del 10/07/2020 (di cui Split per euro 386,87) - AFFIDAMENTO DEL SERVIZIO DI ASSISTENZA E MANUTENZIONE SOFTWARE SERVIZI CIMITERIALI PER L'ANNO 2020 TRAMITE ORDINE DIRETTO SUL MEPA  ALLA DITTA HALLEY TOSCAN;3973;1;3;2;19;1
ARTMEDIASTUDIO DI V.CAPALBO E M.BERTOZZI ARCHITETTI;04/08/2020;Manutenzione ordinaria e riparazioni di altri beni materiali;441,00;69,52;0,00;ZE52D4117E;LIQUIDAZIONE FATTURA NR. 12  DEL 07/07/2020 AL NETTO DI NOTA: N. 14 DEL 23/07/2020 DI 0,01 - INTERVENTO DI PROGRAMMAZIONE SUL SISTEMA DI MUTI PROIEZIONE DELLA VIDEO INSTALLAZIONE 'LEONARDO DA VINCI. UN GENIO SI RACCONTA';3974;1;3;2;9;11
CO&SO EMPOLI - CONS. DI COOP. SOCIALI - SOCIETA' COOPERATIVA;04/08/2020;Trasferimenti correnti a Istituzioni Sociali Private ;706,51;28,26;0,00;;CONTRIBUTO PER COSTI DI GESTIONE MESI DI MAGGIO E GIUGNO 2020 DA FINANZIAMENTO MIUR;3983;1;4;4;1;1
VIVENDA S.R.L.;04/08/2020;Pubblicazione bandi di gara;405,02;0,00;70,15;ZDC2D7F820;Liquidazione Fattura Nr. 754  del 20/07/2020 (di cui Split per euro 70,15) - Pubblicazione bando per la ripetizione di servizi analoghi dell'appalto del servizio di assistenza specialistica alla disabilit� in ambito scolastico e per le atti;3962;1;3;2;16;1
L'ABBRACCIO SNC DI CONTI SIMONA E AMATUCCI VALENTINA;04/08/2020;Altri servizi diversi n.a.c.;2.049,00;0,00;0,00;;Liquidazione Fattura Nr. 59  del 11/05/2020 - ACQUISTI POSTI BAMBINO CRESTI MARTINA E CHELINI NICOLE MESI DI FEBBRAIO, MARZO E APRILE 2020;3981;1;3;2;99;999
L'ABBRACCIO SNC DI CONTI SIMONA E AMATUCCI VALENTINA;04/08/2020;Trasferimenti correnti a Istituzioni Sociali Private ;6.772,00;270,88;0,00;;CONTRIBUTO PER COSTI DI GESTIONE MESI DI MAGGIO E GIUGNO 2020 DA FINANZIAMENTO MIUR;3984;1;4;4;1;1
COOPERATIVA  ZOE S.C.S.;04/08/2020;Servizi di pulizia e lavanderia;145,19;0,00;26,18;7317223B6E;Liquidazione Fattura Nr. 808/00  del 30/06/2020 (di cui Split per euro 26,18) - PULIZIA BIBLIOTECHE GIU 2020;3971;1;3;2;13;2
COOPERATIVA  ZOE S.C.S.;04/08/2020;Servizi di pulizia e lavanderia;2.994,62;0,00;540,01;7317223B6E;Liquidazione Fattura Nr. 807/00  del 30/06/2020 (di cui Split per euro 540,01) - PULIZIA EDICOM GIU 2020 ;3970;1;3;2;13;2
COOPERATIVA  ZOE S.C.S.;04/08/2020;Servizi di pulizia e lavanderia;145,19;0,00;26,18;7317223B6E;Liquidazione Fattura Nr. 809/00  del 30/06/2020 (di cui Split per euro 26,18) - PULIZIA N. UTU GIU 2020;3972;1;3;2;13;2
COOPERATIVA  ZOE S.C.S.;04/08/2020;Servizi di pulizia e lavanderia;3.221,48;0,00;580,92;7317223B6E;Liquidazione Fattura Nr. 810/00  del 30/06/2020 (di cui Split per euro 580,92) - SANIFICAZIONE COVID GIU 2020 - 2� VARIANTE;3977;1;3;2;13;2
IGETECMA S.N.C.;04/08/2020;Incarichi professionali per la realizzazione di investimenti;8.246,98;0,00;1.487,16;Z682C793D4;Liquidazione Fattura Nr. 479  del 30/06/2020 (di cui Split per euro 1.487,16) - INDAGINI SPERIMENTALI SU TERRENI PRESSO LA NUOVA  SCUOLA D'INFANZIA DI VINCI _ DETERMINA A CONTRARRE E AFFIDAMENTO DITTA IGETECMA SNC;3961;2;2;3;5;1
EFFE MULTISERVICE SRL;04/08/2020;Manutenzione ordinaria e riparazioni di impianti e macchinari;294,34;0,00;53,08;Z672B53345;Liquidazione Fattura Nr. 8PA2020  del 29/06/2020 (di cui Split per euro 53,08) - MANUTENZIONE E VERIFICHE PERIODICHE PRESIDI ANTINCENDIO PRESSO MUSEO, PALAZZINA, CASA NATALE, NIDO, PALASPORT 60%, FINO AL 31.12.2019;3949;1;3;2;9;4
EFFE MULTISERVICE SRL;04/08/2020;Manutenzione ordinaria e riparazioni di impianti e macchinari;12,46;0,00;2,25;Z672B53345;Liquidazione Fattura Nr. 8PA2020  del 29/06/2020 (di cui Split per euro 2,25) - MANUTENZIONE E VERIFICHE PERIODICHE PRESIDI ANTINCENDIO PRESSO MUSEO, PALAZZINA, CASA NATALE, NIDO, PALASPORT 60%, FINO AL 31.12.2019;3953;1;3;2;9;4
EFFE MULTISERVICE SRL;04/08/2020;Manutenzione ordinaria e riparazioni di impianti e macchinari;441,04;0,00;79,53;Z672B53345;Liquidazione Fattura Nr. 8PA2020  del 29/06/2020 (di cui Split per euro 79,53) - MANUTENZIONE E VERIFICHE PERIODICHE PRESIDI ANTINCENDIO PRESSO MUSEO, PALAZZINA, CASA NATALE, NIDO, PALASPORT 60%, FINO AL 31.12.2019;3957;1;3;2;9;4
EFFE MULTISERVICE SRL;04/08/2020;Manutenzione ordinaria e riparazioni di impianti e macchinari;370,91;0,00;66,88;Z672B53345;Liquidazione Fattura Nr. 7PA2020  del 29/06/2020 (di cui Split per euro 66,88) - MANUTENZIONE E VERIFICHE PERIODICHE PRESIDI ANTINCENDIO PRESSO TUTTI GLI EDIFICI COMUNALI E SCOLASTICI FINO AL 31.12.2019 ? DETERMINA A CONTRARRE ? AFFIDAMENTO;3942;1;3;2;9;4
EFFE MULTISERVICE SRL;04/08/2020;Manutenzione ordinaria e riparazioni di impianti e macchinari;62,93;0,00;11,35;Z672B53345;Liquidazione Fattura Nr. 7PA2020  del 29/06/2020 (di cui Split per euro 11,35) - MANUTENZIONE E VERIFICHE PERIODICHE PRESIDI ANTINCENDIO PRESSO TUTTI GLI EDIFICI COMUNALI E SCOLASTICI FINO AL 31.12.2019 ? DETERMINA A CONTRARRE ? AFFIDAMENTO;3943;1;3;2;9;4
EFFE MULTISERVICE SRL;04/08/2020;Manutenzione ordinaria e riparazioni di impianti e macchinari;719,90;0,00;129,81;Z672B53345;Liquidazione Fattura Nr. 7PA2020  del 29/06/2020 (di cui Split per euro 129,81) - MANUTENZIONE E VERIFICHE PERIODICHE PRESIDI ANTINCENDIO PRESSO TUTTI GLI EDIFICI COMUNALI E SCOLASTICI FINO AL 31.12.2019 ? DETERMINA A CONTRARRE ? AFFIDAMENT;3946;1;3;2;9;4
EFFE MULTISERVICE SRL;04/08/2020;Manutenzione ordinaria e riparazioni di impianti e macchinari;476,59;0,00;85,94;Z672B53345;Liquidazione Fattura Nr. 7PA2020  del 29/06/2020 (di cui Split per euro 85,94) - MANUTENZIONE E VERIFICHE PERIODICHE PRESIDI ANTINCENDIO PRESSO TUTTI GLI EDIFICI COMUNALI E SCOLASTICI FINO AL 31.12.2019 ? DETERMINA A CONTRARRE ? AFFIDAMENTO;3947;1;3;2;9;4
EFFE MULTISERVICE SRL;04/08/2020;Manutenzione ordinaria e riparazioni di impianti e macchinari;936,27;0,00;168,84;Z672B53345;Liquidazione Fattura Nr. 7PA2020  del 29/06/2020 (di cui Split per euro 168,84) - MANUTENZIONE E VERIFICHE PERIODICHE PRESIDI ANTINCENDIO PRESSO TUTTI GLI EDIFICI COMUNALI E SCOLASTICI FINO AL 31.12.2019 ? DETERMINA A CONTRARRE ? AFFIDAMENT;3948;1;3;2;9;4
EFFE MULTISERVICE SRL;04/08/2020;Manutenzione ordinaria e riparazioni di impianti e macchinari;58,16;0,00;10,49;Z672B53345;Liquidazione Fattura Nr. 7PA2020  del 29/06/2020 (di cui Split per euro 10,49) - MANUTENZIONE E VERIFICHE PERIODICHE PRESIDI ANTINCENDIO PRESSO TUTTI GLI EDIFICI COMUNALI E SCOLASTICI FINO AL 31.12.2019 ? DETERMINA A CONTRARRE ? AFFIDAMENTO;3950;1;3;2;9;4
EFFE MULTISERVICE SRL;04/08/2020;Manutenzione ordinaria e riparazioni di impianti e macchinari;267,77;0,00;48,29;Z672B53345;Liquidazione Fattura Nr. 7PA2020  del 29/06/2020 (di cui Split per euro 48,29) - MANUTENZIONE E VERIFICHE PERIODICHE PRESIDI ANTINCENDIO PRESSO TUTTI GLI EDIFICI COMUNALI E SCOLASTICI FINO AL 31.12.2019 ? DETERMINA A CONTRARRE ? AFFIDAMENTO;3951;1;3;2;9;4
EFFE MULTISERVICE SRL;04/08/2020;Manutenzione ordinaria e riparazioni di impianti e macchinari;8,29;0,00;1,49;Z672B53345;Liquidazione Fattura Nr. 7PA2020  del 29/06/2020 (di cui Split per euro 1,49) - MANUTENZIONE E VERIFICHE PERIODICHE PRESIDI ANTINCENDIO PRESSO TUTTI GLI EDIFICI COMUNALI E SCOLASTICI FINO AL 31.12.2019 ? DETERMINA A CONTRARRE ? AFFIDAMENTO ;3954;1;3;2;9;4
EFFE MULTISERVICE SRL;04/08/2020;Manutenzione ordinaria e riparazioni di impianti e macchinari;4,65;0,00;0,84;Z672B53345;Liquidazione Fattura Nr. 7PA2020  del 29/06/2020 (di cui Split per euro 0,84) - MANUTENZIONE E VERIFICHE PERIODICHE PRESIDI ANTINCENDIO PRESSO TUTTI GLI EDIFICI COMUNALI E SCOLASTICI FINO AL 31.12.2019 ? DETERMINA A CONTRARRE ? AFFIDAMENTO ;3955;1;3;2;9;4
EFFE MULTISERVICE SRL;04/08/2020;Manutenzione ordinaria e riparazioni di beni immobili;59,67;0,00;10,76;Z672B53345;Liquidazione Fattura Nr. 7PA2020  del 29/06/2020 (di cui Split per euro 10,76) - MANUTENZIONE E VERIFICHE PERIODICHE PRESIDI ANTINCENDIO PRESSO TUTTI GLI EDIFICI COMUNALI E SCOLASTICI FINO AL 31.12.2019 ? DETERMINA A CONTRARRE ? AFFIDAMENTO;3958;1;3;2;9;8
EFFE MULTISERVICE SRL;04/08/2020;Manutenzione ordinaria e riparazioni di impianti e macchinari;13,95;0,00;2,52;Z672B53345;Liquidazione Fattura Nr. 7PA2020  del 29/06/2020 (di cui Split per euro 2,52) - MANUTENZIONE E VERIFICHE PERIODICHE PRESIDI ANTINCENDIO PRESSO TUTTI GLI EDIFICI COMUNALI E SCOLASTICI FINO AL 31.12.2019 ? DETERMINA A CONTRARRE ? AFFIDAMENTO ;3959;1;3;2;9;4
SCOTTI SPA;04/08/2020;Manutenzione ordinaria e riparazioni di mezzi di trasporto ad uso civile, di sicurezza e ordine pubblico;1.655,04;0,00;296,61;Z5A2CEFD2F;Liquidazione Fattura Nr. 6 / 5000  del 25/06/2020 (di cui Split per euro 296,61) - Revisione e tagliando Fiat Panda targ. Targ. FL092VT;3944;1;3;2;9;1
FAUSTINI SNC;04/08/2020;Manutenzione ordinaria e riparazioni di mezzi di trasporto ad uso civile, di sicurezza e ordine pubblico;441,64;0,00;79,64;Z982C9502C;Liquidazione Fattura Nr. 157  del 22/04/2020 (di cui Split per euro 79,64) - FORNITURA RICAMBI PER TRINCIA FOSSI FAUSTINI _ DETERMINA A CONTRARRE E AFFIDAMENTO DITTA FAUSTINI SNC;3945;1;3;2;9;1
COOPERATIVA SOCIALE AERIS A R.L.;04/08/2020;Altre spese per contratti di servizio pubblico;1.780,54;0,00;84,79;Z472B2B434;Liquidazione Fattura Nr. 116/01  del 18/05/2020 (di cui Split per euro 84,79) - AFFIDAMENTO DIRETTO AI SENSI DELL'ART. 36 COMMA 2 LETT. A) D.LGS. 50/2016 DEL SERVIZIO DI ASSISTENZA SPECIALISTICA ALLA DISABILIT� IN AMBITO SCOLASTICO PER N.1 ;3978;1;3;2;15;999
L.A. S.R.L.;04/08/2020;Altri beni e materiali di consumo n.a.c.;1.598,20;0,00;288,20;Z562CE9B0A;Liquidazione Fattura Nr. 1/PA  del 20/05/2020 (di cui Split per euro 288,20) - FORNITURA MASCHERINE E GEL;3956;1;3;1;2;999
TOSCOINERTI SRL;04/08/2020;Altri beni e materiali di consumo n.a.c.;1.455,07;0,00;262,39;Z192D43D89;Liquidazione Fattura Nr. 2020   438  del 30/06/2020 (di cui Split per euro 262,39) - ACQUISTO GHIAIA PER PAVIMENTAZIONE AREA ATTREZZATA SANT'ANSANO_ DETERMINA A CONTRARRE E AFFIDAMENTO DITTA TOSCOINERTI SRL;3952;1;3;1;2;999
GIA COSTRUZIONI SRL;10/08/2020;Fabbricati ad uso scolastico;218.680,00;0,00;19.880,00;8113186CE0;Liquidazione Fattura Nr. FATTPA 6_20  del 07/08/2020 (di cui Split per euro 19.880,00) - PROCEDURA APERTA EX ART 60 DLGS 50/2016 ( SOTTOSOGLIA ) PER L'AFFIDAMENTO DEI LAVORI DI RIQUALIFICAZIONE ENERGETICA E MIGLIORAMENTO SISMICO DELLA SCUOL;3986;2;2;1;9;3
ERARIO DELLO STATO PER PAGAMENTO I.V.A.;11/08/2020;Versamenti IVA a debito per le gestioni commerciali;1.974,29;0,00;0,00;;IVA A DEBITO SU SERVIZI COMMERCIALI DELL'ENTE   ESERCIZIO 2020 MESE DI LUGLIO;3987;1;10;3;1;1
ERARIO STATO (VERSAMENTO IRPEF LAVORO AUTONOMO);11/08/2020;Versamenti IVA a debito per le gestioni commerciali;0,32;0,00;0,00;;IRPEF SU MANDATO LORENZO GIUSEPPE NR. 3636 DEL 23/07/2020 -  FATT. 89 DEL 06/05/2020 ;3993;1;10;3;1;1
M.F.M. SRL;12/08/2020;Generi alimentari;30,00;0,00;0,00;;Liquidazione Fattura Nr. 15855  del 13/07/2020 - BUONI SPESA EMERGENZA COVID GIUGNO 2020;4080;1;3;1;2;11
GRUPPO SPORTIVO MALTINTI LAMPADARI;12/08/2020;Trasferimenti correnti a altre imprese;2.400,00;0,00;0,00;;LIQUIDAZIONE CONTRIBUTO PER ATTIVITA' DI PROMOZIONE DELL'ATTIVITA' SPORTIVA DEL CICLISMO;4064;1;4;3;99;999
FIRENZE PUBBLICITA' S.N.C.;12/08/2020;Altri servizi diversi n.a.c.;122,00;0,00;22,00;Z8F2D85711;Liquidazione Fattura Nr. 2020    12/a  del 16/07/2020 (di cui Split per euro 22,00) - spazio pubblicitario aperture museo luglio/agosto;4074;1;3;2;99;999
CASALINI LIBRI S.P.A.;12/08/2020;Materiale bibliografico;78,30;0,00;0,00;Z5929C582D;Liquidazione Fattura Nr. 20-16639 del 17/07/2020 - Acquisto risorse librarie;4084;2;2;1;99;1
CASALINI LIBRI S.P.A.;12/08/2020;Materiale bibliografico;27,00;0,00;0,00;Z5929C582D;Liquidazione Fattura Nr. 20-16638 del 17/07/2020 - Acquisto risorse librarie;4085;2;2;1;99;1
ANCI TOSCANA;12/08/2020;Acquisto di servizi per altre spese per formazione e addestramento n.a.c.;82,00;0,00;0,00;ZB22C05DF1;Liquidazione Fattura Nr. 809/01  del 27/07/2020 - FORMAZIONE DELLE RISORSE UMANE DELL'ENTE: PARTECIPAZIONE DI SEI  DIPENDENTI AI CORSI ANCI TOSCANA: GLI AFFIDAMENTI SOTTOSOGLIA IL 05/03/2020, CORSO BASE ACQUISTI IN RETE IL 12/03/2020, CORSO;3994;1;3;2;4;999
ANCI TOSCANA;12/08/2020;Acquisto di servizi per altre spese per formazione e addestramento n.a.c.;574,00;0,00;0,00;ZB22C05DF1;Liquidazione Fattura Nr. 810/01  del 27/07/2020 - FORMAZIONE DELLE RISORSE UMANE DELL'ENTE: PARTECIPAZIONE DI SEI  DIPENDENTI AI CORSI ANCI TOSCANA: GLI AFFIDAMENTI SOTTOSOGLIA IL 05/03/2020, CORSO BASE ACQUISTI IN RETE IL 12/03/2020, CORSO;3995;1;3;2;4;999
ACCA SOFTWARE S.P.A.;12/08/2020;Gestione e manutenzione applicazioni;528,26;0,00;95,26;ZC62D7A7AE;Liquidazione Fattura Nr. P000517/2020  del 06/07/2020 (di cui Split per euro 95,26) - Ordine MePa n.5588560 del 03/07/2020;3999;1;3;2;19;1
PUBLICASA S.P.A.;12/08/2020;Organi istituzionali dell'amministrazione - Rimborsi ;1.422,59;0,00;0,00;;Rimborso permessi retribuiti ass. Iallorenzi da ott. a dic. 2019;4070;1;3;2;1;2
UNICOOP FIRENZE SOCIETA' COOPERATIVA;12/08/2020;Generi alimentari;14.840,00;0,00;0,00;;Liquidazione Fattura Nr. PA2000347  del 09/07/2020 - BUONI COVID maggio 2020;4081;1;3;1;2;11
UNICOOP FIRENZE SOCIETA' COOPERATIVA;12/08/2020;Generi alimentari;15.790,00;0,00;0,00;;Liquidazione Fattura Nr. PA2000406  del 31/07/2020 - BUONI SPESE COVID APRILE 2020;4082;1;3;1;2;11
ARTERIA S.R.L. - DIVISIONE UNIVERSAL EXPRESS FIRENZE;12/08/2020;Altri servizi diversi n.a.c.;4.465,20;0,00;805,20;Z1C2760FA3;Liquidazione Fattura Nr. 000000831  del 15/07/2020 (di cui Split per euro 805,20) - 18257;4076;1;3;2;99;999
ARTERIA S.R.L. - DIVISIONE UNIVERSAL EXPRESS FIRENZE;12/08/2020;Altri servizi diversi n.a.c.;1.649,72;0,00;203,72;Z6127C720C;Liquidazione Fattura Nr. 000000832  del 15/07/2020 (di cui Split per euro 203,72) - 18257;4077;1;3;2;99;999
ETRURIA P.A. SRL;12/08/2020;Assistenza all'utente e formazione;1.586,00;0,00;286,00;Z7A2C09C4E;Liquidazione Fattura Nr. 1124/00000  del 10/07/2020 (di cui Split per euro 286,00) - ACQUISTO DEL SERVIZIO DI ISTRUZIONE NORMATIVA ED OPERATIVA IN AMBITO ELETTORALE MEDIANTE AFFIDAMENTO DIRETTO SUL MEPA-DETERMINA A CONTRARRE E DI AFFIDAMENT;3998;1;3;2;19;2
SANMINIATESE STRADE S.R.L.;12/08/2020;Infrastrutture stradali;23.421,62;0,00;4.223,57;Z122D26CDE;Liquidazione Fattura Nr. 19  del 16/07/2020 (di cui Split per euro 4.223,57) - Determinazione n. 128 del 04/06/2020 - capitolo di spesa 4253.0 e 11155.0 Anno 2020 -  CIG Z122D26CDE;4067;2;2;1;9;12
SANMINIATESE STRADE S.R.L.;12/08/2020;Manutenzione ordinaria e riparazioni di beni immobili;8.424,04;0,00;1.519,09;Z122D26CDE;Liquidazione Fattura Nr. 19  del 16/07/2020 (di cui Split per euro 1.519,09) - Determinazione n. 128 del 04/06/2020 - capitolo di spesa 4253.0 e 11155.0 Anno 2020 -  CIG Z122D26CDE;4065;1;3;2;9;8
ESKIMO COOP. SOCIALE ONLUS;12/08/2020;Altri servizi diversi n.a.c.;840,43;0,00;151,55;ZCD2CB3BF2;Liquidazione Fattura Nr. FATTPA 56_20 del 16/07/2020 - APPALTO SERVIZIO DI ATTACCHINAGGIO RELATIVO ALLE PUBBLICHE AFFISSIONI DAL 20.04.2020 AL 29.08.2020 - DETERMINA A CONTRARRE E AFFIDAMENTO (di cui Split per euro 151,55);4060;1;3;2;99;999
ESKIMO COOP. SOCIALE ONLUS;12/08/2020;Altre spese per contratti di servizio pubblico;1.856,25;0,00;0,00;7172254B3A;Liquidazione Fattura Nr. FATTPA 54_20  del 15/07/2020 - COSTITUZIONE IMPEGNO ANNULITA' 2020 -  CONCESSIONE EX ART. 30 D.LGS. 163/2006 DEI SERVIZI EDUCATIVI PER L'INFANZIA E DEI SERVIZI EXTRA SCOLASTICI DEL COMUNE DI VINCI C/O VILLA REGHINI ;4083;1;3;2;15;999
ESTRA ENERGIE S.R.L.;12/08/2020;Gas;87,36;0,00;15,75;8038889D0D;Liquidazione Fattura Nr. 201901714857  del 21/07/2020 al netto di Nota: N. 201901714855 del 21/07/2020 di 11,64 (di cui Split per euro 15,75) - Fornitura energia elettrica magazzino giugno 2020;4006;1;3;2;5;6
ESTRA ENERGIE S.R.L.;12/08/2020;Gas;0,38;0,00;0,07;8038889D0D;Liquidazione Fattura Nr. 201901714858  del 21/07/2020 (di cui Split per euro 0,07) - Fornitura energia elettrica per Villa Reghini Giugno 2020;4057;1;3;2;5;6
ESTRA ENERGIE S.R.L.;12/08/2020;Gas;42,35;0,00;7,64;8038889D0D;Liquidazione Fattura Nr. 201901714860  del 21/07/2020 (di cui Split per euro 7,64) - Fornitura energia elettrica scuola secondaria 1� grado Sovigliana giugno 2020;4033;1;3;2;5;6
ESTRA ENERGIE S.R.L.;12/08/2020;Gas;25,41;0,00;4,58;8038889D0D;Liquidazione Fattura Nr. 201901714863  del 21/07/2020 (di cui Split per euro 4,58) - Fornitura energia elettrica Palasport giugno 2020;4043;1;3;2;5;6
ESTRA ENERGIE S.R.L.;12/08/2020;Gas;16,94;0,00;3,06;8038889D0D;Liquidazione Fattura Nr. 201901714863  del 21/07/2020 (di cui Split per euro 3,06) - Fornitura energia elettrica Palasport giugno 2020;4044;1;3;2;5;6
ESTRA ENERGIE S.R.L.;12/08/2020;Gas;42,35;0,00;7,64;8038889D0D;Liquidazione Fattura Nr. 201901714854  del 21/07/2020 (di cui Split per euro 7,64) - Fornitura energia elettrica scuola infanzia Sovigliana giugno 2020;4025;1;3;2;5;6
ESTRA ENERGIE S.R.L.;12/08/2020;Gas;21,18;0,00;3,82;8038889D0D;Liquidazione Fattura Nr. 201901714861  del 21/07/2020 (di cui Split per euro 3,82) - Fornitura energia elettrica scuola primaria e secondaria 1� grado di Vinci giugno 2020;4034;1;3;2;5;6
ESTRA ENERGIE S.R.L.;12/08/2020;Gas;21,17;0,00;3,82;8038889D0D;Liquidazione Fattura Nr. 201901714861  del 21/07/2020 (di cui Split per euro 3,82) - Fornitura energia elettrica scuola primaria e secondaria 1� grado di Vinci giugno 2020;4030;1;3;2;5;6
ESTRA ENERGIE S.R.L.;12/08/2020;Gas;19,61;0,00;3,54;8038889D0D;Liquidazione Fattura Nr. 201901714856  del 21/07/2020 (di cui Split per euro 3,54) - Fornitura energia elettrica nido di Vitolini giugno 2020;4055;1;3;2;5;6
ESTRA ENERGIE S.R.L.;12/08/2020;Gas;77,59;0,00;13,99;8038889D0D;Liquidazione Fattura Nr. 201901714864  del 21/07/2020 (di cui Split per euro 13,99) - Fornitura energia elettrica palazzo comnale e pazzna Uzielli giugno 2020;4007;1;3;2;5;6
ESTRA ENERGIE S.R.L.;12/08/2020;Gas;53,92;0,00;9,72;8038889D0D;Liquidazione Fattura Nr. 201901714853  del 21/07/2020 (di cui Split per euro 9,72) - Fornitura energia elettrica scuola infanzia diSpicchio giugno 2020;4023;1;3;2;5;6
ESTRA ENERGIE S.R.L.;12/08/2020;Gas;235,84;0,00;42,53;8038889D0D;Liquidazione Fattura Nr. 201901714859  del 21/07/2020 (di cui Split per euro 42,53) - Fornitura energia elettrica residenza anziani giugno 2020;4058;1;3;2;5;6
ESTRA ENERGIE S.R.L.;12/08/2020;Gas;17,62;0,00;3,18;8038889D0D;Liquidazione Fattura Nr. 201901714859  del 21/07/2020 (di cui Split per euro 3,18) - Fornitura energia elettrica residenza anziani giugno 2020;4008;1;3;2;5;6
ESTRA ENERGIE S.R.L.;12/08/2020;Gas;42,35;0,00;7,64;8038889D0D;Liquidazione Fattura Nr. 201901714852  del 21/07/2020 (di cui Split per euro 7,64) - Fornitura energia elettrica scuola infanzia Vinci giugno 2020;4024;1;3;2;5;6
ESTRA ENERGIE S.R.L.;12/08/2020;Gas;42,35;0,00;7,64;8038889D0D;Liquidazione Fattura Nr. 201901714862  del 21/07/2020 (di cui Split per euro 7,64) - Fornitura energia elettrica scuola primaria Spicchio giugno 2020;4029;1;3;2;5;6
GENERALI ITALIA SPA;12/08/2020;Spese per risarcimento danni;429,00;0,00;0,00;;Liquidazione periodo Aprile 2020-Recupero franchigie 2020;3996;1;10;5;2;1
BERTI SIMONE IMPRESA INDIVIDUALE;12/08/2020;Altri beni e materiali di consumo n.a.c.;315,98;0,00;56,98;ZE62DA84DF;Liquidazione Fattura Nr. 00535  del 21/07/2020 (di cui Split per euro 56,98) - Fornitura generica;4075;1;3;1;2;999
CENTRO STUDI BRUNO CIARI;12/08/2020;Quote di associazioni;6.042,17;0,00;0,00;;VERSAMENTO QUOTA ASSOCIATIVA ANNO 2020;4073;1;3;2;99;3
RAME LUCA DI MIGLIORINI LUCA;12/08/2020;Manutenzione ordinaria e riparazioni di beni immobili;1.157,79;0,00;208,78;Z912CBB8F6;Liquidazione Fattura Nr. 3/PA  del 22/06/2020 (di cui Split per euro 208,78) - Fornitura e posa scossalineTeatro Misericordia;4063;1;3;2;9;8
RAME LUCA DI MIGLIORINI LUCA;12/08/2020;Manutenzione ordinaria e riparazioni di beni immobili;567,30;0,00;102,30;Z912CBB8F6;Liquidazione Fattura Nr. 4/PA  del 22/06/2020 (di cui Split per euro 102,30) - Sostituzione canale di gronda in rame Museo Leonardiano;4062;1;3;2;9;8
TIM S.P.A. DIREZIONE E COORDINAMENTO VIVENDI SA;12/08/2020;Telefonia fissa;146,40;0,00;26,40;Z1515A9942;Liquidazione Fattura Nr. 4220620800008114  del 05/06/2020 (di cui Split per euro 26,40) - 4BIM 2020;4002;1;3;2;5;1
TIM S.P.A. DIREZIONE E COORDINAMENTO VIVENDI SA;12/08/2020;Telefonia fissa;341,62;0,00;61,60;Z1515A9942;Liquidazione Fattura Nr. 4220620800008114  del 05/06/2020 (di cui Split per euro 61,60) - 4BIM 2020;4003;1;3;2;5;1
TIM S.P.A. DIREZIONE E COORDINAMENTO VIVENDI SA;12/08/2020;Telefonia fissa;104,75;0,00;18,89;Z1515A9942;Liquidazione Fattura Nr. 4220620800008114  del 05/06/2020 (di cui Split per euro 18,89) - 4BIM 2020;4005;1;3;2;5;1
TIM S.P.A. DIREZIONE E COORDINAMENTO VIVENDI SA;12/08/2020;Telefonia fissa;247,12;0,00;44,56;Z1515A9942;Liquidazione Fattura Nr. 4220620800008114  del 05/06/2020 (di cui Split per euro 44,56) - 4BIM 2020;4000;1;3;2;5;1
TIM S.P.A. DIREZIONE E COORDINAMENTO VIVENDI SA;12/08/2020;Telefonia fissa;208,46;0,00;37,59;Z1515A9942;Liquidazione Fattura Nr. 4220620800008114  del 05/06/2020 (di cui Split per euro 37,59) - 4BIM 2020;4001;1;3;2;5;1
TIM S.P.A. DIREZIONE E COORDINAMENTO VIVENDI SA;12/08/2020;Telefonia fissa;61,00;0,00;11,00;Z1515A9942;Liquidazione Fattura Nr. 4220620800008114  del 05/06/2020 (di cui Split per euro 11,00) - 4BIM 2020;4004;1;3;2;5;1
TIM S.P.A. DIREZIONE E COORDINAMENTO VIVENDI SA;12/08/2020;Telefonia fissa;3.038,76;0,00;547,98;Z1515A9942;Liquidazione Fattura Nr. 4220620800008114  del 05/06/2020 (di cui Split per euro 547,98) - 4BIM 2020;3997;1;3;2;5;1
A2A ENERGIA SPA;12/08/2020;Energia elettrica;66,11;0,00;11,92;8191752F96;Liquidazione Fattura Nr. 820000157959  del 28/07/2020 (di cui Split per euro 11,92) - FORNITURA ENERGIA ELETTRICA periodo: 01.06.2020-30.06.2020 POD IT001E41412665 Contatore 000000000000422322 kWh 493 Importi al netto della ritenuta di gara;4037;1;3;2;5;4
A2A ENERGIA SPA;12/08/2020;Energia elettrica;44,08;0,00;7,95;8191752F96;Liquidazione Fattura Nr. 820000157959  del 28/07/2020 (di cui Split per euro 7,95) - FORNITURA ENERGIA ELETTRICA periodo: 01.06.2020-30.06.2020 POD IT001E41412665 Contatore 000000000000422322 kWh 493 Importi al netto della ritenuta di garan;4045;1;3;2;5;4
A2A ENERGIA SPA;12/08/2020;Energia elettrica;41,58;0,00;7,50;8191752F96;Liquidazione Fattura Nr. 820000157946  del 28/07/2020 (di cui Split per euro 7,50) - FORNITURA ENERGIA ELETTRICA periodo: 01.06.2020-30.06.2020 POD IT001E41398842 Contatore 000000000000344407 kWh 126 Importi al netto della ritenuta di garan;4053;1;3;2;5;4
A2A ENERGIA SPA;12/08/2020;Energia elettrica;239,78;0,00;43,24;8191752F96;Liquidazione Fattura Nr. 820000157947  del 28/07/2020 (di cui Split per euro 43,24) - FORNITURA ENERGIA ELETTRICA periodo: 01.06.2020-30.06.2020 MAGAZ. COM;4010;1;3;2;5;4
A2A ENERGIA SPA;12/08/2020;Energia elettrica;37,18;0,00;6,71;8191752F96;Liquidazione Fattura Nr. 820000157951  del 28/07/2020 (di cui Split per euro 6,71) - FORNITURA ENERGIA ELETTRICA periodo: 01.06.2020-30.06.2020 ARCH COMUNALE;4022;1;3;2;5;4
A2A ENERGIA SPA;12/08/2020;Energia elettrica;35,88;0,00;6,47;8191752F96;Liquidazione Fattura Nr. 820000157945  del 28/07/2020 (di cui Split per euro 6,47) - FORNITURA ENERGIA ELETTRICA periodo: 01.06.2020-30.06.2020 POD IT001E04919532 Contatore 000000000003380309 kWh 86 Importi al netto della ritenuta di garanz;4011;1;3;2;5;4
A2A ENERGIA SPA;12/08/2020;Energia elettrica;236,93;0,00;42,72;8191752F96;Liquidazione Fattura Nr. 820000157962  del 28/07/2020 (di cui Split per euro 42,72) - FORNITURA ENERGIA ELETTRICA periodo: 01.06.2020-30.06.2020 POD IT001E04919538 Contatore 000000000004919538 kWh 1136 Importi al netto della ritenuta di gar;4028;1;3;2;5;4
A2A ENERGIA SPA;12/08/2020;Energia elettrica;120,48;0,00;21,73;8191752F96;Liquidazione Fattura Nr. 820000157958  del 28/07/2020 (di cui Split per euro 21,73) - FORNITURA ENERGIA ELETTRICA periodo: 01.06.2020-30.06.2020 POD IT001E04919519 Contatore 000000000005040797 kWh 510 Importi al netto della ritenuta di gara;4012;1;3;2;5;4
A2A ENERGIA SPA;12/08/2020;Energia elettrica;136,31;0,00;24,58;8191752F96;Liquidazione Fattura Nr. 820000157960  del 28/07/2020 (di cui Split per euro 24,58) - FORNITURA ENERGIA ELETTRICA periodo: 01.06.2020-30.06.2020 POD IT001E04919521 Contatore 000000000000048576 kWh 606 Importi al netto della ritenuta di gara;4038;1;3;2;5;4
A2A ENERGIA SPA;12/08/2020;Energia elettrica;45,84;0,00;8,27;8191752F96;Liquidazione Fattura Nr. 820000157965  del 28/07/2020 (di cui Split per euro 8,27) - FORNITURA ENERGIA ELETTRICA periodo: 01.06.2020-30.06.2020 POD IT001E43232056 Contatore 000000000002426279 kWh 147 Importi al netto della ritenuta di garan;4051;1;3;2;5;4
A2A ENERGIA SPA;12/08/2020;Energia elettrica;19,73;0,00;3,56;8191752F96;Liquidazione Fattura Nr. 820000157956  del 28/07/2020 (di cui Split per euro 3,56) - FORNITURA ENERGIA ELETTRICA periodo: 01.06.2020-30.06.2020 PILOMAT;4021;1;3;2;5;4
A2A ENERGIA SPA;12/08/2020;Energia elettrica;289,58;0,00;52,22;8191752F96;Liquidazione Fattura Nr. 820000157957  del 28/07/2020 (di cui Split per euro 52,22) - FORNITURA ENERGIA ELETTRICA periodo: 01.06.2020-30.06.2020 POD IT001E04919534 Contatore 000000000000027956 kWh 1415 Importi al netto della ritenuta di gar;4059;1;3;2;5;4
A2A ENERGIA SPA;12/08/2020;Energia elettrica;293,55;0,00;52,93;8191752F96;Liquidazione Fattura Nr. 820000157948  del 28/07/2020 (di cui Split per euro 52,93) - FORNITURA ENERGIA ELETTRICA periodo: 01.06.2020-30.06.2020 POD IT001E04919536 Contatore 000000000000003584 kWh 1399 Importi al netto della ritenuta di gar;4016;1;3;2;5;4
A2A ENERGIA SPA;12/08/2020;Energia elettrica;733,44;0,00;132,26;8191752F96;Liquidazione Fattura Nr. 820000156157  del 28/07/2020 (di cui Split per euro 132,26) - FORNITURA ENERGIA ELETTRICA periodo: 01.06.2020-30.06.2020 PARCHEGGIO;4047;1;3;2;5;4
A2A ENERGIA SPA;12/08/2020;Energia elettrica;326,03;0,00;58,80;8191752F96;Liquidazione Fattura Nr. 820000162507  del 28/07/2020 (di cui Split per euro 58,80) - FORNITURA ENERGIA ELETTRICA periodo: 01.06.2020-30.06.2020 POD IT001E40886806 Contatore 000000000040886806 kWh 1600 Importi al netto della ritenuta di gar;4036;1;3;2;5;4
A2A ENERGIA SPA;12/08/2020;Energia elettrica;307,56;0,00;55,46;8191752F96;Liquidazione Fattura Nr. 820000162495  del 28/07/2020 (di cui Split per euro 55,46) - FORNITURA ENERGIA ELETTRICA periodo: 01.06.2020-30.06.2020 TEATRO;4042;1;3;2;5;4
A2A ENERGIA SPA;12/08/2020;Energia elettrica;79,86;0,00;14,40;8191752F96;Liquidazione Fattura Nr. 820000162501  del 28/07/2020 (di cui Split per euro 14,40) - FORNITURA ENERGIA ELETTRICA periodo: 01.06.2020-30.06.2020 POD IT001E04919520 Contatore 000000000000061379 kWh 743 Importi al netto della ritenuta di gara;4032;1;3;2;5;4
A2A ENERGIA SPA;12/08/2020;Energia elettrica;79,86;0,00;14,40;8191752F96;Liquidazione Fattura Nr. 820000162501  del 28/07/2020 (di cui Split per euro 14,40) - FORNITURA ENERGIA ELETTRICA periodo: 01.06.2020-30.06.2020 POD IT001E04919520 Contatore 000000000000061379 kWh 743 Importi al netto della ritenuta di gara;4035;1;3;2;5;4
A2A ENERGIA SPA;12/08/2020;Energia elettrica;14.502,94;0,00;2.615,29;8191995820;Liquidazione Fattura Nr. 820000162509  del 28/07/2020 (di cui Split per euro 2.615,29) - FORNITURA ENERGIA ELETTRICA periodo: 01.05.2020-30.06.2020 kWh 71949 Importi al netto della ritenuta di garanzia del 0,5% ai sensi art.4 D.P.R.207/20;4049;1;3;2;5;4
A2A ENERGIA SPA;12/08/2020;Energia elettrica;29,90;0,00;5,39;8191752F96;Liquidazione Fattura Nr. 820000157953  del 28/07/2020 (di cui Split per euro 5,39) - FORNITURA ENERGIA ELETTRICA periodo: 01.06.2020-30.06.2020 BAGNI PUBBLICI;4017;1;3;2;5;4
A2A ENERGIA SPA;12/08/2020;Energia elettrica;42,75;0,00;7,71;8191752F96;Liquidazione Fattura Nr. 820000162506  del 28/07/2020 (di cui Split per euro 7,71) - FORNITURA ENERGIA ELETTRICA periodo: 01.06.2020-30.06.2020 CASSA ESPANSIONE PICCARATICO;4018;1;3;2;5;4
A2A ENERGIA SPA;12/08/2020;Energia elettrica;47,20;0,00;8,51;8191752F96;Liquidazione Fattura Nr. 820000162496  del 28/07/2020 (di cui Split per euro 8,51) - FORNITURA ENERGIA ELETTRICA periodo: 01.06.2020-30.06.2020 POD IT001E04919525 Contatore 000000000000618117 kWh 142 Importi al netto della ritenuta di garan;4048;1;3;2;5;4
A2A ENERGIA SPA;12/08/2020;Energia elettrica;45,18;0,00;8,15;8191752F96;Liquidazione Fattura Nr. 820000162504  del 28/07/2020 (di cui Split per euro 8,15) - FORNITURA ENERGIA ELETTRICA periodo: 01.06.2020-30.06.2020 FONTANELLO VITOLINI;4050;1;3;2;5;4
A2A ENERGIA SPA;12/08/2020;Energia elettrica;17,22;0,00;3,10;8191752F96;Liquidazione Fattura Nr. 820000157950  del 28/07/2020 (di cui Split per euro 3,10) - FORNITURA ENERGIA ELETTRICA periodo: 01.06.2020-30.06.2020 POD IT001E04919533 Contatore 000000000000618099 kWh 0 Importi al netto della ritenuta di garanzi;4019;1;3;2;5;4
A2A ENERGIA SPA;12/08/2020;Energia elettrica;23,30;0,00;4,20;8191752F96;Liquidazione Fattura Nr. 820000162500  del 28/07/2020 (di cui Split per euro 4,20) - FORNITURA ENERGIA ELETTRICA periodo: 01.06.2020-30.06.2020 CASA COMPARINI;4020;1;3;2;5;4
A2A ENERGIA SPA;12/08/2020;Energia elettrica;833,48;0,00;150,30;8191752F96;Liquidazione Fattura Nr. 820000162503  del 28/07/2020 (di cui Split per euro 150,30) - FORNITURA ENERGIA ELETTRICA periodo: 01.06.2020-30.06.2020 PALAZZ. UZIELLI;4039;1;3;2;5;4
A2A ENERGIA SPA;12/08/2020;Energia elettrica;912,73;0,00;164,59;8191752F96;Liquidazione Fattura Nr. 820000157954  del 28/07/2020 (di cui Split per euro 164,59) - FORNITURA ENERGIA ELETTRICA periodo: 01.06.2020-30.06.2020 MUSEO LEONARDIANO;4040;1;3;2;5;4
A2A ENERGIA SPA;12/08/2020;Energia elettrica;66,17;0,00;11,93;8191752F96;Liquidazione Fattura Nr. 820000157964  del 28/07/2020 (di cui Split per euro 11,93) - FORNITURA ENERGIA ELETTRICA periodo: 01.06.2020-30.06.2020 SCUOLA MAT. SPICCHIO;4026;1;3;2;5;4
A2A ENERGIA SPA;12/08/2020;Energia elettrica;76,75;0,00;13,84;8191752F96;Liquidazione Fattura Nr. 820000162502  del 28/07/2020 (di cui Split per euro 13,84) - FORNITURA ENERGIA ELETTRICA periodo: 01.06.2020-30.06.2020 FONTANELLO VINCI;4052;1;3;2;5;4
A2A ENERGIA SPA;12/08/2020;Energia elettrica;130,49;0,00;23,53;8191752F96;Liquidazione Fattura Nr. 820000162505  del 28/07/2020 (di cui Split per euro 23,53) - FORNITURA ENERGIA ELETTRICA periodo: 01.06.2020-30.06.2020 VILLA REGHINI;4056;1;3;2;5;4
A2A ENERGIA SPA;12/08/2020;Energia elettrica;22,31;0,00;4,02;8191752F96;Liquidazione Fattura Nr. 820000157963  del 28/07/2020 (di cui Split per euro 4,02) - FORNITURA ENERGIA ELETTRICA periodo: 01.06.2020-30.06.2020 EX SCUOLA ANCHIANO;4013;1;3;2;5;4
A2A ENERGIA SPA;12/08/2020;Energia elettrica;168,77;0,00;30,44;8191752F96;Liquidazione Fattura Nr. 820000157952  del 28/07/2020 (di cui Split per euro 30,44) - FORNITURA ENERGIA ELETTRICA periodo: 01.06.2020-30.06.2020 POD IT001E04919516 Contatore 000000000000424641 kWh 802 Importi al netto della ritenuta di gara;4031;1;3;2;5;4
A2A ENERGIA SPA;12/08/2020;Energia elettrica;373,79;0,00;67,40;8191752F96;Liquidazione Fattura Nr. 820000157961  del 28/07/2020 (di cui Split per euro 67,40) - FORNITURA ENERGIA ELETTRICA periodo: 01.06.2020-30.06.2020 CASA NATALE LEONARDO;4041;1;3;2;5;4
A2A ENERGIA SPA;12/08/2020;Energia elettrica;1.130,36;0,00;203,83;8191752F96;Liquidazione Fattura Nr. 820000162499  del 28/07/2020 (di cui Split per euro 203,83) - FORNITURA ENERGIA ELETTRICA periodo: 01.06.2020-30.06.2020 POD IT001E04919523 Contatore 000000000004919523 kWh 5848 Importi al netto della ritenuta di ga;4009;1;3;2;5;4
A2A ENERGIA SPA;12/08/2020;Energia elettrica;64,19;0,00;11,57;8191752F96;Liquidazione Fattura Nr. 820000162498  del 28/07/2020 (di cui Split per euro 11,57) - FORNITURA ENERGIA ELETTRICA periodo: 01.06.2020-30.06.2020 POD IT001E04919535 Contatore 000000000000275726 kWh 239 Importi al netto della ritenuta di gara;4027;1;3;2;5;4
A2A ENERGIA SPA;12/08/2020;Energia elettrica;66,86;0,00;12,06;8191752F96;Liquidazione Fattura Nr. 820000162508  del 28/07/2020 (di cui Split per euro 12,06) - FORNITURA ENERGIA ELETTRICA periodo: 01.06.2020-30.06.2020 POD IT001E04919544 Contatore 000000000000008245 kWh 245 Importi al netto della ritenuta di gara;4054;1;3;2;5;4
A2A ENERGIA SPA;12/08/2020;Energia elettrica;17,22;0,00;3,10;8191752F96;Liquidazione Fattura Nr. 820000157949  del 28/07/2020 (di cui Split per euro 3,10) - FORNITURA ENERGIA ELETTRICA periodo: 01.06.2020-30.06.2020 POD IT001E04919522 Contatore 000000000000363390 kWh 0 Importi al netto della ritenuta di garanzi;4014;1;3;2;5;4
A2A ENERGIA SPA;12/08/2020;Energia elettrica;20,97;0,00;3,78;8191752F96;Liquidazione Fattura Nr. 820000157955  del 28/07/2020 (di cui Split per euro 3,78) - FORNITURA ENERGIA ELETTRICA periodo: 01.06.2020-30.06.2020 POD IT001E41741369 Contatore 000000000000252693 kWh 20 Importi al netto della ritenuta di garanz;4015;1;3;2;5;4
A2A ENERGIA SPA;12/08/2020;Energia elettrica;32,76;0,00;5,91;8191752F96;Liquidazione Fattura Nr. 820000162497  del 28/07/2020 (di cui Split per euro 5,91) - FORNITURA ENERGIA ELETTRICA periodo: 01.06.2020-30.06.2020 POD IT001E04919543 Contatore 000000000000312887 kWh 74 Importi al netto della ritenuta di garanz;4046;1;3;2;5;4
AGRARIA IL GIRASOLE SNC;12/08/2020;Altri beni e materiali di consumo n.a.c.;600,00;0,00;23,08;Z7B2DB1A7A;"Liquidazione Fattura Nr. 25  del 24/07/2020 (di cui Split per euro 23,08) - Acquisto granaglie
";4066;1;3;1;2;999
ANCILLOTTI FRANCESCO;12/08/2020;Generi alimentari;220,00;0,00;0,00;;Liquidazione Fattura Nr. 1  del 16/07/2020 - BUONI COVID 2020;4078;1;3;1;2;11
AGENZIA DELLE ENTRATE RISCOSSIONE (RIMBORSO PERMESSI ASSESSORE CIATTINI);12/08/2020;Organi istituzionali dell'amministrazione - Rimborsi ;3.842,82;0,00;0,00;;Rimborso permessi retribuiti ass. Ciattini lug-dic 2019;4068;1;3;2;1;2
ASSISERVICE SRL;12/08/2020;Organi istituzionali dell'amministrazione - Rimborsi ;5.997,96;0,00;0,00;;Rimborso permesso retribuito ass. Frese giu-dic 2019, gen-apr 2020;4069;1;3;2;1;2
EUROSPIN TIRRENICA SPA;12/08/2020;Generi alimentari;14.990,00;0,00;0,00;;Liquidazione Fattura Nr. PA/57  del 29/07/2020 - Buoni Covid19 Aprile 2020;4079;1;3;1;2;11
VAR GROUP S.P.A. CON SOCIO UNICO;18/08/2020;Gestione e manutenzione applicazioni;1.073,60;0,00;193,60;Z6A2BDDAF5;Liquidazione Fattura Nr. 20/2E/000126 del 21/07/2020 - FATTURA SEZ.E Ove dovuto, contributo SIAE per D.L. N.68 del 9/4/2003, incluso nel prezzo. Contributo Ambientale CONAI assolto (di cui Split per euro 193,60);4088;1;3;2;19;1
GRAFICHE E. GASPARI S.R.L.;18/08/2020;Carta, cancelleria e stampati;413,20;0,00;33,20;Z902D9C608;"Liquidazione Fattura Nr. 08380/S  del 15/07/2020 (di cui Split per euro 33,20) - ACQUISTO N.200 CONTRASSEGNI INVALIDI FORMATO ""EUROPEO"" COMPLETI E SERVIZIO ASSISTENZA  E MANUTENZIONE SOFTWARE GESTIONE PARCHEGGI INVALIDI ANNO 2020 MEDIANTE O";4086;1;3;1;2;1
GRAFICHE E. GASPARI S.R.L.;18/08/2020;Gestione e manutenzione applicazioni;128,10;0,00;23,10;Z872D9C68C;"Liquidazione Fattura Nr. 08457/S  del 21/07/2020 (di cui Split per euro 23,10) - ACQUISTO N.200 CONTRASSEGNI INVALIDI FORMATO ""EUROPEO"" COMPLETI E SERVIZIO ASSISTENZA  E MANUTENZIONE SOFTWARE GESTIONE PARCHEGGI INVALIDI ANNO 2020 MEDIANTE O";4087;1;3;2;19;1
CO&SO EMPOLI - CONS. DI COOP. SOCIALI - SOCIETA' COOPERATIVA;18/08/2020;Altre spese per contratti di servizio pubblico;492,04;0,00;88,73;7551132F3D;Liquidazione Fattura Nr. 000510-2C0  del 23/06/2020 (di cui Split per euro 88,73) - Fatt. regime reverse charge;4090;1;3;2;15;999
CO&SO EMPOLI - CONS. DI COOP. SOCIALI - SOCIETA' COOPERATIVA;18/08/2020;Altre spese per contratti di servizio pubblico;2.374,22;0,00;428,14;7551132F3D;Liquidazione Fattura Nr. 000509-2C0  del 23/06/2020 (di cui Split per euro 428,14) - Fatt. regime sciss.pag.;4092;1;3;2;15;999
CO&SO EMPOLI - CONS. DI COOP. SOCIALI - SOCIETA' COOPERATIVA;18/08/2020;Altre spese per contratti di servizio pubblico;9.816,78;0,00;0,00;7551132F3D;Liquidazione Fattura Nr. 000511-2C0  del 23/06/2020 - Fattura vendita;4089;1;3;2;15;999
CO&SO EMPOLI - CONS. DI COOP. SOCIALI - SOCIETA' COOPERATIVA;18/08/2020;Altre spese per contratti di servizio pubblico;2.958,30;0,00;0,00;7121843AC1;Liquidazione Fattura Nr. 000508-2C0 del 23/06/2020 - Fattura smart working e front office per biblioteca leonardiana e sedi distaccate - maggio 2020;4091;1;3;2;15;999
CO&SO EMPOLI - CONS. DI COOP. SOCIALI - SOCIETA' COOPERATIVA;18/08/2020;Altre spese per contratti di servizio pubblico;6.804,00;0,00;324,00;6927708D7B;Liquidazione Fattura Nr. 000557-2C0  del 15/07/2020 (di cui Split per euro 324,00) - SERVIZIO ASSISTENZA SPECIALISTICA RIMODULATA MESE DI GIUGNO 2020;4093;1;3;2;15;999
CO&SO EMPOLI - CONS. DI COOP. SOCIALI - SOCIETA' COOPERATIVA;18/08/2020;Altre spese per contratti di servizio pubblico;928,41;0,00;0,00;7172254B3A;Liquidazione Fattura Nr. 000556-2C0  del 15/07/2020 - GESTIONE SERVIZI EDUCATIVI PER L'INFANZIA E EXTRA SCOLASTICI PRESSO VILLA REGHINI MESE DI MARZO 2020;4095;1;3;2;15;999
CO&SO EMPOLI - CONS. DI COOP. SOCIALI - SOCIETA' COOPERATIVA;18/08/2020;Altre spese per contratti di servizio pubblico;288,07;0,00;13,72;Z3F2D87091;Liquidazione Fattura Nr. 000558-2C0  del 15/07/2020 (di cui Split per euro 13,72) - ASSISTENZA SPECIALISTICA SVOLTA PRESSO I CENTRI ESTIVI MESE DI GIUGNO 2020;4094;1;3;2;15;999
ACQUE S.P.A.;25/08/2020;Acqua;212,70;0,00;2,65;;Liquidazione Fattura Nr. 6020012000008970  del 05/08/2020 (di cui Split per euro 2,65) - FORNITURA ACQUA POTABILE PER IMMOBILI E SERVIZI COMUNALI ANNO 2020_IMPEGNO DI SPESA PER ACQUE SPA;4101;1;3;2;5;5
ACQUE S.P.A.;25/08/2020;Acqua;9,05;0,00;0,82;;Liquidazione Fattura Nr. 6020012000009090  del 06/08/2020 (di cui Split per euro 0,82) - FORNITURA ACQUA POTABILE PER IMMOBILI E SERVIZI COMUNALI ANNO 2020_IMPEGNO DI SPESA PER ACQUE SPA;4102;1;3;2;5;5
ACQUE S.P.A.;25/08/2020;Acqua;382,81;0,00;34,80;;Liquidazione Fattura Nr. 6020012000009072  del 06/08/2020 (di cui Split per euro 34,80) - FORNITURA ACQUA POTABILE PER IMMOBILI E SERVIZI COMUNALI ANNO 2020_IMPEGNO DI SPESA PER ACQUE SPA;4096;1;3;2;5;5
ACQUE S.P.A.;25/08/2020;Acqua;35,44;0,00;3,22;;Liquidazione Fattura Nr. 6020012000009073  del 06/08/2020 (di cui Split per euro 3,22) - FORNITURA ACQUA POTABILE PER IMMOBILI E SERVIZI COMUNALI ANNO 2020_IMPEGNO DI SPESA PER ACQUE SPA;4104;1;3;2;5;5
ACQUE S.P.A.;25/08/2020;Acqua;35,17;0,00;3,20;;Liquidazione Fattura Nr. 6020012000009228  del 10/08/2020 (di cui Split per euro 3,20) - FORNITURA ACQUA POTABILE PER IMMOBILI E SERVIZI COMUNALI ANNO 2020_IMPEGNO DI SPESA PER ACQUE SPA;4105;1;3;2;5;5
ACQUE S.P.A.;25/08/2020;Acqua;103,65;0,00;9,42;;Liquidazione Fattura Nr. 6020012000009229  del 10/08/2020 (di cui Split per euro 9,42) - FORNITURA ACQUA POTABILE PER IMMOBILI E SERVIZI COMUNALI ANNO 2020_IMPEGNO DI SPESA PER ACQUE SPA;4106;1;3;2;5;5
ACQUE S.P.A.;25/08/2020;Acqua;39,44;0,00;3,59;;Liquidazione Fattura Nr. 6020012000009230  del 10/08/2020 (di cui Split per euro 3,59) - FORNITURA ACQUA POTABILE PER IMMOBILI E SERVIZI COMUNALI ANNO 2020_IMPEGNO DI SPESA PER ACQUE SPA;4107;1;3;2;5;5
ACQUE S.P.A.;25/08/2020;Acqua;30,68;0,00;2,79;;Liquidazione Fattura Nr. 6020012000009292  del 11/08/2020 (di cui Split per euro 2,79) - FORNITURA ACQUA POTABILE PER IMMOBILI E SERVIZI COMUNALI ANNO 2020_IMPEGNO DI SPESA PER ACQUE SPA;4108;1;3;2;5;5
ACQUE S.P.A.;25/08/2020;Acqua;35,17;0,00;3,20;;Liquidazione Fattura Nr. 6020012000009355  del 12/08/2020 (di cui Split per euro 3,20) - FORNITURA ACQUA POTABILE PER IMMOBILI E SERVIZI COMUNALI ANNO 2020_IMPEGNO DI SPESA PER ACQUE SPA;4109;1;3;2;5;5
ACQUE S.P.A.;25/08/2020;Acqua;35,17;0,00;3,20;;Liquidazione Fattura Nr. 6020012000009354  del 12/08/2020 (di cui Split per euro 3,20) - FORNITURA ACQUA POTABILE PER IMMOBILI E SERVIZI COMUNALI ANNO 2020_IMPEGNO DI SPESA PER ACQUE SPA;4110;1;3;2;5;5
ACQUE S.P.A.;25/08/2020;Acqua;716,09;0,00;65,10;;Liquidazione Fattura Nr. 6020012000009309  del 12/08/2020 (di cui Split per euro 65,10) - FORNITURA ACQUA POTABILE PER IMMOBILI E SERVIZI COMUNALI ANNO 2020_IMPEGNO DI SPESA PER ACQUE SPA;4111;1;3;2;5;5
ACQUE S.P.A.;25/08/2020;Acqua;292,97;0,00;26,63;;Liquidazione Fattura Nr. 6020012000009401  del 13/08/2020 (di cui Split per euro 26,63) - FORNITURA ACQUA POTABILE PER IMMOBILI E SERVIZI COMUNALI ANNO 2020_IMPEGNO DI SPESA PER ACQUE SPA;4112;1;3;2;5;5
ACQUE S.P.A.;25/08/2020;Acqua;864,34;0,00;78,58;;Liquidazione Fattura Nr. 6020012000009369  del 13/08/2020 al netto di Nota: N. 6020012000008861 del 03/08/2020 di 60,08 (di cui Split per euro 78,58) - Fornitura generica;4100;1;3;2;5;5
BARSOTTINI TECNO COSTRUZIONI SRL;25/08/2020;Fabbricati destinati ad asili nido;8.450,34;0,00;768,21;83236014D6;Liquidazione Fattura Nr. 116/A  del 07/08/2020 (di cui Split per euro 768,21) - Lavori di adeguamento antincendio dell'asilo nido di Vitolini, Vinci CIG: 83236014D6 CUP: J76B19002470006;4114;2;2;1;9;17
TIM S.P.A. DIREZIONE E COORDINAMENTO VIVENDI SA;25/08/2020;Telefonia fissa;108,52;0,00;19,57;Z1515A9942;Liquidazione Fattura Nr. 4220620800004806  del 06/04/2020 (di cui Split per euro 19,57) - 3BIM 2020;4133;1;3;2;5;1
TIM S.P.A. DIREZIONE E COORDINAMENTO VIVENDI SA;25/08/2020;Telefonia fissa;172,36;0,00;31,08;Z1515A9942;Liquidazione Fattura Nr. 4220620800004806  del 06/04/2020 (di cui Split per euro 31,08) - 3BIM 2020;4118;1;3;2;5;1
TIM S.P.A. DIREZIONE E COORDINAMENTO VIVENDI SA;25/08/2020;Telefonia fissa;83,46;0,00;15,05;Z1515A9942;Liquidazione Fattura Nr. 4220620800004806  del 06/04/2020 (di cui Split per euro 15,05) - 3BIM 2020;4119;1;3;2;5;1
TIM S.P.A. DIREZIONE E COORDINAMENTO VIVENDI SA;25/08/2020;Telefonia fissa;35,91;0,00;6,48;Z1515A9942;Liquidazione Fattura Nr. 4220620800004806  del 06/04/2020 (di cui Split per euro 6,48) - 3BIM 2020;4120;1;3;2;5;1
TIM S.P.A. DIREZIONE E COORDINAMENTO VIVENDI SA;25/08/2020;Telefonia fissa;51,79;0,00;9,34;Z1515A9942;Liquidazione Fattura Nr. 4220620800004806  del 06/04/2020 (di cui Split per euro 9,34) - 3BIM 2020;4121;1;3;2;5;1
TIM S.P.A. DIREZIONE E COORDINAMENTO VIVENDI SA;25/08/2020;Telefonia fissa;55,53;0,00;10,01;Z1515A9942;Liquidazione Fattura Nr. 4220620800004806  del 06/04/2020 (di cui Split per euro 10,01) - 3BIM 2020;4122;1;3;2;5;1
TIM S.P.A. DIREZIONE E COORDINAMENTO VIVENDI SA;25/08/2020;Telefonia fissa;86,02;0,00;15,51;Z1515A9942;Liquidazione Fattura Nr. 4220620800004806  del 06/04/2020 (di cui Split per euro 15,51) - 3BIM 2020;4123;1;3;2;5;1
TIM S.P.A. DIREZIONE E COORDINAMENTO VIVENDI SA;25/08/2020;Telefonia fissa;75,35;0,00;13,59;Z1515A9942;Liquidazione Fattura Nr. 4220620800004806  del 06/04/2020 (di cui Split per euro 13,59) - 3BIM 2020;4127;1;3;2;5;1
TIM S.P.A. DIREZIONE E COORDINAMENTO VIVENDI SA;25/08/2020;Telefonia fissa;203,87;0,00;36,76;Z1515A9942;Liquidazione Fattura Nr. 4220620800004806  del 06/04/2020 (di cui Split per euro 36,76) - 3BIM 2020;4128;1;3;2;5;1
TIM S.P.A. DIREZIONE E COORDINAMENTO VIVENDI SA;25/08/2020;Telefonia fissa;96,32;0,00;17,37;Z1515A9942;Liquidazione Fattura Nr. 4220620800004806  del 06/04/2020 (di cui Split per euro 17,37) - 3BIM 2020;4129;1;3;2;5;1
TIM S.P.A. DIREZIONE E COORDINAMENTO VIVENDI SA;25/08/2020;Telefonia fissa;40,53;0,00;7,31;Z1515A9942;Liquidazione Fattura Nr. 4220620800004806  del 06/04/2020 (di cui Split per euro 7,31) - 3BIM 2020;4124;1;3;2;5;1
TIM S.P.A. DIREZIONE E COORDINAMENTO VIVENDI SA;25/08/2020;Telefonia fissa;29,49;0,00;5,32;Z1515A9942;Liquidazione Fattura Nr. 4220620800004806  del 06/04/2020 (di cui Split per euro 5,32) - 3BIM 2020;4125;1;3;2;5;1
TIM S.P.A. DIREZIONE E COORDINAMENTO VIVENDI SA;25/08/2020;Telefonia fissa;76,38;0,00;13,77;Z1515A9942;Liquidazione Fattura Nr. 4220620800004806  del 06/04/2020 (di cui Split per euro 13,77) - 3BIM 2020;4126;1;3;2;5;1
TIM S.P.A. DIREZIONE E COORDINAMENTO VIVENDI SA;25/08/2020;Telefonia fissa;9,76;0,00;1,76;Z1515A9942;Liquidazione Fattura Nr. 4220620800004806  del 06/04/2020 (di cui Split per euro 1,76) - 3BIM 2020;4130;1;3;2;5;1
TIM S.P.A. DIREZIONE E COORDINAMENTO VIVENDI SA;25/08/2020;Telefonia fissa;0,96;0,00;0,17;Z1515A9942;Liquidazione Fattura Nr. 4220620800004806  del 06/04/2020 (di cui Split per euro 0,17) - 3BIM 2020;4131;1;3;2;5;1
TIM S.P.A. DIREZIONE E COORDINAMENTO VIVENDI SA;25/08/2020;Telefonia fissa;50,28;0,00;9,07;Z1515A9942;Liquidazione Fattura Nr. 4220620800004806  del 06/04/2020 (di cui Split per euro 9,07) - 3BIM 2020;4132;1;3;2;5;1
TIM S.P.A. DIREZIONE E COORDINAMENTO VIVENDI SA;25/08/2020;Telefonia fissa;1.188,59;0,00;214,34;Z1515A9942;Liquidazione Fattura Nr. 4220620800004806  del 06/04/2020 (di cui Split per euro 214,34) - 3BIM 2020;4117;1;3;2;5;1
TIM S.P.A. DIREZIONE E COORDINAMENTO VIVENDI SA;25/08/2020;Telefonia fissa;837,89;0,00;151,09;Z1515A9942;Liquidazione Fattura Nr. 4220620800004806  del 06/04/2020 (di cui Split per euro 151,09) - 3BIM 2020;4116;1;3;2;5;1
F.G.S. SRL;25/08/2020;Attrezzature n.a.c.;22.555,20;0,00;4.067,33;ZAB2BF940A;Liquidazione Fattura Nr. 20000265  del 20/08/2020 (di cui Split per euro 4.067,33) - Realizzazione sistema videosorveglianza sul territorio comunale - Stato Finale e CRE;4113;2;2;1;5;999
F.G.S. SRL;25/08/2020;Infrastrutture stradali;2.834,22;0,00;511,09;7734884433;Liquidazione Fattura Nr. 20000265  del 20/08/2020 (di cui Split per euro 511,09) - Realizzazione sistema videosorveglianza sul territorio comunale - Stato Finale e CRE;4115;2;2;1;9;12
AMMINISTRATORI COMUNALI;25/08/2020;Organi istituzionali dell'amministrazione - indennit�;6.894,12;0,00;0,00;;stipendio 08;4134;1;3;2;1;1
KUWAIT PETROLEUM ITALIA S.P.A.;25/08/2020;Carburanti, combustibili e lubrificanti ;1.370,42;0,00;247,12;785073791D;Liquidazione Fattura Nr. PJ02839265  del 31/07/2020 (di cui Split per euro 247,12) - FORNITURA DI CARBURANTE PER AUTOTRAZIONE MEDIANTE FUEL CARD ? ADESIONE ACCORDO QUADRO;4099;1;3;1;2;2
KUWAIT PETROLEUM ITALIA S.P.A.;25/08/2020;Carburanti, combustibili e lubrificanti ;1.050,94;0,00;189,51;785073791D;Liquidazione Fattura Nr. PJ02839265  del 31/07/2020 (di cui Split per euro 189,51) - FORNITURA DI CARBURANTE PER AUTOTRAZIONE MEDIANTE FUEL CARD ? ADESIONE ACCORDO QUADRO;4098;1;3;1;2;2
KUWAIT PETROLEUM ITALIA S.P.A.;25/08/2020;Carburanti, combustibili e lubrificanti ;429,14;0,00;77,39;785073791D;Liquidazione Fattura Nr. PJ02839265  del 31/07/2020 (di cui Split per euro 77,39) - FORNITURA DI CARBURANTE PER AUTOTRAZIONE MEDIANTE FUEL CARD ? ADESIONE ACCORDO QUADRO;4097;1;3;1;2;2
ACQUE S.P.A.;25/08/2020;Acqua;0,78;0,00;0,07;;Liquidazione Fattura Nr. 6020012000008862  del 03/08/2020 (di cui Split per euro 0,07) - FORNITURA ACQUA POTABILE PER IMMOBILI E SERVIZI COMUNALI ANNO 2020_IMPEGNO DI SPESA PER ACQUE SPA;4103;1;3;2;5;5
ALIA SERVIZI AMBIENTALI S.P.A.;26/08/2020;Contratti di servizio per la raccolta rifiuti;188.341,82;0,00;17.121,98;4726694F44;Liquidazione Fattura Nr. 0000133446  del 31/07/2020 (di cui Split per euro 17.121,98) -  Iva da versare a cura del cessionario o committente ai sensi dell'art.17 -ter del D.P.R. nr.633/1972 Scissione pagamenti;4401;1;3;2;15;4
CENTRO STUDI ENTI LOCALI S.P.A.;27/08/2020;Altre prestazioni professionali e specialistiche n.a.c.;750,00;0,00;135,25;Z342B1A26F;Liquidazione Fattura Nr. 320/AE  del 30/06/2020 (di cui Split per euro 135,25) - Fattura vendita AE Split Pay;4410;1;3;2;11;999
AGENZIA PER LO SVILUPPO  EMPOLESE VALDESA S.P.A.;27/08/2020;Acquisto di servizi per formazione obbligatoria;5.000,00;0,00;0,00;Z152B3FCE9;Liquidazione Fattura Nr. 245/03  del 27/07/2020 - AFFIDAMENTO DEL  SERVIZIO DI ORGANIZZAZIONE DEI CORSI DI FORMAZIONE OBBLIGATORIA IN MATERIA DI SICUREZZA SUL LAVORO: DETERMINA A CONTRARRE E DI AGGIUDICAZIONE SU START ALLA SOCIETA' PER LO S;4407;1;3;2;4;4
POSTE ITALIANE SPA SOCIETA' CON SOCIO UNICO;27/08/2020;Commissioni per servizi finanziari;58,56;0,00;10,56;Z0A28D7173;Liquidazione Fattura Nr. 2020145847  del 03/08/2020 (di cui Split per euro 10,56) - CANONE BPIOL ANNO 2019;4409;1;3;2;17;1
GIOVANI CALCIO VINCI - ASSOCIAZIONE SPORTIVA DILETTANTISTICA;27/08/2020;Trasferimenti correnti a Istituzioni Sociali Private ;6.000,00;0,00;0,00;;LIQUIDAZIONE CONTRIBUTO PER PROGETTO DI AVVIAMENTO ALLO SPORT;4403;1;4;4;1;1
ETRURIA P.A. SRL;27/08/2020;Carta, cancelleria e stampati;137,62;0,00;24,82;ZF72D2D4C0;Liquidazione Fattura Nr. 1081/00000  del 01/07/2020 (di cui Split per euro 24,82) - ACQUISTO DI UN TIMBRO AUTOINCHIOSTRANTE CON DATARIO E INTESTAZIONE DELL'ENTE PER GLI UFFICI DEMOGRAFICI- DETERMINA A CONTRARRE E DI AFFIDAMENTO DIRETTO;4411;1;3;1;2;1
LASER S.N.C. DI MARRUGANTI ALESSIO & C.;27/08/2020;Noleggi di hardware;385,26;0,00;69,47;ZB11978D4E;Liquidazione Fattura Nr. 1068  del 29/07/2020 (di cui Split per euro 69,47) - Scarico per Vendita Iva da versare a cura del cessionario o committente ai sensi dell'art. 17-ter del D.P.R. n. 633/1972 (scissione dei pagamenti);4412;1;3;2;7;4
SYNLAB MED SRL A SOCIO UNICO;27/08/2020;Spese per accertamenti sanitari resi necessari dall'attivit� lavorativa;131,48;0,00;0,00;ZE926707A5;Liquidazione Fattura Nr. G20/00053  del 31/07/2020 - AFFIDAMENTO DEL SERVIZIO DI SORVEGLIANZA SANITARIA DELL'ENTE MEDIANTE PIATTAFORMA START PER IL TRIENNIO 2019_2021: AGGIUDICAZIONE DEFINITIVA ED EFFICACE ALLA DITTA SYNLAB TOSCANA SRL;4408;1;3;2;18;1
CASALINI LIBRI S.P.A.;31/08/2020;Materiale bibliografico;36,00;0,00;0,00;Z5929C582D;Liquidazione Fattura Nr. 20-17963 del 31/07/2020 - Acquisto risorse librarie;4425;2;2;1;99;1
CENTRO DI RICERCA DOCUMENTAZIONE E PROMOZIONE DEL PADULE DI FUCECCHIO;31/08/2020;Quote di associazioni;1.500,00;0,00;0,00;;CENTRO DI RICERCA E DOCUMENTAZIONE DEL PADULE DI FUCECCHIO - IMPEGNO DI SPESA E LIQUIDAZIONE QUOTA ASSOCIATIVA ANNO 2020;4413;1;3;2;99;3
ASSOCIAZIONE IRIS;31/08/2020;Quote di associazioni;4.800,00;0,00;0,00;;Quota associativa IRIS anno 2020;4417;1;3;2;99;3
ACME04 SRL;31/08/2020;Altri beni e materiali di consumo n.a.c.;3.628,40;0,00;654,30;ZE52D92A7F;Liquidazione Fattura Nr. 31  del 28/07/2020 (di cui Split per euro 654,30) - Fornitura di cartellonistica personalizzata da destinare al Museo Leonardiano per misure di sicurezza anti Covid-19;4418;1;3;1;2;999
COMITATO PROMOTORE CENTRO TRADIZIONI POPOLARI EMPOLESE-VALDELSA;31/08/2020;Quote di associazioni;250,00;0,00;0,00;;COMITATO PROMOTORE CENTRO TRADIZIONI POPOLARI EMPOLESE VALDELSA - IMPEGNO DI SPESA E LIQUIDAZIONE QUOTA ASSOCIATIVA ANNO 2020;4414;1;3;2;99;3
STUDIO ASSOCIATO GRUPPO EDEN;31/08/2020;Altre prestazioni professionali e specialistiche n.a.c.;4.396,49;693,02;0,00;Z192BD0BD1;LIQUIDAZIONE FATTURA NR. 185  DEL 27/07/2020 - PROCEDURA GSE RISTRUTTURAZIONE DEI CORPI B E C PRESSO SCUOLA PRIMARIA SIBILLA ALERAMO DI SPICCHIO. DETERMINAZIONE DEL SETTORE 3 USO E ASSETTO DEL TERRITORIO N.20 DEL 04/02/2020;4416;1;3;2;11;999
BARGELLINI CLAUDIO;31/08/2020;Patrocinio legale;5.414,36;853,46;0,00;Zc823656E0;LIQUIDAZIONE FATTURA NR. 45  DEL 15/07/2020 - NOTULA A SALDO PER L'INTERA ATTIVIT� PRESTATA-GRUPPO CINOFILO;4415;1;3;2;11;6
M.C.DESIGN SRL;31/08/2020;Mobili e arredi n.a.c.;4.000,00;0,00;721,31;Z122CFED9A;Liquidazione Fattura Nr. 41/0000V  del 25/05/2020 (di cui Split per euro 721,31) - FORNITURA DI SEPARATORI E BARRIERE PROTETTIVE, AL FINE DI LIMITARE LA DIFFUSIONE DEL CORONAVIRUS-COVID 19 ? DETERMINA A CONTRARRE ? AFFIDAMENTO DITTA M.C. DE;4422;2;2;1;3;999
M.C.DESIGN SRL;31/08/2020;Mobili e arredi n.a.c.;3.224,84;0,00;581,53;Z122CFED9A;Liquidazione Fattura Nr. 41/0000V  del 25/05/2020 (di cui Split per euro 581,53) - FORNITURA DI SEPARATORI E BARRIERE PROTETTIVE, AL FINE DI LIMITARE LA DIFFUSIONE DEL CORONAVIRUS-COVID 19 ? DETERMINA A CONTRARRE ? AFFIDAMENTO DITTA M.C. DE;4421;2;2;1;3;999
M.C.DESIGN SRL;31/08/2020;Attrezzature n.a.c.;1.098,00;0,00;198,00;Z2C2D0ABF5;Liquidazione Fattura Nr. 58/0000V  del 15/06/2020 (di cui Split per euro 198,00) - ACQUISTO TOTEM PORTA BOCCETTE DI GEL IGIENIZZANTE ? DETERMINA A CONTRARRE ? AFFIDAMENTO DITTA M.C. DESIGN SRL;4426;2;2;1;5;999
SELVOLINA SAS;31/08/2020;Attrezzature n.a.c.;11.976,00;0,00;2.159,61;ZAA2DC5812;Liquidazione Fattura Nr. 169  del 31/07/2020 (di cui Split per euro 2.159,61) - TABELLONI ELETTORALI E ACCESSORI ANNO 2020;4427;2;2;1;5;999
IC VIDEOPRO SRL;31/08/2020;Hardware n.a.c.;10.000,00;0,00;1.803,27;Z7D2C6FBA2;Liquidazione Fattura Nr. 65  del 08/06/2020 (di cui Split per euro 1.803,27) - FATTURA;4424;2;2;1;7;999
IC VIDEOPRO SRL;31/08/2020;Attrezzature n.a.c.;11.557,20;0,00;2.084,09;Z7D2C6FBA2;Liquidazione Fattura Nr. 65  del 08/06/2020 (di cui Split per euro 2.084,09) - FATTURA;4423;2;2;1;5;999
IC VIDEOPRO SRL;31/08/2020;Altri servizi diversi n.a.c.;1.622,80;0,00;292,64;Z7D2C6FBA2;Liquidazione Fattura Nr. 65  del 08/06/2020 (di cui Split per euro 292,64) - FATTURA;4419;1;3;2;99;999
EREDI LEPORATTI GUIDO S.A.S. DI FIORETTA PACINI;31/08/2020;Contratti di servizio di trasporto pubblico;2.381,40;0,00;216,49;Z842D27701;Liquidazione Fattura Nr. 07/20  del 30/07/2020 (di cui Split per euro 216,49) - FATTURA TPL MENSILITA' LUGLIO 2020;4420;1;3;2;15;1
COMUNE DI VINCI- CONTI CORRENTI POSTALI VARI;02/09/2020;Commissioni per servizi finanziari;280,44;0,00;0,00;;COMMISSIONI PER SERVIZI FINANZIARI -  CONTI CORRENTI POSTALI INTESTATI ALL'ENTE- LIQUIDAZIONE SPESE SINO AL 30/04/2020.;4428;1;3;2;17;1
COMUNE DI VINCI- CONTI CORRENTI POSTALI VARI;02/09/2020;Commissioni per servizi finanziari;45,00;0,00;0,00;;COMMISSIONI PER SERVIZI FINANZIARI -  CONTI CORRENTI POSTALI INTESTATI ALL'ENTE- LIQUIDAZIONE SPESE SINO AL 30/04/2020.;4430;1;3;2;17;1
COMUNE DI VINCI- CONTI CORRENTI POSTALI VARI;02/09/2020;Commissioni per servizi finanziari;138,32;0,00;0,00;;COMMISSIONI PER SERVIZI FINANZIARI -  CONTI CORRENTI POSTALI INTESTATI ALL'ENTE- LIQUIDAZIONE SPESE SINO AL 30/04/2020.;4435;1;3;2;17;1
COMUNE DI VINCI- CONTI CORRENTI POSTALI VARI;02/09/2020;Commissioni per servizi finanziari;177,76;0,00;0,00;;COMMISSIONI PER SERVIZI FINANZIARI -   CONTI CORRENTI POSTALI INTESTATI ALL'ENTE- LIQUIDAZIONE SPESE SINO AL 30/04/2020.;4434;1;3;2;17;1
COMUNE DI VINCI- CONTI CORRENTI POSTALI VARI;02/09/2020;Commissioni per servizi finanziari;105,00;0,00;0,00;;COMMISSIONI PER SERVIZI FINANZIARI - CONTI CORRENTI POSTALI INTESTATI ALL'ENTE- LIQUIDAZIONE SPESE SINO AL 30/04/2020.;4432;1;3;2;17;1
COMUNE DI VINCI- CONTI CORRENTI POSTALI VARI;02/09/2020;Commissioni per servizi finanziari;112,14;0,00;0,00;;COMMISSIONI PER SERVIZI FINANZIARI -    CONTI CORRENTI POSTALI INTESTATI ALL'ENTE- LIQUIDAZIONE SPESE SINO AL 30/04/2020.;4431;1;3;2;17;1
COMUNE DI VINCI- CONTI CORRENTI POSTALI VARI;02/09/2020;Commissioni per servizi finanziari;107,72;0,00;0,00;;COMMISSIONI PER SERVIZI FINANZIARI - CONTI CORRENTI POSTALI INTESTATI ALL'ENTE- LIQUIDAZIONE SPESE SINO AL 30/04/2020.;4429;1;3;2;17;1
COMUNE DI VINCI- CONTI CORRENTI POSTALI VARI;02/09/2020;Commissioni per servizi finanziari;238,96;0,00;0,00;;COMMISSIONI PER SERVIZI FINANZIARI - CONTI CORRENTI POSTALI INTESTATI ALL'ENTE- LIQUIDAZIONE SPESE SINO AL 30/04/2020.;4433;1;3;2;17;1
S.T.F. S.R.L.;03/09/2020;Mobili e arredi n.a.c.;2.000,00;0,00;360,66;Z602DA369B;Liquidazione Fattura Nr. 132  del 28/07/2020 (di cui Split per euro 360,66) - IMPEGNO CAP. 10760-10761;4505;2;2;1;3;999
S.T.F. S.R.L.;03/09/2020;Mobili e arredi n.a.c.;2.300,50;0,00;414,85;Z602DA369B;Liquidazione Fattura Nr. 132  del 28/07/2020 (di cui Split per euro 414,85) - IMPEGNO CAP. 10760-10761;4504;2;2;1;3;999
DAMAZ S.R.L. - INGROSSO CASALINGHI;03/09/2020;Altri beni e materiali di consumo n.a.c.;404,91;0,00;61,66;ZAC2D4E0B2;Liquidazione Fattura Nr. 31152P  del 10/07/2020 (di cui Split per euro 61,66) - DAMAZ ORDINE 1 MUSCOM 1� CONSEGNA;4471;1;3;1;2;999
DAMAZ S.R.L. - INGROSSO CASALINGHI;03/09/2020;Altri beni e materiali di consumo n.a.c.;361,35;0,00;13,66;ZAC2D4E0B2;Liquidazione Fattura Nr. 31153P  del 10/07/2020 (di cui Split per euro 13,66) - DAMAZ ORDINE 1 EDICOM;4470;1;3;1;2;999
POSTE ITALIANE SPA SOCIETA' CON SOCIO UNICO;03/09/2020;Spese postali;70,00;0,00;0,00;ZC7276DD8B;Liquidazione Fattura Nr. 1020225278  del 18/08/2020 - posta easy - pickup aprile 2020;4472;1;3;2;16;2
MATERIALI EDILI BALDACCI DI BALDACCI RENATO E C. SNC;03/09/2020;Altri beni e materiali di consumo n.a.c.;677,25;0,00;122,13;ZE42C88326;Liquidazione Fattura Nr. 728/0  del 30/06/2020 (di cui Split per euro 122,13) - FORNITURA DI MATERIALI EDILI FINALIZZATI ALL'ESECUZIONE DI LAVORI DI MANUTENZIONE  STRADE COMUNALI ;4462;1;3;1;2;999
TERMOCONTROL SRL MANUTENZIONE IMPIANTI;03/09/2020;Manutenzione ordinaria e riparazioni di impianti e macchinari;1.568,31;0,00;282,81;Z5C2B37EF0;Liquidazione Fattura Nr. 003381PA  del 03/07/2020 (di cui Split per euro 282,81) - INTERVENTI DI MANUTENZIONE DA CANONE IMPIANTI TERMOIDRAULICI E DI CONDIZIONAMENTO;4446;1;3;2;9;4
TERMOCONTROL SRL MANUTENZIONE IMPIANTI;03/09/2020;Manutenzione ordinaria e riparazioni di impianti e macchinari;1.367,92;0,00;246,67;Z5C2B37EF0;Liquidazione Fattura Nr. 003381PA  del 03/07/2020 (di cui Split per euro 246,67) - INTERVENTI DI MANUTENZIONE DA CANONE IMPIANTI TERMOIDRAULICI E DI CONDIZIONAMENTO;4450;1;3;2;9;4
TERMOCONTROL SRL MANUTENZIONE IMPIANTI;03/09/2020;Manutenzione ordinaria e riparazioni di impianti e macchinari;1.052,25;0,00;189,75;Z5C2B37EF0;Liquidazione Fattura Nr. 003381PA  del 03/07/2020 (di cui Split per euro 189,75) - INTERVENTI DI MANUTENZIONE DA CANONE IMPIANTI TERMOIDRAULICI E DI CONDIZIONAMENTO;4449;1;3;2;9;4
TERMOCONTROL SRL MANUTENZIONE IMPIANTI;03/09/2020;Manutenzione ordinaria e riparazioni di impianti e macchinari;1.032,43;0,00;186,18;Z5C2B37EF0;Liquidazione Fattura Nr. 003381PA  del 03/07/2020 (di cui Split per euro 186,18) - INTERVENTI DI MANUTENZIONE DA CANONE IMPIANTI TERMOIDRAULICI E DI CONDIZIONAMENTO;4451;1;3;2;9;4
TERMOCONTROL SRL MANUTENZIONE IMPIANTI;03/09/2020;Manutenzione ordinaria e riparazioni di impianti e macchinari;537,41;0,00;96,91;Z5C2B37EF0;Liquidazione Fattura Nr. 003381PA  del 03/07/2020 (di cui Split per euro 96,91) - INTERVENTI DI MANUTENZIONE DA CANONE IMPIANTI TERMOIDRAULICI E DI CONDIZIONAMENTO;4465;1;3;2;9;4
TERMOCONTROL SRL MANUTENZIONE IMPIANTI;03/09/2020;Manutenzione ordinaria e riparazioni di impianti e macchinari;347,70;0,00;62,70;Z5C2B37EF0;Liquidazione Fattura Nr. 003381PA  del 03/07/2020 (di cui Split per euro 62,70) - INTERVENTI DI MANUTENZIONE DA CANONE IMPIANTI TERMOIDRAULICI E DI CONDIZIONAMENTO;4455;1;3;2;9;4
TERMOCONTROL SRL MANUTENZIONE IMPIANTI;03/09/2020;Manutenzione ordinaria e riparazioni di impianti e macchinari;280,60;0,00;50,60;Z5C2B37EF0;Liquidazione Fattura Nr. 003381PA  del 03/07/2020 (di cui Split per euro 50,60) - INTERVENTI DI MANUTENZIONE DA CANONE IMPIANTI TERMOIDRAULICI E DI CONDIZIONAMENTO;4458;1;3;2;9;4
TERMOCONTROL SRL MANUTENZIONE IMPIANTI;03/09/2020;Manutenzione ordinaria e riparazioni di impianti e macchinari;234,85;0,00;42,35;Z5C2B37EF0;Liquidazione Fattura Nr. 003381PA  del 03/07/2020 (di cui Split per euro 42,35) - INTERVENTI DI MANUTENZIONE DA CANONE IMPIANTI TERMOIDRAULICI E DI CONDIZIONAMENTO;4466;1;3;2;9;4
TERMOCONTROL SRL MANUTENZIONE IMPIANTI;03/09/2020;Manutenzione ordinaria e riparazioni di impianti e macchinari;118,34;0,00;21,34;Z5C2B37EF0;Liquidazione Fattura Nr. 003381PA  del 03/07/2020 (di cui Split per euro 21,34) - INTERVENTI DI MANUTENZIONE DA CANONE IMPIANTI TERMOIDRAULICI E DI CONDIZIONAMENTO;4461;1;3;2;9;4
TERMOCONTROL SRL MANUTENZIONE IMPIANTI;03/09/2020;Manutenzione ordinaria e riparazioni di impianti e macchinari;88,45;0,00;15,95;Z5C2B37EF0;Liquidazione Fattura Nr. 003381PA  del 03/07/2020 (di cui Split per euro 15,95) - INTERVENTI DI MANUTENZIONE DA CANONE IMPIANTI TERMOIDRAULICI E DI CONDIZIONAMENTO;4447;1;3;2;9;4
TERMOCONTROL SRL MANUTENZIONE IMPIANTI;03/09/2020;Manutenzione ordinaria e riparazioni di impianti e macchinari;82,35;0,00;14,85;Z5C2B37EF0;Liquidazione Fattura Nr. 003381PA  del 03/07/2020 (di cui Split per euro 14,85) - INTERVENTI DI MANUTENZIONE DA CANONE IMPIANTI TERMOIDRAULICI E DI CONDIZIONAMENTO;4454;1;3;2;9;4
TERMOCONTROL SRL MANUTENZIONE IMPIANTI;03/09/2020;Manutenzione ordinaria e riparazioni di impianti e macchinari;958,92;0,00;172,92;Z5C2B37EF0;Liquidazione Fattura Nr. 003382PA  del 03/07/2020 (di cui Split per euro 172,92) - INTERVENTI DI MANUTENZIONE DA CANONE IMPIANTI TERMOIDRAULICI E DI CONDIZIONAMENTO;4452;1;3;2;9;4
TERMOCONTROL SRL MANUTENZIONE IMPIANTI;03/09/2020;Manutenzione ordinaria e riparazioni di impianti e macchinari;236,07;0,00;42,57;Z5C2B37EF0;Liquidazione Fattura Nr. 003382PA  del 03/07/2020 (di cui Split per euro 42,57) - INTERVENTI DI MANUTENZIONE DA CANONE IMPIANTI TERMOIDRAULICI E DI CONDIZIONAMENTO;4464;1;3;2;9;4
TERMOCONTROL SRL MANUTENZIONE IMPIANTI;03/09/2020;Manutenzione ordinaria e riparazioni di impianti e macchinari;420,90;0,00;75,90;Z5C2B37EF0;Liquidazione Fattura Nr. 003382PA  del 03/07/2020 (di cui Split per euro 75,90) - INTERVENTI DI MANUTENZIONE DA CANONE IMPIANTI TERMOIDRAULICI E DI CONDIZIONAMENTO;4459;1;3;2;9;4
LEGGERE S.R.L.;03/09/2020;Pubblicazioni;598,95;0,00;0,00;Z8E29E47DF;Liquidazione Fattura Nr. 6436 del 30/06/2020 - FORNITURA DI MATERIALE BIBLIOGRAFICO A STAMPA (VOLUMI) PER LA BIBLIOTECA;4493;1;3;1;1;2
LEGGERE S.R.L.;03/09/2020;Pubblicazioni;648,55;0,00;116,95;Z8E29E47DF;Liquidazione Fattura Nr. 6435 del 30/06/2020 - FORNITURA DI MATERIALE MULTIMEDIALE PER LA BIBLIOTECA (di cui Split per euro 116,95);4494;1;3;1;1;2
LEGGERE S.R.L.;03/09/2020;Pubblicazioni;41,71;0,00;7,52;Z8E29E47DF;Liquidazione Fattura Nr. 8393 del 31/07/2020 - FORNITURA DI MATERIALE MULTIMEDIALE PER LA BIBLIOTECA LEONARDIANA - SEDI DISTACCATE (di cui Split per euro 7,52);4495;1;3;1;1;2
LEGGERE S.R.L.;03/09/2020;Pubblicazioni;350,14;0,00;0,00;Z8E29E47DF;Liquidazione Fattura Nr. 8394 del 31/07/2020 - FORNITURA DI MATERIALE BIBLIOGRAFICO A STAMPA (VOLUMI E PERIODICI) PER LA BIBLIOTECA;4496;1;3;1;1;2
CO&SO EMPOLI - CONS. DI COOP. SOCIALI - SOCIETA' COOPERATIVA;03/09/2020;Altre spese per contratti di servizio pubblico;4.688,30;0,00;0,00;7121843AC1;Liquidazione Fattura Nr. 000586-2C0 del 15/07/2020 - Fattura front office biblioteca leonardiana e sedi distaccate - giugno 2020;4500;1;3;2;15;999
CO&SO EMPOLI - CONS. DI COOP. SOCIALI - SOCIETA' COOPERATIVA;03/09/2020;Altre spese per contratti di servizio pubblico;1.407,92;0,00;0,00;7172254B3A;Liquidazione Fattura Nr. 000616-2C0  del 31/07/2020 - GESTIONE SERVIZI PRESSO VILLA REGHINI MESE DI LUGLIO 2020;4474;1;3;2;15;999
COOPERATIVA SOCIALE PEGASO SOCIETA' COOPERATIVA;03/09/2020;Manutenzione ordinaria e riparazioni di beni immobili;683,20;0,00;123,20;Z2D2D61E74;Liquidazione Fattura Nr. 163/01  del 30/06/2020 (di cui Split per euro 123,20) - SANIFICAZIONE, PULIZIA E DISINFEZIONE AREE A VERDE E STRUTTURE LUDICHE _ DETERMINA  A CONTRARRE E AFFIDAMENTO  COOPERATIVA SOCIALE PEGASO SOCIETA' COOPERATIVA;4460;1;3;2;9;8
ASSOCIAZIONE NAZIONALE CITTA' DEL VINO;03/09/2020;Quote di associazioni;200,00;0,00;0,00;;determina 82 del 10/08/20 quota adesione Calici di Stelle 2020 ;4475;1;3;2;99;3
EDILCURTO S.R.L.;03/09/2020;Musei, teatri e biblioteche;9.145,79;0,00;1.649,24;Z1B2B63733;Liquidazione Fattura Nr. 000039-2020  del 03/07/2020 (di cui Split per euro 1.649,24) - ELIMINAZIONE INFILTRAZIONI AL TEATRO MISERICORDIA;4467;2;2;1;9;18
STUDIO LEGALE FALORNI - DE MEO S.S.;03/09/2020;Patrocinio legale;7.930,00;1.250,00;0,00;;LIQUIDAZIONE FATTURA NR. 83/PA  DEL 10/07/2020 - SALDO RICORSO TAR CALUGI M. E L.;4469;1;3;2;11;6
TIM S.P.A. DIREZIONE E COORDINAMENTO VIVENDI SA;03/09/2020;Servizi di rete per trasmissione dati e VoIP e relativa manutenzione;96,62;0,00;15,62;Z112B35FF0;Liquidazione Fattura Nr. 8L00451929  del 13/08/2020 (di cui Split per euro 15,62) - 5BIM 2020;4488;1;3;2;19;4
TIM S.P.A. DIREZIONE E COORDINAMENTO VIVENDI SA;03/09/2020;Servizi di rete per trasmissione dati e VoIP e relativa manutenzione;227,96;0,00;41,11;Z4419D9E67;Liquidazione Fattura Nr. 8L00449930  del 13/08/2020 (di cui Split per euro 41,11) - 5BIM 2020;4482;1;3;2;19;4
TIM S.P.A. DIREZIONE E COORDINAMENTO VIVENDI SA;03/09/2020;Servizi di rete per trasmissione dati e VoIP e relativa manutenzione;112,24;0,00;20,24;Z4419D9E67;Liquidazione Fattura Nr. 8L00450160  del 13/08/2020 (di cui Split per euro 20,24) - 5BIM 2020;4503;1;3;2;19;4
TIM S.P.A. DIREZIONE E COORDINAMENTO VIVENDI SA;03/09/2020;Servizi di rete per trasmissione dati e VoIP e relativa manutenzione;96,62;0,00;15,62;Z112B35FF0;Liquidazione Fattura Nr. 8L00451594  del 13/08/2020 (di cui Split per euro 15,62) - 5BIM 2020;4487;1;3;2;19;4
TIM S.P.A. DIREZIONE E COORDINAMENTO VIVENDI SA;03/09/2020;Servizi di rete per trasmissione dati e VoIP e relativa manutenzione;122,92;0,00;22,17;Z02264C2B7;Liquidazione Fattura Nr. 8L00451549  del 13/08/2020 (di cui Split per euro 22,17) - 5BIM 2020;4491;1;3;2;19;4
TIM S.P.A. DIREZIONE E COORDINAMENTO VIVENDI SA;03/09/2020;Servizi di rete per trasmissione dati e VoIP e relativa manutenzione;227,94;0,00;41,10;Z4419D9E67;Liquidazione Fattura Nr. 8L00452775  del 13/08/2020 (di cui Split per euro 41,10) - 5BIM 2020;4481;1;3;2;19;4
TIM S.P.A. DIREZIONE E COORDINAMENTO VIVENDI SA;03/09/2020;Servizi di rete per trasmissione dati e VoIP e relativa manutenzione;134,22;0,00;24,20;Z02264C2B7;Liquidazione Fattura Nr. 8L00449932  del 13/08/2020 (di cui Split per euro 24,20) - 5BIM 2020;4499;1;3;2;19;4
TIM S.P.A. DIREZIONE E COORDINAMENTO VIVENDI SA;03/09/2020;Servizi di rete per trasmissione dati e VoIP e relativa manutenzione;124,66;0,00;22,48;Z5915A5067;Liquidazione Fattura Nr. 8L00452521  del 13/08/2020 (di cui Split per euro 22,48) - 5BIM 2020;4484;1;3;2;19;4
TIM S.P.A. DIREZIONE E COORDINAMENTO VIVENDI SA;03/09/2020;Telefonia fissa;179,36;0,00;28,16;Z02264C2B7;Liquidazione Fattura Nr. 8L00450955  del 13/08/2020 (di cui Split per euro 28,16) - 5BIM 2020;4498;1;3;2;5;1
TIM S.P.A. DIREZIONE E COORDINAMENTO VIVENDI SA;03/09/2020;Utenze e canoni per altri servizi n.a.c.;96,62;0,00;15,62;ZBB27E8244;Liquidazione Fattura Nr. 8L00452894  del 13/08/2020 (di cui Split per euro 15,62) - 5BIM 2020;4479;1;3;2;5;999
TIM S.P.A. DIREZIONE E COORDINAMENTO VIVENDI SA;03/09/2020;Telefonia fissa;296,16;0,00;43,45;Z02264C2B7;Liquidazione Fattura Nr. 8L00452403  del 13/08/2020 (di cui Split per euro 43,45) - 5BIM 2020;4490;1;3;2;5;1
TIM S.P.A. DIREZIONE E COORDINAMENTO VIVENDI SA;03/09/2020;Telefonia fissa;91,50;0,00;16,50;Z1515A9942;Liquidazione Fattura Nr. 8L00449222  del 13/08/2020 (di cui Split per euro 16,50) - 5BIM 2020;4501;1;3;2;5;1
TIM S.P.A. DIREZIONE E COORDINAMENTO VIVENDI SA;03/09/2020;Servizi di rete per trasmissione dati e VoIP e relativa manutenzione;124,66;0,00;22,48;Z5B1A0792B;Liquidazione Fattura Nr. 8L00450490  del 13/08/2020 (di cui Split per euro 22,48) - 5BIM 2020;4480;1;3;2;19;4
TIM S.P.A. DIREZIONE E COORDINAMENTO VIVENDI SA;03/09/2020;Servizi di rete per trasmissione dati e VoIP e relativa manutenzione;96,62;0,00;15,62;Z112B35FF0;Liquidazione Fattura Nr. 8L00451643  del 13/08/2020 (di cui Split per euro 15,62) - 5BIM 2020;4485;1;3;2;19;4
